{"text_format":"1","workbook":"xlsx","n_sheets":3,"sheets":["TDB Reclamations","Réclamations","Don't delete"],"not_rendered":{"charts":0,"images":0,"macros":1,"external_links":0,"defined_names":32,"comments":0,"pivot_tables":0},"unopened":[],"bounds":{"document_bytes":16777216,"sheet_cells":100000,"rows_first":2000,"rows_last":500,"rows_between":2000,"halvings":0,"cell_chars":16384,"cell_head_chars":4096},"cells_cut":0,"cells_raw":0,"read":"whole","date_system":"1900"}

{"sheet":"TDB Reclamations","index":0,"n_rows":37,"n_cols":37,"rows_kept":37,"cut":false,"hidden":false,"merged":[[0,34,0,36],[0,19,0,21],[0,22,0,24],[0,25,0,27],[0,28,0,30],[0,31,0,33],[0,16,0,18],[0,1,0,3],[0,4,0,6],[0,7,0,9],[0,10,0,12],[0,13,0,15]]}
[null,"paris",null,null,"londres",null,null,"douala",null,null,"bamako",null,null,"dubai",null,null,"Garoua",null,null,"libreville",null,null,"dakar",null,null,"bombei",null,null,"istambul",null,null,"caire",null,null,"abuja"]
["DATES","Informations","Plaintes","Support_Technique","Informations","Plaintes","Support","Informations","Plaintes","Support","Informations","Plaintes","Support","Informations","Plaintes","Support","Informations","Plaintes","Support","Informations","Plaintes","Support_Technique","Informations","Plaintes","Support","Informations","Plaintes","Support","Informations","Plaintes","Support","Informations","Plaintes","Support","Informations","Plaintes","Support"]
["2018-01-01",{"$f":"SUMPRODUCT((Tableau6[[Typologie ]]=\"Showroom Akwa\")*(Tableau6[[Date ]]=$A3)*(Tableau6[Requetes]=B$2))","v":0},{"$f":"SUMPRODUCT((Tableau6[[Typologie ]]=\"Showroom Akwa\")*(Tableau6[[Date ]]=$A3)*(Tableau6[Requetes]=C$2))","v":0},{"$f":"SUMPRODUCT((Tableau6[[Typologie ]]=\"Showroom Akwa\")*(Tableau6[[Date ]]=$A3)*(Tableau6[Requetes]=D$2))","v":0},{"$f":"SUMPRODUCT((Tableau6[[Typologie ]]=\"Showroom Bafoussam\")*(Tableau6[[Date ]]=$A3)*(Tableau6[Requetes]=E$2))","v":0},{"$f":"SUMPRODUCT((Tableau6[[Typologie ]]=\"Showroom Bafoussam\")*(Tableau6[[Date ]]=$A3)*(Tableau6[Requetes]=F$2))","v":0},{"$f":"SUMPRODUCT((Tableau6[[Typologie ]]=\"Showroom Bafoussam\")*(Tableau6[[Date ]]=$A3)*(Tableau6[Requetes]=G$2))","v":0},{"$f":"SUMPRODUCT((Tableau6[[Typologie ]]=\"Showroom Yaounde\")*(Tableau6[[Date ]]=$A3)*(Tableau6[Requetes]=H$2))","v":0},{"$f":"SUMPRODUCT((Tableau6[[Code Réclamation  ]]=\"Showroom Yaounde\")*(Tableau6[[Typologie ]]=$A3)*(Tableau6[[Catégories ]]=I$2))","v":0},{"$f":"SUMPRODUCT((Tableau6[Noms & Prenoms]=\"Showroom Yaounde\")*(Tableau6[[Code Réclamation  ]]=$A3)*(Tableau6[Types]=J$2))","v":0},{"$f":"SUMPRODUCT((Tableau6[[Typologie ]]=\"Showroom Bonamoussadi\")*(Tableau6[[Date ]]=$A3)*(Tableau6[Requetes]=K$2))","v":0},{"$f":"SUMPRODUCT((Tableau6[[Code Réclamation  ]]=\"Showroom Bonamoussadi\")*(Tableau6[[Typologie ]]=$A3)*(Tableau6[[Catégories ]]=L$2))","v":0},{"$f":"SUMPRODUCT((Tableau6[Noms & Prenoms]=\"Showroom Bonamoussadi\")*(Tableau6[[Code Réclamation  ]]=$A3)*(Tableau6[Types]=M$2))","v":0},{"$f":"SUMPRODUCT((Tableau6[[Typologie ]]=\"Showroom Bonanjo\")*(Tableau6[[Date ]]=$A3)*(Tableau6[Requetes]=N$2))","v":0},{"$f":"SUMPRODUCT((Tableau6[[Code Réclamation  ]]=\"Showroom Bonanjo\")*(Tableau6[[Typologie ]]=$A3)*(Tableau6[[Catégories ]]=O$2))","v":0},{"$f":"SUMPRODUCT((Tableau6[Noms & Prenoms]=\"Showroom Bonanjo\")*(Tableau6[[Code Réclamation  ]]=$A3)*(Tableau6[Types]=P$2))","v":0},{"$f":"SUMPRODUCT((Tableau6[[Typologie ]]=\"Showroom Garoua\")*(Tableau6[[Date ]]=$A3)*(Tableau6[Requetes]=Q$2))","v":0},{"$f":"SUMPRODUCT((Tableau6[[Code Réclamation  ]]=\"Showroom Garoua\")*(Tableau6[[Typologie ]]=$A3)*(Tableau6[[Catégories ]]=R$2))","v":0},{"$f":"SUMPRODUCT((Tableau6[Noms & Prenoms]=\"Showroom Garoua\")*(Tableau6[[Code Réclamation  ]]=$A3)*(Tableau6[Types]=S$2))","v":0},{"$f":"SUMPRODUCT((Tableau6[[Typologie ]]=\"Shop Bastos\")*(Tableau6[[Date ]]=$A3)*(Tableau6[Requetes]=T$2))","v":0},{"$f":"SUMPRODUCT((Tableau6[[Code Réclamation  ]]=\"Shop Bastos\")*(Tableau6[[Typologie ]]=$A3)*(Tableau6[[Catégories ]]=U$2))","v":0},{"$f":"SUMPRODUCT((Tableau6[Noms & Prenoms]=\"Shop Bastos\")*(Tableau6[[Code Réclamation  ]]=$A3)*(Tableau6[Types]=V$2))","v":0},{"$f":"SUMPRODUCT((Tableau6[[Typologie ]]=\"Shop Essos\")*(Tableau6[[Date ]]=$A3)*(Tableau6[Requetes]=W$2))","v":0},{"$f":"SUMPRODUCT((Tableau6[[Code Réclamation  ]]=\"Shop Essos\")*(Tableau6[[Typologie ]]=$A3)*(Tableau6[[Catégories ]]=X$2))","v":0},{"$f":"SUMPRODUCT((Tableau6[Noms & Prenoms]=\"Shop Essos\")*(Tableau6[[Code Réclamation  ]]=$A3)*(Tableau6[Types]=Y$2))","v":0},{"$f":"SUMPRODUCT((Tableau6[[Typologie ]]=\"Shop Peyrissac\")*(Tableau6[[Date ]]=$A3)*(Tableau6[Requetes]=Z$2))","v":0},{"$f":"SUMPRODUCT((Tableau6[[Code Réclamation  ]]=\"Shop Peyrissac\")*(Tableau6[[Typologie ]]=$A3)*(Tableau6[[Catégories ]]=AA$2))","v":0},{"$f":"SUMPRODUCT((Tableau6[Noms & Prenoms]=\"Shop Peyrissac\")*(Tableau6[[Code Réclamation  ]]=$A3)*(Tableau6[Types]=AB$2))","v":0},{"$f":"SUMPRODUCT((Tableau6[[Typologie ]]=\"Back Office\")*(Tableau6[[Date ]]=$A3)*(Tableau6[Requetes]=AC$2))","v":0},{"$f":"SUMPRODUCT((Tableau6[[Code Réclamation  ]]=\"Back Office\")*(Tableau6[[Typologie ]]=$A3)*(Tableau6[[Catégories ]]=AD$2))","v":0},{"$f":"SUMPRODUCT((Tableau6[Noms & Prenoms]=\"Back Office\")*(Tableau6[[Code Réclamation  ]]=$A3)*(Tableau6[Types]=AE$2))","v":0},{"$f":"SUMPRODUCT((Tableau6[[Typologie ]]=\"Front Office\")*(Tableau6[[Date ]]=$A3)*(Tableau6[Requetes]=AF$2))","v":0},{"$f":"SUMPRODUCT((Tableau6[[Code Réclamation  ]]=\"Front Office\")*(Tableau6[[Typologie ]]=$A3)*(Tableau6[[Catégories ]]=AG$2))","v":0},{"$f":"SUMPRODUCT((Tableau6[Noms & Prenoms]=\"Front Office\")*(Tableau6[[Code Réclamation  ]]=$A3)*(Tableau6[Types]=AH$2))","v":0},{"$f":"SUMPRODUCT((Tableau6[[Typologie ]]=\"Direction Générale\")*(Tableau6[[Date ]]=$A3)*(Tableau6[Requetes]=AI$2))","v":0},{"$f":"SUMPRODUCT((Tableau6[[Code Réclamation  ]]=\"Direction Générale\")*(Tableau6[[Typologie ]]=$A3)*(Tableau6[[Catégories ]]=AJ$2))","v":0},{"$f":"SUMPRODUCT((Tableau6[Noms & Prenoms]=\"Direction Générale\")*(Tableau6[[Code Réclamation  ]]=$A3)*(Tableau6[Types]=AK$2))","v":0}]
["2018-01-02",{"$f":"SUMPRODUCT((Tableau6[[Typologie ]]=\"Showroom Akwa\")*(Tableau6[[Date ]]=$A4)*(Tableau6[Requetes]=B$2))","v":0},{"$f":"SUMPRODUCT((Tableau6[[Typologie ]]=\"Showroom Akwa\")*(Tableau6[[Date ]]=$A4)*(Tableau6[Requetes]=C$2))","v":1},{"$f":"SUMPRODUCT((Tableau6[[Typologie ]]=\"Showroom Akwa\")*(Tableau6[[Date ]]=$A4)*(Tableau6[Requetes]=D$2))","v":1},{"$f":"SUMPRODUCT((Tableau6[[Typologie ]]=\"Showroom Bafoussam\")*(Tableau6[[Date ]]=$A4)*(Tableau6[Requetes]=E$2))","v":0},{"$f":"SUMPRODUCT((Tableau6[[Typologie ]]=\"Showroom Bafoussam\")*(Tableau6[[Date ]]=$A4)*(Tableau6[Requetes]=F$2))","v":0},{"$f":"SUMPRODUCT((Tableau6[[Typologie ]]=\"Showroom Bafoussam\")*(Tableau6[[Date ]]=$A4)*(Tableau6[Requetes]=G$2))","v":0},{"$f":"SUMPRODUCT((Tableau6[[Typologie ]]=\"Showroom Yaounde\")*(Tableau6[[Date ]]=$A4)*(Tableau6[Requetes]=H$2))","v":0},{"$f":"SUMPRODUCT((Tableau6[[Code Réclamation  ]]=\"Showroom Yaounde\")*(Tableau6[[Typologie ]]=$A4)*(Tableau6[[Catégories ]]=I$2))","v":0},{"$f":"SUMPRODUCT((Tableau6[Noms & Prenoms]=\"Showroom Yaounde\")*(Tableau6[[Code Réclamation  ]]=$A4)*(Tableau6[Types]=J$2))","v":0},{"$f":"SUMPRODUCT((Tableau6[[Typologie ]]=\"Showroom Bonamoussadi\")*(Tableau6[[Date ]]=$A4)*(Tableau6[Requetes]=K$2))","v":0},{"$f":"SUMPRODUCT((Tableau6[[Code Réclamation  ]]=\"Showroom Bonamoussadi\")*(Tableau6[[Typologie ]]=$A4)*(Tableau6[[Catégories ]]=L$2))","v":0},{"$f":"SUMPRODUCT((Tableau6[Noms & Prenoms]=\"Showroom Bonamoussadi\")*(Tableau6[[Code Réclamation  ]]=$A4)*(Tableau6[Types]=M$2))","v":0},{"$f":"SUMPRODUCT((Tableau6[[Typologie ]]=\"Showroom Bonanjo\")*(Tableau6[[Date ]]=$A4)*(Tableau6[Requetes]=N$2))","v":0},{"$f":"SUMPRODUCT((Tableau6[[Code Réclamation  ]]=\"Showroom Bonanjo\")*(Tableau6[[Typologie ]]=$A4)*(Tableau6[[Catégories ]]=O$2))","v":0},{"$f":"SUMPRODUCT((Tableau6[Noms & Prenoms]=\"Showroom Bonanjo\")*(Tableau6[[Code Réclamation  ]]=$A4)*(Tableau6[Types]=P$2))","v":0},{"$f":"SUMPRODUCT((Tableau6[[Typologie ]]=\"Showroom Garoua\")*(Tableau6[[Date ]]=$A4)*(Tableau6[Requetes]=Q$2))","v":0},{"$f":"SUMPRODUCT((Tableau6[[Code Réclamation  ]]=\"Showroom Garoua\")*(Tableau6[[Typologie ]]=$A4)*(Tableau6[[Catégories ]]=R$2))","v":0},{"$f":"SUMPRODUCT((Tableau6[Noms & Prenoms]=\"Showroom Garoua\")*(Tableau6[[Code Réclamation  ]]=$A4)*(Tableau6[Types]=S$2))","v":0},{"$f":"SUMPRODUCT((Tableau6[[Typologie ]]=\"Shop Bastos\")*(Tableau6[[Date ]]=$A4)*(Tableau6[Requetes]=T$2))","v":0},{"$f":"SUMPRODUCT((Tableau6[[Code Réclamation  ]]=\"Shop Bastos\")*(Tableau6[[Typologie ]]=$A4)*(Tableau6[[Catégories ]]=U$2))","v":0},{"$f":"SUMPRODUCT((Tableau6[Noms & Prenoms]=\"Shop Bastos\")*(Tableau6[[Code Réclamation  ]]=$A4)*(Tableau6[Types]=V$2))","v":0},{"$f":"SUMPRODUCT((Tableau6[[Typologie ]]=\"Shop Essos\")*(Tableau6[[Date ]]=$A4)*(Tableau6[Requetes]=W$2))","v":0},{"$f":"SUMPRODUCT((Tableau6[[Code Réclamation  ]]=\"Shop Essos\")*(Tableau6[[Typologie ]]=$A4)*(Tableau6[[Catégories ]]=X$2))","v":0},{"$f":"SUMPRODUCT((Tableau6[Noms & Prenoms]=\"Shop Essos\")*(Tableau6[[Code Réclamation  ]]=$A4)*(Tableau6[Types]=Y$2))","v":0},{"$f":"SUMPRODUCT((Tableau6[[Typologie ]]=\"Shop Peyrissac\")*(Tableau6[[Date ]]=$A4)*(Tableau6[Requetes]=Z$2))","v":0},{"$f":"SUMPRODUCT((Tableau6[[Code Réclamation  ]]=\"Shop Peyrissac\")*(Tableau6[[Typologie ]]=$A4)*(Tableau6[[Catégories ]]=AA$2))","v":0},{"$f":"SUMPRODUCT((Tableau6[Noms & Prenoms]=\"Shop Peyrissac\")*(Tableau6[[Code Réclamation  ]]=$A4)*(Tableau6[Types]=AB$2))","v":0},{"$f":"SUMPRODUCT((Tableau6[[Typologie ]]=\"Back Office\")*(Tableau6[[Date ]]=$A4)*(Tableau6[Requetes]=AC$2))","v":0},{"$f":"SUMPRODUCT((Tableau6[[Code Réclamation  ]]=\"Back Office\")*(Tableau6[[Typologie ]]=$A4)*(Tableau6[[Catégories ]]=AD$2))","v":0},{"$f":"SUMPRODUCT((Tableau6[Noms & Prenoms]=\"Back Office\")*(Tableau6[[Code Réclamation  ]]=$A4)*(Tableau6[Types]=AE$2))","v":0},{"$f":"SUMPRODUCT((Tableau6[[Typologie ]]=\"Front Office\")*(Tableau6[[Date ]]=$A4)*(Tableau6[Requetes]=AF$2))","v":0},{"$f":"SUMPRODUCT((Tableau6[[Code Réclamation  ]]=\"Front Office\")*(Tableau6[[Typologie ]]=$A4)*(Tableau6[[Catégories ]]=AG$2))","v":0},{"$f":"SUMPRODUCT((Tableau6[Noms & Prenoms]=\"Front Office\")*(Tableau6[[Code Réclamation  ]]=$A4)*(Tableau6[Types]=AH$2))","v":0},{"$f":"SUMPRODUCT((Tableau6[[Typologie ]]=\"Direction Générale\")*(Tableau6[[Date ]]=$A4)*(Tableau6[Requetes]=AI$2))","v":0},{"$f":"SUMPRODUCT((Tableau6[[Code Réclamation  ]]=\"Direction Générale\")*(Tableau6[[Typologie ]]=$A4)*(Tableau6[[Catégories ]]=AJ$2))","v":0},{"$f":"SUMPRODUCT((Tableau6[Noms & Prenoms]=\"Direction Générale\")*(Tableau6[[Code Réclamation  ]]=$A4)*(Tableau6[Types]=AK$2))","v":0}]
["2018-01-03",{"$f":"SUMPRODUCT((Tableau6[[Typologie ]]=\"Showroom Akwa\")*(Tableau6[[Date ]]=$A5)*(Tableau6[Requetes]=B$2))","v":0},{"$f":"SUMPRODUCT((Tableau6[[Typologie ]]=\"Showroom Akwa\")*(Tableau6[[Date ]]=$A5)*(Tableau6[Requetes]=C$2))","v":0},{"$f":"SUMPRODUCT((Tableau6[[Typologie ]]=\"Showroom Akwa\")*(Tableau6[[Date ]]=$A5)*(Tableau6[Requetes]=D$2))","v":0},{"$f":"SUMPRODUCT((Tableau6[[Typologie ]]=\"Showroom Bafoussam\")*(Tableau6[[Date ]]=$A5)*(Tableau6[Requetes]=E$2))","v":0},{"$f":"SUMPRODUCT((Tableau6[[Typologie ]]=\"Showroom Bafoussam\")*(Tableau6[[Date ]]=$A5)*(Tableau6[Requetes]=F$2))","v":0},{"$f":"SUMPRODUCT((Tableau6[[Typologie ]]=\"Showroom Bafoussam\")*(Tableau6[[Date ]]=$A5)*(Tableau6[Requetes]=G$2))","v":0},{"$f":"SUMPRODUCT((Tableau6[[Typologie ]]=\"Showroom Yaounde\")*(Tableau6[[Date ]]=$A5)*(Tableau6[Requetes]=H$2))","v":0},{"$f":"SUMPRODUCT((Tableau6[[Code Réclamation  ]]=\"Showroom Yaounde\")*(Tableau6[[Typologie ]]=$A5)*(Tableau6[[Catégories ]]=I$2))","v":0},{"$f":"SUMPRODUCT((Tableau6[Noms & Prenoms]=\"Showroom Yaounde\")*(Tableau6[[Code Réclamation  ]]=$A5)*(Tableau6[Types]=J$2))","v":0},{"$f":"SUMPRODUCT((Tableau6[[Typologie ]]=\"Showroom Bonamoussadi\")*(Tableau6[[Date ]]=$A5)*(Tableau6[Requetes]=K$2))","v":0},{"$f":"SUMPRODUCT((Tableau6[[Code Réclamation  ]]=\"Showroom Bonamoussadi\")*(Tableau6[[Typologie ]]=$A5)*(Tableau6[[Catégories ]]=L$2))","v":0},{"$f":"SUMPRODUCT((Tableau6[Noms & Prenoms]=\"Showroom Bonamoussadi\")*(Tableau6[[Code Réclamation  ]]=$A5)*(Tableau6[Types]=M$2))","v":0},{"$f":"SUMPRODUCT((Tableau6[[Typologie ]]=\"Showroom Bonanjo\")*(Tableau6[[Date ]]=$A5)*(Tableau6[Requetes]=N$2))","v":0},{"$f":"SUMPRODUCT((Tableau6[[Code Réclamation  ]]=\"Showroom Bonanjo\")*(Tableau6[[Typologie ]]=$A5)*(Tableau6[[Catégories ]]=O$2))","v":0},{"$f":"SUMPRODUCT((Tableau6[Noms & Prenoms]=\"Showroom Bonanjo\")*(Tableau6[[Code Réclamation  ]]=$A5)*(Tableau6[Types]=P$2))","v":0},{"$f":"SUMPRODUCT((Tableau6[[Typologie ]]=\"Showroom Garoua\")*(Tableau6[[Date ]]=$A5)*(Tableau6[Requetes]=Q$2))","v":0},{"$f":"SUMPRODUCT((Tableau6[[Code Réclamation  ]]=\"Showroom Garoua\")*(Tableau6[[Typologie ]]=$A5)*(Tableau6[[Catégories ]]=R$2))","v":0},{"$f":"SUMPRODUCT((Tableau6[Noms & Prenoms]=\"Showroom Garoua\")*(Tableau6[[Code Réclamation  ]]=$A5)*(Tableau6[Types]=S$2))","v":0},{"$f":"SUMPRODUCT((Tableau6[[Typologie ]]=\"Shop Bastos\")*(Tableau6[[Date ]]=$A5)*(Tableau6[Requetes]=T$2))","v":0},{"$f":"SUMPRODUCT((Tableau6[[Code Réclamation  ]]=\"Shop Bastos\")*(Tableau6[[Typologie ]]=$A5)*(Tableau6[[Catégories ]]=U$2))","v":0},{"$f":"SUMPRODUCT((Tableau6[Noms & Prenoms]=\"Shop Bastos\")*(Tableau6[[Code Réclamation  ]]=$A5)*(Tableau6[Types]=V$2))","v":0},{"$f":"SUMPRODUCT((Tableau6[[Typologie ]]=\"Shop Essos\")*(Tableau6[[Date ]]=$A5)*(Tableau6[Requetes]=W$2))","v":0},{"$f":"SUMPRODUCT((Tableau6[[Code Réclamation  ]]=\"Shop Essos\")*(Tableau6[[Typologie ]]=$A5)*(Tableau6[[Catégories ]]=X$2))","v":0},{"$f":"SUMPRODUCT((Tableau6[Noms & Prenoms]=\"Shop Essos\")*(Tableau6[[Code Réclamation  ]]=$A5)*(Tableau6[Types]=Y$2))","v":0},{"$f":"SUMPRODUCT((Tableau6[[Typologie ]]=\"Shop Peyrissac\")*(Tableau6[[Date ]]=$A5)*(Tableau6[Requetes]=Z$2))","v":0},{"$f":"SUMPRODUCT((Tableau6[[Code Réclamation  ]]=\"Shop Peyrissac\")*(Tableau6[[Typologie ]]=$A5)*(Tableau6[[Catégories ]]=AA$2))","v":0},{"$f":"SUMPRODUCT((Tableau6[Noms & Prenoms]=\"Shop Peyrissac\")*(Tableau6[[Code Réclamation  ]]=$A5)*(Tableau6[Types]=AB$2))","v":0},{"$f":"SUMPRODUCT((Tableau6[[Typologie ]]=\"Back Office\")*(Tableau6[[Date ]]=$A5)*(Tableau6[Requetes]=AC$2))","v":0},{"$f":"SUMPRODUCT((Tableau6[[Code Réclamation  ]]=\"Back Office\")*(Tableau6[[Typologie ]]=$A5)*(Tableau6[[Catégories ]]=AD$2))","v":0},{"$f":"SUMPRODUCT((Tableau6[Noms & Prenoms]=\"Back Office\")*(Tableau6[[Code Réclamation  ]]=$A5)*(Tableau6[Types]=AE$2))","v":0},{"$f":"SUMPRODUCT((Tableau6[[Typologie ]]=\"Front Office\")*(Tableau6[[Date ]]=$A5)*(Tableau6[Requetes]=AF$2))","v":0},{"$f":"SUMPRODUCT((Tableau6[[Code Réclamation  ]]=\"Front Office\")*(Tableau6[[Typologie ]]=$A5)*(Tableau6[[Catégories ]]=AG$2))","v":0},{"$f":"SUMPRODUCT((Tableau6[Noms & Prenoms]=\"Front Office\")*(Tableau6[[Code Réclamation  ]]=$A5)*(Tableau6[Types]=AH$2))","v":0},{"$f":"SUMPRODUCT((Tableau6[[Typologie ]]=\"Direction Générale\")*(Tableau6[[Date ]]=$A5)*(Tableau6[Requetes]=AI$2))","v":0},{"$f":"SUMPRODUCT((Tableau6[[Code Réclamation  ]]=\"Direction Générale\")*(Tableau6[[Typologie ]]=$A5)*(Tableau6[[Catégories ]]=AJ$2))","v":0},{"$f":"SUMPRODUCT((Tableau6[Noms & Prenoms]=\"Direction Générale\")*(Tableau6[[Code Réclamation  ]]=$A5)*(Tableau6[Types]=AK$2))","v":0}]
["2018-01-04",{"$f":"SUMPRODUCT((Tableau6[[Typologie ]]=\"Showroom Akwa\")*(Tableau6[[Date ]]=$A6)*(Tableau6[Requetes]=B$2))","v":0},{"$f":"SUMPRODUCT((Tableau6[[Typologie ]]=\"Showroom Akwa\")*(Tableau6[[Date ]]=$A6)*(Tableau6[Requetes]=C$2))","v":0},{"$f":"SUMPRODUCT((Tableau6[[Typologie ]]=\"Showroom Akwa\")*(Tableau6[[Date ]]=$A6)*(Tableau6[Requetes]=D$2))","v":0},{"$f":"SUMPRODUCT((Tableau6[[Typologie ]]=\"Showroom Bafoussam\")*(Tableau6[[Date ]]=$A6)*(Tableau6[Requetes]=E$2))","v":0},{"$f":"SUMPRODUCT((Tableau6[[Typologie ]]=\"Showroom Bafoussam\")*(Tableau6[[Date ]]=$A6)*(Tableau6[Requetes]=F$2))","v":0},{"$f":"SUMPRODUCT((Tableau6[[Typologie ]]=\"Showroom Bafoussam\")*(Tableau6[[Date ]]=$A6)*(Tableau6[Requetes]=G$2))","v":0},{"$f":"SUMPRODUCT((Tableau6[[Typologie ]]=\"Showroom Yaounde\")*(Tableau6[[Date ]]=$A6)*(Tableau6[Requetes]=H$2))","v":0},{"$f":"SUMPRODUCT((Tableau6[[Code Réclamation  ]]=\"Showroom Yaounde\")*(Tableau6[[Typologie ]]=$A6)*(Tableau6[[Catégories ]]=I$2))","v":0},{"$f":"SUMPRODUCT((Tableau6[Noms & Prenoms]=\"Showroom Yaounde\")*(Tableau6[[Code Réclamation  ]]=$A6)*(Tableau6[Types]=J$2))","v":0},{"$f":"SUMPRODUCT((Tableau6[[Typologie ]]=\"Showroom Bonamoussadi\")*(Tableau6[[Date ]]=$A6)*(Tableau6[Requetes]=K$2))","v":0},{"$f":"SUMPRODUCT((Tableau6[[Code Réclamation  ]]=\"Showroom Bonamoussadi\")*(Tableau6[[Typologie ]]=$A6)*(Tableau6[[Catégories ]]=L$2))","v":0},{"$f":"SUMPRODUCT((Tableau6[Noms & Prenoms]=\"Showroom Bonamoussadi\")*(Tableau6[[Code Réclamation  ]]=$A6)*(Tableau6[Types]=M$2))","v":0},{"$f":"SUMPRODUCT((Tableau6[[Typologie ]]=\"Showroom Bonanjo\")*(Tableau6[[Date ]]=$A6)*(Tableau6[Requetes]=N$2))","v":0},{"$f":"SUMPRODUCT((Tableau6[[Code Réclamation  ]]=\"Showroom Bonanjo\")*(Tableau6[[Typologie ]]=$A6)*(Tableau6[[Catégories ]]=O$2))","v":0},{"$f":"SUMPRODUCT((Tableau6[Noms & Prenoms]=\"Showroom Bonanjo\")*(Tableau6[[Code Réclamation  ]]=$A6)*(Tableau6[Types]=P$2))","v":0},{"$f":"SUMPRODUCT((Tableau6[[Typologie ]]=\"Showroom Garoua\")*(Tableau6[[Date ]]=$A6)*(Tableau6[Requetes]=Q$2))","v":0},{"$f":"SUMPRODUCT((Tableau6[[Code Réclamation  ]]=\"Showroom Garoua\")*(Tableau6[[Typologie ]]=$A6)*(Tableau6[[Catégories ]]=R$2))","v":0},{"$f":"SUMPRODUCT((Tableau6[Noms & Prenoms]=\"Showroom Garoua\")*(Tableau6[[Code Réclamation  ]]=$A6)*(Tableau6[Types]=S$2))","v":0},{"$f":"SUMPRODUCT((Tableau6[[Typologie ]]=\"Shop Bastos\")*(Tableau6[[Date ]]=$A6)*(Tableau6[Requetes]=T$2))","v":0},{"$f":"SUMPRODUCT((Tableau6[[Code Réclamation  ]]=\"Shop Bastos\")*(Tableau6[[Typologie ]]=$A6)*(Tableau6[[Catégories ]]=U$2))","v":0},{"$f":"SUMPRODUCT((Tableau6[Noms & Prenoms]=\"Shop Bastos\")*(Tableau6[[Code Réclamation  ]]=$A6)*(Tableau6[Types]=V$2))","v":0},{"$f":"SUMPRODUCT((Tableau6[[Typologie ]]=\"Shop Essos\")*(Tableau6[[Date ]]=$A6)*(Tableau6[Requetes]=W$2))","v":0},{"$f":"SUMPRODUCT((Tableau6[[Code Réclamation  ]]=\"Shop Essos\")*(Tableau6[[Typologie ]]=$A6)*(Tableau6[[Catégories ]]=X$2))","v":0},{"$f":"SUMPRODUCT((Tableau6[Noms & Prenoms]=\"Shop Essos\")*(Tableau6[[Code Réclamation  ]]=$A6)*(Tableau6[Types]=Y$2))","v":0},{"$f":"SUMPRODUCT((Tableau6[[Typologie ]]=\"Shop Peyrissac\")*(Tableau6[[Date ]]=$A6)*(Tableau6[Requetes]=Z$2))","v":0},{"$f":"SUMPRODUCT((Tableau6[[Code Réclamation  ]]=\"Shop Peyrissac\")*(Tableau6[[Typologie ]]=$A6)*(Tableau6[[Catégories ]]=AA$2))","v":0},{"$f":"SUMPRODUCT((Tableau6[Noms & Prenoms]=\"Shop Peyrissac\")*(Tableau6[[Code Réclamation  ]]=$A6)*(Tableau6[Types]=AB$2))","v":0},{"$f":"SUMPRODUCT((Tableau6[[Typologie ]]=\"Back Office\")*(Tableau6[[Date ]]=$A6)*(Tableau6[Requetes]=AC$2))","v":0},{"$f":"SUMPRODUCT((Tableau6[[Code Réclamation  ]]=\"Back Office\")*(Tableau6[[Typologie ]]=$A6)*(Tableau6[[Catégories ]]=AD$2))","v":0},{"$f":"SUMPRODUCT((Tableau6[Noms & Prenoms]=\"Back Office\")*(Tableau6[[Code Réclamation  ]]=$A6)*(Tableau6[Types]=AE$2))","v":0},{"$f":"SUMPRODUCT((Tableau6[[Typologie ]]=\"Front Office\")*(Tableau6[[Date ]]=$A6)*(Tableau6[Requetes]=AF$2))","v":0},{"$f":"SUMPRODUCT((Tableau6[[Code Réclamation  ]]=\"Front Office\")*(Tableau6[[Typologie ]]=$A6)*(Tableau6[[Catégories ]]=AG$2))","v":0},{"$f":"SUMPRODUCT((Tableau6[Noms & Prenoms]=\"Front Office\")*(Tableau6[[Code Réclamation  ]]=$A6)*(Tableau6[Types]=AH$2))","v":0},{"$f":"SUMPRODUCT((Tableau6[[Typologie ]]=\"Direction Générale\")*(Tableau6[[Date ]]=$A6)*(Tableau6[Requetes]=AI$2))","v":0},{"$f":"SUMPRODUCT((Tableau6[[Code Réclamation  ]]=\"Direction Générale\")*(Tableau6[[Typologie ]]=$A6)*(Tableau6[[Catégories ]]=AJ$2))","v":0},{"$f":"SUMPRODUCT((Tableau6[Noms & Prenoms]=\"Direction Générale\")*(Tableau6[[Code Réclamation  ]]=$A6)*(Tableau6[Types]=AK$2))","v":0}]
["2018-01-05",{"$f":"SUMPRODUCT((Tableau6[[Typologie ]]=\"Showroom Akwa\")*(Tableau6[[Date ]]=$A7)*(Tableau6[Requetes]=B$2))","v":0},{"$f":"SUMPRODUCT((Tableau6[[Typologie ]]=\"Showroom Akwa\")*(Tableau6[[Date ]]=$A7)*(Tableau6[Requetes]=C$2))","v":0},{"$f":"SUMPRODUCT((Tableau6[[Typologie ]]=\"Showroom Akwa\")*(Tableau6[[Date ]]=$A7)*(Tableau6[Requetes]=D$2))","v":0},{"$f":"SUMPRODUCT((Tableau6[[Typologie ]]=\"Showroom Bafoussam\")*(Tableau6[[Date ]]=$A7)*(Tableau6[Requetes]=E$2))","v":0},{"$f":"SUMPRODUCT((Tableau6[[Typologie ]]=\"Showroom Bafoussam\")*(Tableau6[[Date ]]=$A7)*(Tableau6[Requetes]=F$2))","v":0},{"$f":"SUMPRODUCT((Tableau6[[Typologie ]]=\"Showroom Bafoussam\")*(Tableau6[[Date ]]=$A7)*(Tableau6[Requetes]=G$2))","v":0},{"$f":"SUMPRODUCT((Tableau6[[Typologie ]]=\"Showroom Yaounde\")*(Tableau6[[Date ]]=$A7)*(Tableau6[Requetes]=H$2))","v":0},{"$f":"SUMPRODUCT((Tableau6[[Code Réclamation  ]]=\"Showroom Yaounde\")*(Tableau6[[Typologie ]]=$A7)*(Tableau6[[Catégories ]]=I$2))","v":0},{"$f":"SUMPRODUCT((Tableau6[Noms & Prenoms]=\"Showroom Yaounde\")*(Tableau6[[Code Réclamation  ]]=$A7)*(Tableau6[Types]=J$2))","v":0},{"$f":"SUMPRODUCT((Tableau6[[Typologie ]]=\"Showroom Bonamoussadi\")*(Tableau6[[Date ]]=$A7)*(Tableau6[Requetes]=K$2))","v":0},{"$f":"SUMPRODUCT((Tableau6[[Code Réclamation  ]]=\"Showroom Bonamoussadi\")*(Tableau6[[Typologie ]]=$A7)*(Tableau6[[Catégories ]]=L$2))","v":0},{"$f":"SUMPRODUCT((Tableau6[Noms & Prenoms]=\"Showroom Bonamoussadi\")*(Tableau6[[Code Réclamation  ]]=$A7)*(Tableau6[Types]=M$2))","v":0},{"$f":"SUMPRODUCT((Tableau6[[Typologie ]]=\"Showroom Bonanjo\")*(Tableau6[[Date ]]=$A7)*(Tableau6[Requetes]=N$2))","v":0},{"$f":"SUMPRODUCT((Tableau6[[Code Réclamation  ]]=\"Showroom Bonanjo\")*(Tableau6[[Typologie ]]=$A7)*(Tableau6[[Catégories ]]=O$2))","v":0},{"$f":"SUMPRODUCT((Tableau6[Noms & Prenoms]=\"Showroom Bonanjo\")*(Tableau6[[Code Réclamation  ]]=$A7)*(Tableau6[Types]=P$2))","v":0},{"$f":"SUMPRODUCT((Tableau6[[Typologie ]]=\"Showroom Garoua\")*(Tableau6[[Date ]]=$A7)*(Tableau6[Requetes]=Q$2))","v":0},{"$f":"SUMPRODUCT((Tableau6[[Code Réclamation  ]]=\"Showroom Garoua\")*(Tableau6[[Typologie ]]=$A7)*(Tableau6[[Catégories ]]=R$2))","v":0},{"$f":"SUMPRODUCT((Tableau6[Noms & Prenoms]=\"Showroom Garoua\")*(Tableau6[[Code Réclamation  ]]=$A7)*(Tableau6[Types]=S$2))","v":0},{"$f":"SUMPRODUCT((Tableau6[[Typologie ]]=\"Shop Bastos\")*(Tableau6[[Date ]]=$A7)*(Tableau6[Requetes]=T$2))","v":0},{"$f":"SUMPRODUCT((Tableau6[[Code Réclamation  ]]=\"Shop Bastos\")*(Tableau6[[Typologie ]]=$A7)*(Tableau6[[Catégories ]]=U$2))","v":0},{"$f":"SUMPRODUCT((Tableau6[Noms & Prenoms]=\"Shop Bastos\")*(Tableau6[[Code Réclamation  ]]=$A7)*(Tableau6[Types]=V$2))","v":0},{"$f":"SUMPRODUCT((Tableau6[[Typologie ]]=\"Shop Essos\")*(Tableau6[[Date ]]=$A7)*(Tableau6[Requetes]=W$2))","v":0},{"$f":"SUMPRODUCT((Tableau6[[Code Réclamation  ]]=\"Shop Essos\")*(Tableau6[[Typologie ]]=$A7)*(Tableau6[[Catégories ]]=X$2))","v":0},{"$f":"SUMPRODUCT((Tableau6[Noms & Prenoms]=\"Shop Essos\")*(Tableau6[[Code Réclamation  ]]=$A7)*(Tableau6[Types]=Y$2))","v":0},{"$f":"SUMPRODUCT((Tableau6[[Typologie ]]=\"Shop Peyrissac\")*(Tableau6[[Date ]]=$A7)*(Tableau6[Requetes]=Z$2))","v":0},{"$f":"SUMPRODUCT((Tableau6[[Code Réclamation  ]]=\"Shop Peyrissac\")*(Tableau6[[Typologie ]]=$A7)*(Tableau6[[Catégories ]]=AA$2))","v":0},{"$f":"SUMPRODUCT((Tableau6[Noms & Prenoms]=\"Shop Peyrissac\")*(Tableau6[[Code Réclamation  ]]=$A7)*(Tableau6[Types]=AB$2))","v":0},{"$f":"SUMPRODUCT((Tableau6[[Typologie ]]=\"Back Office\")*(Tableau6[[Date ]]=$A7)*(Tableau6[Requetes]=AC$2))","v":0},{"$f":"SUMPRODUCT((Tableau6[[Code Réclamation  ]]=\"Back Office\")*(Tableau6[[Typologie ]]=$A7)*(Tableau6[[Catégories ]]=AD$2))","v":0},{"$f":"SUMPRODUCT((Tableau6[Noms & Prenoms]=\"Back Office\")*(Tableau6[[Code Réclamation  ]]=$A7)*(Tableau6[Types]=AE$2))","v":0},{"$f":"SUMPRODUCT((Tableau6[[Typologie ]]=\"Front Office\")*(Tableau6[[Date ]]=$A7)*(Tableau6[Requetes]=AF$2))","v":0},{"$f":"SUMPRODUCT((Tableau6[[Code Réclamation  ]]=\"Front Office\")*(Tableau6[[Typologie ]]=$A7)*(Tableau6[[Catégories ]]=AG$2))","v":0},{"$f":"SUMPRODUCT((Tableau6[Noms & Prenoms]=\"Front Office\")*(Tableau6[[Code Réclamation  ]]=$A7)*(Tableau6[Types]=AH$2))","v":0},{"$f":"SUMPRODUCT((Tableau6[[Typologie ]]=\"Direction Générale\")*(Tableau6[[Date ]]=$A7)*(Tableau6[Requetes]=AI$2))","v":0},{"$f":"SUMPRODUCT((Tableau6[[Code Réclamation  ]]=\"Direction Générale\")*(Tableau6[[Typologie ]]=$A7)*(Tableau6[[Catégories ]]=AJ$2))","v":0},{"$f":"SUMPRODUCT((Tableau6[Noms & Prenoms]=\"Direction Générale\")*(Tableau6[[Code Réclamation  ]]=$A7)*(Tableau6[Types]=AK$2))","v":0}]
["2018-01-06",{"$f":"SUMPRODUCT((Tableau6[[Typologie ]]=\"Showroom Akwa\")*(Tableau6[[Date ]]=$A8)*(Tableau6[Requetes]=B$2))","v":0},{"$f":"SUMPRODUCT((Tableau6[[Typologie ]]=\"Showroom Akwa\")*(Tableau6[[Date ]]=$A8)*(Tableau6[Requetes]=C$2))","v":0},{"$f":"SUMPRODUCT((Tableau6[[Typologie ]]=\"Showroom Akwa\")*(Tableau6[[Date ]]=$A8)*(Tableau6[Requetes]=D$2))","v":0},{"$f":"SUMPRODUCT((Tableau6[[Typologie ]]=\"Showroom Bafoussam\")*(Tableau6[[Date ]]=$A8)*(Tableau6[Requetes]=E$2))","v":0},{"$f":"SUMPRODUCT((Tableau6[[Typologie ]]=\"Showroom Bafoussam\")*(Tableau6[[Date ]]=$A8)*(Tableau6[Requetes]=F$2))","v":0},{"$f":"SUMPRODUCT((Tableau6[[Typologie ]]=\"Showroom Bafoussam\")*(Tableau6[[Date ]]=$A8)*(Tableau6[Requetes]=G$2))","v":0},{"$f":"SUMPRODUCT((Tableau6[[Typologie ]]=\"Showroom Yaounde\")*(Tableau6[[Date ]]=$A8)*(Tableau6[Requetes]=H$2))","v":0},{"$f":"SUMPRODUCT((Tableau6[[Code Réclamation  ]]=\"Showroom Yaounde\")*(Tableau6[[Typologie ]]=$A8)*(Tableau6[[Catégories ]]=I$2))","v":0},{"$f":"SUMPRODUCT((Tableau6[Noms & Prenoms]=\"Showroom Yaounde\")*(Tableau6[[Code Réclamation  ]]=$A8)*(Tableau6[Types]=J$2))","v":0},{"$f":"SUMPRODUCT((Tableau6[[Typologie ]]=\"Showroom Bonamoussadi\")*(Tableau6[[Date ]]=$A8)*(Tableau6[Requetes]=K$2))","v":0},{"$f":"SUMPRODUCT((Tableau6[[Code Réclamation  ]]=\"Showroom Bonamoussadi\")*(Tableau6[[Typologie ]]=$A8)*(Tableau6[[Catégories ]]=L$2))","v":0},{"$f":"SUMPRODUCT((Tableau6[Noms & Prenoms]=\"Showroom Bonamoussadi\")*(Tableau6[[Code Réclamation  ]]=$A8)*(Tableau6[Types]=M$2))","v":0},{"$f":"SUMPRODUCT((Tableau6[[Typologie ]]=\"Showroom Bonanjo\")*(Tableau6[[Date ]]=$A8)*(Tableau6[Requetes]=N$2))","v":0},{"$f":"SUMPRODUCT((Tableau6[[Code Réclamation  ]]=\"Showroom Bonanjo\")*(Tableau6[[Typologie ]]=$A8)*(Tableau6[[Catégories ]]=O$2))","v":0},{"$f":"SUMPRODUCT((Tableau6[Noms & Prenoms]=\"Showroom Bonanjo\")*(Tableau6[[Code Réclamation  ]]=$A8)*(Tableau6[Types]=P$2))","v":0},{"$f":"SUMPRODUCT((Tableau6[[Typologie ]]=\"Showroom Garoua\")*(Tableau6[[Date ]]=$A8)*(Tableau6[Requetes]=Q$2))","v":0},{"$f":"SUMPRODUCT((Tableau6[[Code Réclamation  ]]=\"Showroom Garoua\")*(Tableau6[[Typologie ]]=$A8)*(Tableau6[[Catégories ]]=R$2))","v":0},{"$f":"SUMPRODUCT((Tableau6[Noms & Prenoms]=\"Showroom Garoua\")*(Tableau6[[Code Réclamation  ]]=$A8)*(Tableau6[Types]=S$2))","v":0},{"$f":"SUMPRODUCT((Tableau6[[Typologie ]]=\"Shop Bastos\")*(Tableau6[[Date ]]=$A8)*(Tableau6[Requetes]=T$2))","v":0},{"$f":"SUMPRODUCT((Tableau6[[Code Réclamation  ]]=\"Shop Bastos\")*(Tableau6[[Typologie ]]=$A8)*(Tableau6[[Catégories ]]=U$2))","v":0},{"$f":"SUMPRODUCT((Tableau6[Noms & Prenoms]=\"Shop Bastos\")*(Tableau6[[Code Réclamation  ]]=$A8)*(Tableau6[Types]=V$2))","v":0},{"$f":"SUMPRODUCT((Tableau6[[Typologie ]]=\"Shop Essos\")*(Tableau6[[Date ]]=$A8)*(Tableau6[Requetes]=W$2))","v":0},{"$f":"SUMPRODUCT((Tableau6[[Code Réclamation  ]]=\"Shop Essos\")*(Tableau6[[Typologie ]]=$A8)*(Tableau6[[Catégories ]]=X$2))","v":0},{"$f":"SUMPRODUCT((Tableau6[Noms & Prenoms]=\"Shop Essos\")*(Tableau6[[Code Réclamation  ]]=$A8)*(Tableau6[Types]=Y$2))","v":0},{"$f":"SUMPRODUCT((Tableau6[[Typologie ]]=\"Shop Peyrissac\")*(Tableau6[[Date ]]=$A8)*(Tableau6[Requetes]=Z$2))","v":0},{"$f":"SUMPRODUCT((Tableau6[[Code Réclamation  ]]=\"Shop Peyrissac\")*(Tableau6[[Typologie ]]=$A8)*(Tableau6[[Catégories ]]=AA$2))","v":0},{"$f":"SUMPRODUCT((Tableau6[Noms & Prenoms]=\"Shop Peyrissac\")*(Tableau6[[Code Réclamation  ]]=$A8)*(Tableau6[Types]=AB$2))","v":0},{"$f":"SUMPRODUCT((Tableau6[[Typologie ]]=\"Back Office\")*(Tableau6[[Date ]]=$A8)*(Tableau6[Requetes]=AC$2))","v":0},{"$f":"SUMPRODUCT((Tableau6[[Code Réclamation  ]]=\"Back Office\")*(Tableau6[[Typologie ]]=$A8)*(Tableau6[[Catégories ]]=AD$2))","v":0},{"$f":"SUMPRODUCT((Tableau6[Noms & Prenoms]=\"Back Office\")*(Tableau6[[Code Réclamation  ]]=$A8)*(Tableau6[Types]=AE$2))","v":0},{"$f":"SUMPRODUCT((Tableau6[[Typologie ]]=\"Front Office\")*(Tableau6[[Date ]]=$A8)*(Tableau6[Requetes]=AF$2))","v":0},{"$f":"SUMPRODUCT((Tableau6[[Code Réclamation  ]]=\"Front Office\")*(Tableau6[[Typologie ]]=$A8)*(Tableau6[[Catégories ]]=AG$2))","v":0},{"$f":"SUMPRODUCT((Tableau6[Noms & Prenoms]=\"Front Office\")*(Tableau6[[Code Réclamation  ]]=$A8)*(Tableau6[Types]=AH$2))","v":0},{"$f":"SUMPRODUCT((Tableau6[[Typologie ]]=\"Direction Générale\")*(Tableau6[[Date ]]=$A8)*(Tableau6[Requetes]=AI$2))","v":0},{"$f":"SUMPRODUCT((Tableau6[[Code Réclamation  ]]=\"Direction Générale\")*(Tableau6[[Typologie ]]=$A8)*(Tableau6[[Catégories ]]=AJ$2))","v":0},{"$f":"SUMPRODUCT((Tableau6[Noms & Prenoms]=\"Direction Générale\")*(Tableau6[[Code Réclamation  ]]=$A8)*(Tableau6[Types]=AK$2))","v":0}]
["2018-01-07",{"$f":"SUMPRODUCT((Tableau6[[Typologie ]]=\"Showroom Akwa\")*(Tableau6[[Date ]]=$A9)*(Tableau6[Requetes]=B$2))","v":0},{"$f":"SUMPRODUCT((Tableau6[[Typologie ]]=\"Showroom Akwa\")*(Tableau6[[Date ]]=$A9)*(Tableau6[Requetes]=C$2))","v":0},{"$f":"SUMPRODUCT((Tableau6[[Typologie ]]=\"Showroom Akwa\")*(Tableau6[[Date ]]=$A9)*(Tableau6[Requetes]=D$2))","v":0},{"$f":"SUMPRODUCT((Tableau6[[Typologie ]]=\"Showroom Bafoussam\")*(Tableau6[[Date ]]=$A9)*(Tableau6[Requetes]=E$2))","v":0},{"$f":"SUMPRODUCT((Tableau6[[Typologie ]]=\"Showroom Bafoussam\")*(Tableau6[[Date ]]=$A9)*(Tableau6[Requetes]=F$2))","v":0},{"$f":"SUMPRODUCT((Tableau6[[Typologie ]]=\"Showroom Bafoussam\")*(Tableau6[[Date ]]=$A9)*(Tableau6[Requetes]=G$2))","v":0},{"$f":"SUMPRODUCT((Tableau6[[Typologie ]]=\"Showroom Yaounde\")*(Tableau6[[Date ]]=$A9)*(Tableau6[Requetes]=H$2))","v":0},{"$f":"SUMPRODUCT((Tableau6[[Code Réclamation  ]]=\"Showroom Yaounde\")*(Tableau6[[Typologie ]]=$A9)*(Tableau6[[Catégories ]]=I$2))","v":0},{"$f":"SUMPRODUCT((Tableau6[Noms & Prenoms]=\"Showroom Yaounde\")*(Tableau6[[Code Réclamation  ]]=$A9)*(Tableau6[Types]=J$2))","v":0},{"$f":"SUMPRODUCT((Tableau6[[Typologie ]]=\"Showroom Bonamoussadi\")*(Tableau6[[Date ]]=$A9)*(Tableau6[Requetes]=K$2))","v":0},{"$f":"SUMPRODUCT((Tableau6[[Code Réclamation  ]]=\"Showroom Bonamoussadi\")*(Tableau6[[Typologie ]]=$A9)*(Tableau6[[Catégories ]]=L$2))","v":0},{"$f":"SUMPRODUCT((Tableau6[Noms & Prenoms]=\"Showroom Bonamoussadi\")*(Tableau6[[Code Réclamation  ]]=$A9)*(Tableau6[Types]=M$2))","v":0},{"$f":"SUMPRODUCT((Tableau6[[Typologie ]]=\"Showroom Bonanjo\")*(Tableau6[[Date ]]=$A9)*(Tableau6[Requetes]=N$2))","v":0},{"$f":"SUMPRODUCT((Tableau6[[Code Réclamation  ]]=\"Showroom Bonanjo\")*(Tableau6[[Typologie ]]=$A9)*(Tableau6[[Catégories ]]=O$2))","v":0},{"$f":"SUMPRODUCT((Tableau6[Noms & Prenoms]=\"Showroom Bonanjo\")*(Tableau6[[Code Réclamation  ]]=$A9)*(Tableau6[Types]=P$2))","v":0},{"$f":"SUMPRODUCT((Tableau6[[Typologie ]]=\"Showroom Garoua\")*(Tableau6[[Date ]]=$A9)*(Tableau6[Requetes]=Q$2))","v":0},{"$f":"SUMPRODUCT((Tableau6[[Code Réclamation  ]]=\"Showroom Garoua\")*(Tableau6[[Typologie ]]=$A9)*(Tableau6[[Catégories ]]=R$2))","v":0},{"$f":"SUMPRODUCT((Tableau6[Noms & Prenoms]=\"Showroom Garoua\")*(Tableau6[[Code Réclamation  ]]=$A9)*(Tableau6[Types]=S$2))","v":0},{"$f":"SUMPRODUCT((Tableau6[[Typologie ]]=\"Shop Bastos\")*(Tableau6[[Date ]]=$A9)*(Tableau6[Requetes]=T$2))","v":0},{"$f":"SUMPRODUCT((Tableau6[[Code Réclamation  ]]=\"Shop Bastos\")*(Tableau6[[Typologie ]]=$A9)*(Tableau6[[Catégories ]]=U$2))","v":0},{"$f":"SUMPRODUCT((Tableau6[Noms & Prenoms]=\"Shop Bastos\")*(Tableau6[[Code Réclamation  ]]=$A9)*(Tableau6[Types]=V$2))","v":0},{"$f":"SUMPRODUCT((Tableau6[[Typologie ]]=\"Shop Essos\")*(Tableau6[[Date ]]=$A9)*(Tableau6[Requetes]=W$2))","v":0},{"$f":"SUMPRODUCT((Tableau6[[Code Réclamation  ]]=\"Shop Essos\")*(Tableau6[[Typologie ]]=$A9)*(Tableau6[[Catégories ]]=X$2))","v":0},{"$f":"SUMPRODUCT((Tableau6[Noms & Prenoms]=\"Shop Essos\")*(Tableau6[[Code Réclamation  ]]=$A9)*(Tableau6[Types]=Y$2))","v":0},{"$f":"SUMPRODUCT((Tableau6[[Typologie ]]=\"Shop Peyrissac\")*(Tableau6[[Date ]]=$A9)*(Tableau6[Requetes]=Z$2))","v":0},{"$f":"SUMPRODUCT((Tableau6[[Code Réclamation  ]]=\"Shop Peyrissac\")*(Tableau6[[Typologie ]]=$A9)*(Tableau6[[Catégories ]]=AA$2))","v":0},{"$f":"SUMPRODUCT((Tableau6[Noms & Prenoms]=\"Shop Peyrissac\")*(Tableau6[[Code Réclamation  ]]=$A9)*(Tableau6[Types]=AB$2))","v":0},{"$f":"SUMPRODUCT((Tableau6[[Typologie ]]=\"Back Office\")*(Tableau6[[Date ]]=$A9)*(Tableau6[Requetes]=AC$2))","v":0},{"$f":"SUMPRODUCT((Tableau6[[Code Réclamation  ]]=\"Back Office\")*(Tableau6[[Typologie ]]=$A9)*(Tableau6[[Catégories ]]=AD$2))","v":0},{"$f":"SUMPRODUCT((Tableau6[Noms & Prenoms]=\"Back Office\")*(Tableau6[[Code Réclamation  ]]=$A9)*(Tableau6[Types]=AE$2))","v":0},{"$f":"SUMPRODUCT((Tableau6[[Typologie ]]=\"Front Office\")*(Tableau6[[Date ]]=$A9)*(Tableau6[Requetes]=AF$2))","v":0},{"$f":"SUMPRODUCT((Tableau6[[Code Réclamation  ]]=\"Front Office\")*(Tableau6[[Typologie ]]=$A9)*(Tableau6[[Catégories ]]=AG$2))","v":0},{"$f":"SUMPRODUCT((Tableau6[Noms & Prenoms]=\"Front Office\")*(Tableau6[[Code Réclamation  ]]=$A9)*(Tableau6[Types]=AH$2))","v":0},{"$f":"SUMPRODUCT((Tableau6[[Typologie ]]=\"Direction Générale\")*(Tableau6[[Date ]]=$A9)*(Tableau6[Requetes]=AI$2))","v":0},{"$f":"SUMPRODUCT((Tableau6[[Code Réclamation  ]]=\"Direction Générale\")*(Tableau6[[Typologie ]]=$A9)*(Tableau6[[Catégories ]]=AJ$2))","v":0},{"$f":"SUMPRODUCT((Tableau6[Noms & Prenoms]=\"Direction Générale\")*(Tableau6[[Code Réclamation  ]]=$A9)*(Tableau6[Types]=AK$2))","v":0}]
["2018-01-08",{"$f":"SUMPRODUCT((Tableau6[[Typologie ]]=\"Showroom Akwa\")*(Tableau6[[Date ]]=$A10)*(Tableau6[Requetes]=B$2))","v":0},{"$f":"SUMPRODUCT((Tableau6[[Typologie ]]=\"Showroom Akwa\")*(Tableau6[[Date ]]=$A10)*(Tableau6[Requetes]=C$2))","v":0},{"$f":"SUMPRODUCT((Tableau6[[Typologie ]]=\"Showroom Akwa\")*(Tableau6[[Date ]]=$A10)*(Tableau6[Requetes]=D$2))","v":0},{"$f":"SUMPRODUCT((Tableau6[[Typologie ]]=\"Showroom Bafoussam\")*(Tableau6[[Date ]]=$A10)*(Tableau6[Requetes]=E$2))","v":0},{"$f":"SUMPRODUCT((Tableau6[[Typologie ]]=\"Showroom Bafoussam\")*(Tableau6[[Date ]]=$A10)*(Tableau6[Requetes]=F$2))","v":0},{"$f":"SUMPRODUCT((Tableau6[[Typologie ]]=\"Showroom Bafoussam\")*(Tableau6[[Date ]]=$A10)*(Tableau6[Requetes]=G$2))","v":0},{"$f":"SUMPRODUCT((Tableau6[[Typologie ]]=\"Showroom Yaounde\")*(Tableau6[[Date ]]=$A10)*(Tableau6[Requetes]=H$2))","v":0},{"$f":"SUMPRODUCT((Tableau6[[Code Réclamation  ]]=\"Showroom Yaounde\")*(Tableau6[[Typologie ]]=$A10)*(Tableau6[[Catégories ]]=I$2))","v":0},{"$f":"SUMPRODUCT((Tableau6[Noms & Prenoms]=\"Showroom Yaounde\")*(Tableau6[[Code Réclamation  ]]=$A10)*(Tableau6[Types]=J$2))","v":0},{"$f":"SUMPRODUCT((Tableau6[[Typologie ]]=\"Showroom Bonamoussadi\")*(Tableau6[[Date ]]=$A10)*(Tableau6[Requetes]=K$2))","v":0},{"$f":"SUMPRODUCT((Tableau6[[Code Réclamation  ]]=\"Showroom Bonamoussadi\")*(Tableau6[[Typologie ]]=$A10)*(Tableau6[[Catégories ]]=L$2))","v":0},{"$f":"SUMPRODUCT((Tableau6[Noms & Prenoms]=\"Showroom Bonamoussadi\")*(Tableau6[[Code Réclamation  ]]=$A10)*(Tableau6[Types]=M$2))","v":0},{"$f":"SUMPRODUCT((Tableau6[[Typologie ]]=\"Showroom Bonanjo\")*(Tableau6[[Date ]]=$A10)*(Tableau6[Requetes]=N$2))","v":0},{"$f":"SUMPRODUCT((Tableau6[[Code Réclamation  ]]=\"Showroom Bonanjo\")*(Tableau6[[Typologie ]]=$A10)*(Tableau6[[Catégories ]]=O$2))","v":0},{"$f":"SUMPRODUCT((Tableau6[Noms & Prenoms]=\"Showroom Bonanjo\")*(Tableau6[[Code Réclamation  ]]=$A10)*(Tableau6[Types]=P$2))","v":0},{"$f":"SUMPRODUCT((Tableau6[[Typologie ]]=\"Showroom Garoua\")*(Tableau6[[Date ]]=$A10)*(Tableau6[Requetes]=Q$2))","v":0},{"$f":"SUMPRODUCT((Tableau6[[Code Réclamation  ]]=\"Showroom Garoua\")*(Tableau6[[Typologie ]]=$A10)*(Tableau6[[Catégories ]]=R$2))","v":0},{"$f":"SUMPRODUCT((Tableau6[Noms & Prenoms]=\"Showroom Garoua\")*(Tableau6[[Code Réclamation  ]]=$A10)*(Tableau6[Types]=S$2))","v":0},{"$f":"SUMPRODUCT((Tableau6[[Typologie ]]=\"Shop Bastos\")*(Tableau6[[Date ]]=$A10)*(Tableau6[Requetes]=T$2))","v":0},{"$f":"SUMPRODUCT((Tableau6[[Code Réclamation  ]]=\"Shop Bastos\")*(Tableau6[[Typologie ]]=$A10)*(Tableau6[[Catégories ]]=U$2))","v":0},{"$f":"SUMPRODUCT((Tableau6[Noms & Prenoms]=\"Shop Bastos\")*(Tableau6[[Code Réclamation  ]]=$A10)*(Tableau6[Types]=V$2))","v":0},{"$f":"SUMPRODUCT((Tableau6[[Typologie ]]=\"Shop Essos\")*(Tableau6[[Date ]]=$A10)*(Tableau6[Requetes]=W$2))","v":0},{"$f":"SUMPRODUCT((Tableau6[[Code Réclamation  ]]=\"Shop Essos\")*(Tableau6[[Typologie ]]=$A10)*(Tableau6[[Catégories ]]=X$2))","v":0},{"$f":"SUMPRODUCT((Tableau6[Noms & Prenoms]=\"Shop Essos\")*(Tableau6[[Code Réclamation  ]]=$A10)*(Tableau6[Types]=Y$2))","v":0},{"$f":"SUMPRODUCT((Tableau6[[Typologie ]]=\"Shop Peyrissac\")*(Tableau6[[Date ]]=$A10)*(Tableau6[Requetes]=Z$2))","v":0},{"$f":"SUMPRODUCT((Tableau6[[Code Réclamation  ]]=\"Shop Peyrissac\")*(Tableau6[[Typologie ]]=$A10)*(Tableau6[[Catégories ]]=AA$2))","v":0},{"$f":"SUMPRODUCT((Tableau6[Noms & Prenoms]=\"Shop Peyrissac\")*(Tableau6[[Code Réclamation  ]]=$A10)*(Tableau6[Types]=AB$2))","v":0},{"$f":"SUMPRODUCT((Tableau6[[Typologie ]]=\"Back Office\")*(Tableau6[[Date ]]=$A10)*(Tableau6[Requetes]=AC$2))","v":0},{"$f":"SUMPRODUCT((Tableau6[[Code Réclamation  ]]=\"Back Office\")*(Tableau6[[Typologie ]]=$A10)*(Tableau6[[Catégories ]]=AD$2))","v":0},{"$f":"SUMPRODUCT((Tableau6[Noms & Prenoms]=\"Back Office\")*(Tableau6[[Code Réclamation  ]]=$A10)*(Tableau6[Types]=AE$2))","v":0},{"$f":"SUMPRODUCT((Tableau6[[Typologie ]]=\"Front Office\")*(Tableau6[[Date ]]=$A10)*(Tableau6[Requetes]=AF$2))","v":0},{"$f":"SUMPRODUCT((Tableau6[[Code Réclamation  ]]=\"Front Office\")*(Tableau6[[Typologie ]]=$A10)*(Tableau6[[Catégories ]]=AG$2))","v":0},{"$f":"SUMPRODUCT((Tableau6[Noms & Prenoms]=\"Front Office\")*(Tableau6[[Code Réclamation  ]]=$A10)*(Tableau6[Types]=AH$2))","v":0},{"$f":"SUMPRODUCT((Tableau6[[Typologie ]]=\"Direction Générale\")*(Tableau6[[Date ]]=$A10)*(Tableau6[Requetes]=AI$2))","v":0},{"$f":"SUMPRODUCT((Tableau6[[Code Réclamation  ]]=\"Direction Générale\")*(Tableau6[[Typologie ]]=$A10)*(Tableau6[[Catégories ]]=AJ$2))","v":0},{"$f":"SUMPRODUCT((Tableau6[Noms & Prenoms]=\"Direction Générale\")*(Tableau6[[Code Réclamation  ]]=$A10)*(Tableau6[Types]=AK$2))","v":0}]
["2018-01-09",{"$f":"SUMPRODUCT((Tableau6[[Typologie ]]=\"Showroom Akwa\")*(Tableau6[[Date ]]=$A11)*(Tableau6[Requetes]=B$2))","v":0},{"$f":"SUMPRODUCT((Tableau6[[Typologie ]]=\"Showroom Akwa\")*(Tableau6[[Date ]]=$A11)*(Tableau6[Requetes]=C$2))","v":0},{"$f":"SUMPRODUCT((Tableau6[[Typologie ]]=\"Showroom Akwa\")*(Tableau6[[Date ]]=$A11)*(Tableau6[Requetes]=D$2))","v":0},{"$f":"SUMPRODUCT((Tableau6[[Typologie ]]=\"Showroom Bafoussam\")*(Tableau6[[Date ]]=$A11)*(Tableau6[Requetes]=E$2))","v":0},{"$f":"SUMPRODUCT((Tableau6[[Typologie ]]=\"Showroom Bafoussam\")*(Tableau6[[Date ]]=$A11)*(Tableau6[Requetes]=F$2))","v":0},{"$f":"SUMPRODUCT((Tableau6[[Typologie ]]=\"Showroom Bafoussam\")*(Tableau6[[Date ]]=$A11)*(Tableau6[Requetes]=G$2))","v":0},{"$f":"SUMPRODUCT((Tableau6[[Typologie ]]=\"Showroom Yaounde\")*(Tableau6[[Date ]]=$A11)*(Tableau6[Requetes]=H$2))","v":0},{"$f":"SUMPRODUCT((Tableau6[[Code Réclamation  ]]=\"Showroom Yaounde\")*(Tableau6[[Typologie ]]=$A11)*(Tableau6[[Catégories ]]=I$2))","v":0},{"$f":"SUMPRODUCT((Tableau6[Noms & Prenoms]=\"Showroom Yaounde\")*(Tableau6[[Code Réclamation  ]]=$A11)*(Tableau6[Types]=J$2))","v":0},{"$f":"SUMPRODUCT((Tableau6[[Typologie ]]=\"Showroom Bonamoussadi\")*(Tableau6[[Date ]]=$A11)*(Tableau6[Requetes]=K$2))","v":0},{"$f":"SUMPRODUCT((Tableau6[[Code Réclamation  ]]=\"Showroom Bonamoussadi\")*(Tableau6[[Typologie ]]=$A11)*(Tableau6[[Catégories ]]=L$2))","v":0},{"$f":"SUMPRODUCT((Tableau6[Noms & Prenoms]=\"Showroom Bonamoussadi\")*(Tableau6[[Code Réclamation  ]]=$A11)*(Tableau6[Types]=M$2))","v":0},{"$f":"SUMPRODUCT((Tableau6[[Typologie ]]=\"Showroom Bonanjo\")*(Tableau6[[Date ]]=$A11)*(Tableau6[Requetes]=N$2))","v":0},{"$f":"SUMPRODUCT((Tableau6[[Code Réclamation  ]]=\"Showroom Bonanjo\")*(Tableau6[[Typologie ]]=$A11)*(Tableau6[[Catégories ]]=O$2))","v":0},{"$f":"SUMPRODUCT((Tableau6[Noms & Prenoms]=\"Showroom Bonanjo\")*(Tableau6[[Code Réclamation  ]]=$A11)*(Tableau6[Types]=P$2))","v":0},{"$f":"SUMPRODUCT((Tableau6[[Typologie ]]=\"Showroom Garoua\")*(Tableau6[[Date ]]=$A11)*(Tableau6[Requetes]=Q$2))","v":0},{"$f":"SUMPRODUCT((Tableau6[[Code Réclamation  ]]=\"Showroom Garoua\")*(Tableau6[[Typologie ]]=$A11)*(Tableau6[[Catégories ]]=R$2))","v":0},{"$f":"SUMPRODUCT((Tableau6[Noms & Prenoms]=\"Showroom Garoua\")*(Tableau6[[Code Réclamation  ]]=$A11)*(Tableau6[Types]=S$2))","v":0},{"$f":"SUMPRODUCT((Tableau6[[Typologie ]]=\"Shop Bastos\")*(Tableau6[[Date ]]=$A11)*(Tableau6[Requetes]=T$2))","v":0},{"$f":"SUMPRODUCT((Tableau6[[Code Réclamation  ]]=\"Shop Bastos\")*(Tableau6[[Typologie ]]=$A11)*(Tableau6[[Catégories ]]=U$2))","v":0},{"$f":"SUMPRODUCT((Tableau6[Noms & Prenoms]=\"Shop Bastos\")*(Tableau6[[Code Réclamation  ]]=$A11)*(Tableau6[Types]=V$2))","v":0},{"$f":"SUMPRODUCT((Tableau6[[Typologie ]]=\"Shop Essos\")*(Tableau6[[Date ]]=$A11)*(Tableau6[Requetes]=W$2))","v":0},{"$f":"SUMPRODUCT((Tableau6[[Code Réclamation  ]]=\"Shop Essos\")*(Tableau6[[Typologie ]]=$A11)*(Tableau6[[Catégories ]]=X$2))","v":0},{"$f":"SUMPRODUCT((Tableau6[Noms & Prenoms]=\"Shop Essos\")*(Tableau6[[Code Réclamation  ]]=$A11)*(Tableau6[Types]=Y$2))","v":0},{"$f":"SUMPRODUCT((Tableau6[[Typologie ]]=\"Shop Peyrissac\")*(Tableau6[[Date ]]=$A11)*(Tableau6[Requetes]=Z$2))","v":0},{"$f":"SUMPRODUCT((Tableau6[[Code Réclamation  ]]=\"Shop Peyrissac\")*(Tableau6[[Typologie ]]=$A11)*(Tableau6[[Catégories ]]=AA$2))","v":0},{"$f":"SUMPRODUCT((Tableau6[Noms & Prenoms]=\"Shop Peyrissac\")*(Tableau6[[Code Réclamation  ]]=$A11)*(Tableau6[Types]=AB$2))","v":0},{"$f":"SUMPRODUCT((Tableau6[[Typologie ]]=\"Back Office\")*(Tableau6[[Date ]]=$A11)*(Tableau6[Requetes]=AC$2))","v":0},{"$f":"SUMPRODUCT((Tableau6[[Code Réclamation  ]]=\"Back Office\")*(Tableau6[[Typologie ]]=$A11)*(Tableau6[[Catégories ]]=AD$2))","v":0},{"$f":"SUMPRODUCT((Tableau6[Noms & Prenoms]=\"Back Office\")*(Tableau6[[Code Réclamation  ]]=$A11)*(Tableau6[Types]=AE$2))","v":0},{"$f":"SUMPRODUCT((Tableau6[[Typologie ]]=\"Front Office\")*(Tableau6[[Date ]]=$A11)*(Tableau6[Requetes]=AF$2))","v":0},{"$f":"SUMPRODUCT((Tableau6[[Code Réclamation  ]]=\"Front Office\")*(Tableau6[[Typologie ]]=$A11)*(Tableau6[[Catégories ]]=AG$2))","v":0},{"$f":"SUMPRODUCT((Tableau6[Noms & Prenoms]=\"Front Office\")*(Tableau6[[Code Réclamation  ]]=$A11)*(Tableau6[Types]=AH$2))","v":0},{"$f":"SUMPRODUCT((Tableau6[[Typologie ]]=\"Direction Générale\")*(Tableau6[[Date ]]=$A11)*(Tableau6[Requetes]=AI$2))","v":0},{"$f":"SUMPRODUCT((Tableau6[[Code Réclamation  ]]=\"Direction Générale\")*(Tableau6[[Typologie ]]=$A11)*(Tableau6[[Catégories ]]=AJ$2))","v":0},{"$f":"SUMPRODUCT((Tableau6[Noms & Prenoms]=\"Direction Générale\")*(Tableau6[[Code Réclamation  ]]=$A11)*(Tableau6[Types]=AK$2))","v":0}]
["2018-01-10",{"$f":"SUMPRODUCT((Tableau6[[Typologie ]]=\"Showroom Akwa\")*(Tableau6[[Date ]]=$A12)*(Tableau6[Requetes]=B$2))","v":0},{"$f":"SUMPRODUCT((Tableau6[[Date ]]=\"Showroom Akwa\")*(Tableau6[Nbre]=$A12)*(Tableau6[Quartier]=C$2))","v":0},{"$f":"SUMPRODUCT((Tableau6[[Typologie ]]=\"Showroom Akwa\")*(Tableau6[[Date ]]=$A12)*(Tableau6[Requetes]=D$2))","v":6},{"$f":"SUMPRODUCT((Tableau6[[Typologie ]]=\"Showroom Bafoussam\")*(Tableau6[[Date ]]=$A12)*(Tableau6[Requetes]=E$2))","v":0},{"$f":"SUMPRODUCT((Tableau6[[Typologie ]]=\"Showroom Bafoussam\")*(Tableau6[[Date ]]=$A12)*(Tableau6[Requetes]=F$2))","v":0},{"$f":"SUMPRODUCT((Tableau6[[Typologie ]]=\"Showroom Bafoussam\")*(Tableau6[[Date ]]=$A12)*(Tableau6[Requetes]=G$2))","v":0},{"$f":"SUMPRODUCT((Tableau6[[Typologie ]]=\"Showroom Yaounde\")*(Tableau6[[Date ]]=$A12)*(Tableau6[Requetes]=H$2))","v":0},{"$f":"SUMPRODUCT((Tableau6[[Code Réclamation  ]]=\"Showroom Yaounde\")*(Tableau6[[Typologie ]]=$A12)*(Tableau6[[Catégories ]]=I$2))","v":0},{"$f":"SUMPRODUCT((Tableau6[Noms & Prenoms]=\"Showroom Yaounde\")*(Tableau6[[Code Réclamation  ]]=$A12)*(Tableau6[Types]=J$2))","v":0},{"$f":"SUMPRODUCT((Tableau6[[Typologie ]]=\"Showroom Bonamoussadi\")*(Tableau6[[Date ]]=$A12)*(Tableau6[Requetes]=K$2))","v":0},{"$f":"SUMPRODUCT((Tableau6[[Code Réclamation  ]]=\"Showroom Bonamoussadi\")*(Tableau6[[Typologie ]]=$A12)*(Tableau6[[Catégories ]]=L$2))","v":0},{"$f":"SUMPRODUCT((Tableau6[Noms & Prenoms]=\"Showroom Bonamoussadi\")*(Tableau6[[Code Réclamation  ]]=$A12)*(Tableau6[Types]=M$2))","v":0},{"$f":"SUMPRODUCT((Tableau6[[Typologie ]]=\"Showroom Bonanjo\")*(Tableau6[[Date ]]=$A12)*(Tableau6[Requetes]=N$2))","v":0},{"$f":"SUMPRODUCT((Tableau6[[Code Réclamation  ]]=\"Showroom Bonanjo\")*(Tableau6[[Typologie ]]=$A12)*(Tableau6[[Catégories ]]=O$2))","v":0},{"$f":"SUMPRODUCT((Tableau6[Noms & Prenoms]=\"Showroom Bonanjo\")*(Tableau6[[Code Réclamation  ]]=$A12)*(Tableau6[Types]=P$2))","v":0},{"$f":"SUMPRODUCT((Tableau6[[Typologie ]]=\"Showroom Garoua\")*(Tableau6[[Date ]]=$A12)*(Tableau6[Requetes]=Q$2))","v":0},{"$f":"SUMPRODUCT((Tableau6[[Code Réclamation  ]]=\"Showroom Garoua\")*(Tableau6[[Typologie ]]=$A12)*(Tableau6[[Catégories ]]=R$2))","v":0},{"$f":"SUMPRODUCT((Tableau6[Noms & Prenoms]=\"Showroom Garoua\")*(Tableau6[[Code Réclamation  ]]=$A12)*(Tableau6[Types]=S$2))","v":0},{"$f":"SUMPRODUCT((Tableau6[[Typologie ]]=\"Shop Bastos\")*(Tableau6[[Date ]]=$A12)*(Tableau6[Requetes]=T$2))","v":0},{"$f":"SUMPRODUCT((Tableau6[[Code Réclamation  ]]=\"Shop Bastos\")*(Tableau6[[Typologie ]]=$A12)*(Tableau6[[Catégories ]]=U$2))","v":0},{"$f":"SUMPRODUCT((Tableau6[Noms & Prenoms]=\"Shop Bastos\")*(Tableau6[[Code Réclamation  ]]=$A12)*(Tableau6[Types]=V$2))","v":0},{"$f":"SUMPRODUCT((Tableau6[[Typologie ]]=\"Shop Essos\")*(Tableau6[[Date ]]=$A12)*(Tableau6[Requetes]=W$2))","v":0},{"$f":"SUMPRODUCT((Tableau6[[Code Réclamation  ]]=\"Shop Essos\")*(Tableau6[[Typologie ]]=$A12)*(Tableau6[[Catégories ]]=X$2))","v":0},{"$f":"SUMPRODUCT((Tableau6[Noms & Prenoms]=\"Shop Essos\")*(Tableau6[[Code Réclamation  ]]=$A12)*(Tableau6[Types]=Y$2))","v":0},{"$f":"SUMPRODUCT((Tableau6[[Typologie ]]=\"Shop Peyrissac\")*(Tableau6[[Date ]]=$A12)*(Tableau6[Requetes]=Z$2))","v":0},{"$f":"SUMPRODUCT((Tableau6[[Code Réclamation  ]]=\"Shop Peyrissac\")*(Tableau6[[Typologie ]]=$A12)*(Tableau6[[Catégories ]]=AA$2))","v":0},{"$f":"SUMPRODUCT((Tableau6[Noms & Prenoms]=\"Shop Peyrissac\")*(Tableau6[[Code Réclamation  ]]=$A12)*(Tableau6[Types]=AB$2))","v":0},{"$f":"SUMPRODUCT((Tableau6[[Typologie ]]=\"Back Office\")*(Tableau6[[Date ]]=$A12)*(Tableau6[Requetes]=AC$2))","v":0},{"$f":"SUMPRODUCT((Tableau6[[Code Réclamation  ]]=\"Back Office\")*(Tableau6[[Typologie ]]=$A12)*(Tableau6[[Catégories ]]=AD$2))","v":0},{"$f":"SUMPRODUCT((Tableau6[Noms & Prenoms]=\"Back Office\")*(Tableau6[[Code Réclamation  ]]=$A12)*(Tableau6[Types]=AE$2))","v":0},{"$f":"SUMPRODUCT((Tableau6[[Typologie ]]=\"Front Office\")*(Tableau6[[Date ]]=$A12)*(Tableau6[Requetes]=AF$2))","v":0},{"$f":"SUMPRODUCT((Tableau6[[Code Réclamation  ]]=\"Front Office\")*(Tableau6[[Typologie ]]=$A12)*(Tableau6[[Catégories ]]=AG$2))","v":0},{"$f":"SUMPRODUCT((Tableau6[Noms & Prenoms]=\"Front Office\")*(Tableau6[[Code Réclamation  ]]=$A12)*(Tableau6[Types]=AH$2))","v":0},{"$f":"SUMPRODUCT((Tableau6[[Typologie ]]=\"Direction Générale\")*(Tableau6[[Date ]]=$A12)*(Tableau6[Requetes]=AI$2))","v":0},{"$f":"SUMPRODUCT((Tableau6[[Code Réclamation  ]]=\"Direction Générale\")*(Tableau6[[Typologie ]]=$A12)*(Tableau6[[Catégories ]]=AJ$2))","v":0},{"$f":"SUMPRODUCT((Tableau6[Noms & Prenoms]=\"Direction Générale\")*(Tableau6[[Code Réclamation  ]]=$A12)*(Tableau6[Types]=AK$2))","v":0}]
["2018-01-11",{"$f":"SUMPRODUCT((Tableau6[[Typologie ]]=\"Showroom Akwa\")*(Tableau6[[Date ]]=$A13)*(Tableau6[Requetes]=B$2))","v":0},{"$f":"SUMPRODUCT((Tableau6[[Typologie ]]=\"Showroom Akwa\")*(Tableau6[[Date ]]=$A13)*(Tableau6[Requetes]=C$2))","v":0},{"$f":"SUMPRODUCT((Tableau6[[Typologie ]]=\"Showroom Akwa\")*(Tableau6[[Date ]]=$A13)*(Tableau6[Requetes]=D$2))","v":0},{"$f":"SUMPRODUCT((Tableau6[[Typologie ]]=\"Showroom Bafoussam\")*(Tableau6[[Date ]]=$A13)*(Tableau6[Requetes]=E$2))","v":0},{"$f":"SUMPRODUCT((Tableau6[[Typologie ]]=\"Showroom Bafoussam\")*(Tableau6[[Date ]]=$A13)*(Tableau6[Requetes]=F$2))","v":0},{"$f":"SUMPRODUCT((Tableau6[[Typologie ]]=\"Showroom Bafoussam\")*(Tableau6[[Date ]]=$A13)*(Tableau6[Requetes]=G$2))","v":0},{"$f":"SUMPRODUCT((Tableau6[[Typologie ]]=\"Showroom Yaounde\")*(Tableau6[[Date ]]=$A13)*(Tableau6[Requetes]=H$2))","v":0},{"$f":"SUMPRODUCT((Tableau6[[Code Réclamation  ]]=\"Showroom Yaounde\")*(Tableau6[[Typologie ]]=$A13)*(Tableau6[[Catégories ]]=I$2))","v":0},{"$f":"SUMPRODUCT((Tableau6[Noms & Prenoms]=\"Showroom Yaounde\")*(Tableau6[[Code Réclamation  ]]=$A13)*(Tableau6[Types]=J$2))","v":0},{"$f":"SUMPRODUCT((Tableau6[[Typologie ]]=\"Showroom Bonamoussadi\")*(Tableau6[[Date ]]=$A13)*(Tableau6[Requetes]=K$2))","v":0},{"$f":"SUMPRODUCT((Tableau6[[Code Réclamation  ]]=\"Showroom Bonamoussadi\")*(Tableau6[[Typologie ]]=$A13)*(Tableau6[[Catégories ]]=L$2))","v":0},{"$f":"SUMPRODUCT((Tableau6[Noms & Prenoms]=\"Showroom Bonamoussadi\")*(Tableau6[[Code Réclamation  ]]=$A13)*(Tableau6[Types]=M$2))","v":0},{"$f":"SUMPRODUCT((Tableau6[[Typologie ]]=\"Showroom Bonanjo\")*(Tableau6[[Date ]]=$A13)*(Tableau6[Requetes]=N$2))","v":0},{"$f":"SUMPRODUCT((Tableau6[[Code Réclamation  ]]=\"Showroom Bonanjo\")*(Tableau6[[Typologie ]]=$A13)*(Tableau6[[Catégories ]]=O$2))","v":0},{"$f":"SUMPRODUCT((Tableau6[Noms & Prenoms]=\"Showroom Bonanjo\")*(Tableau6[[Code Réclamation  ]]=$A13)*(Tableau6[Types]=P$2))","v":0},{"$f":"SUMPRODUCT((Tableau6[[Typologie ]]=\"Showroom Garoua\")*(Tableau6[[Date ]]=$A13)*(Tableau6[Requetes]=Q$2))","v":0},{"$f":"SUMPRODUCT((Tableau6[[Code Réclamation  ]]=\"Showroom Garoua\")*(Tableau6[[Typologie ]]=$A13)*(Tableau6[[Catégories ]]=R$2))","v":0},{"$f":"SUMPRODUCT((Tableau6[Noms & Prenoms]=\"Showroom Garoua\")*(Tableau6[[Code Réclamation  ]]=$A13)*(Tableau6[Types]=S$2))","v":0},{"$f":"SUMPRODUCT((Tableau6[[Typologie ]]=\"Shop Bastos\")*(Tableau6[[Date ]]=$A13)*(Tableau6[Requetes]=T$2))","v":0},{"$f":"SUMPRODUCT((Tableau6[[Code Réclamation  ]]=\"Shop Bastos\")*(Tableau6[[Typologie ]]=$A13)*(Tableau6[[Catégories ]]=U$2))","v":0},{"$f":"SUMPRODUCT((Tableau6[Noms & Prenoms]=\"Shop Bastos\")*(Tableau6[[Code Réclamation  ]]=$A13)*(Tableau6[Types]=V$2))","v":0},{"$f":"SUMPRODUCT((Tableau6[[Typologie ]]=\"Shop Essos\")*(Tableau6[[Date ]]=$A13)*(Tableau6[Requetes]=W$2))","v":0},{"$f":"SUMPRODUCT((Tableau6[[Code Réclamation  ]]=\"Shop Essos\")*(Tableau6[[Typologie ]]=$A13)*(Tableau6[[Catégories ]]=X$2))","v":0},{"$f":"SUMPRODUCT((Tableau6[Noms & Prenoms]=\"Shop Essos\")*(Tableau6[[Code Réclamation  ]]=$A13)*(Tableau6[Types]=Y$2))","v":0},{"$f":"SUMPRODUCT((Tableau6[[Typologie ]]=\"Shop Peyrissac\")*(Tableau6[[Date ]]=$A13)*(Tableau6[Requetes]=Z$2))","v":0},{"$f":"SUMPRODUCT((Tableau6[[Code Réclamation  ]]=\"Shop Peyrissac\")*(Tableau6[[Typologie ]]=$A13)*(Tableau6[[Catégories ]]=AA$2))","v":0},{"$f":"SUMPRODUCT((Tableau6[Noms & Prenoms]=\"Shop Peyrissac\")*(Tableau6[[Code Réclamation  ]]=$A13)*(Tableau6[Types]=AB$2))","v":0},{"$f":"SUMPRODUCT((Tableau6[[Typologie ]]=\"Back Office\")*(Tableau6[[Date ]]=$A13)*(Tableau6[Requetes]=AC$2))","v":0},{"$f":"SUMPRODUCT((Tableau6[[Code Réclamation  ]]=\"Back Office\")*(Tableau6[[Typologie ]]=$A13)*(Tableau6[[Catégories ]]=AD$2))","v":0},{"$f":"SUMPRODUCT((Tableau6[Noms & Prenoms]=\"Back Office\")*(Tableau6[[Code Réclamation  ]]=$A13)*(Tableau6[Types]=AE$2))","v":0},{"$f":"SUMPRODUCT((Tableau6[[Typologie ]]=\"Front Office\")*(Tableau6[[Date ]]=$A13)*(Tableau6[Requetes]=AF$2))","v":0},{"$f":"SUMPRODUCT((Tableau6[[Code Réclamation  ]]=\"Front Office\")*(Tableau6[[Typologie ]]=$A13)*(Tableau6[[Catégories ]]=AG$2))","v":0},{"$f":"SUMPRODUCT((Tableau6[Noms & Prenoms]=\"Front Office\")*(Tableau6[[Code Réclamation  ]]=$A13)*(Tableau6[Types]=AH$2))","v":0},{"$f":"SUMPRODUCT((Tableau6[[Typologie ]]=\"Direction Générale\")*(Tableau6[[Date ]]=$A13)*(Tableau6[Requetes]=AI$2))","v":0},{"$f":"SUMPRODUCT((Tableau6[[Code Réclamation  ]]=\"Direction Générale\")*(Tableau6[[Typologie ]]=$A13)*(Tableau6[[Catégories ]]=AJ$2))","v":0},{"$f":"SUMPRODUCT((Tableau6[Noms & Prenoms]=\"Direction Générale\")*(Tableau6[[Code Réclamation  ]]=$A13)*(Tableau6[Types]=AK$2))","v":0}]
["2018-01-12",{"$f":"SUMPRODUCT((Tableau6[[Typologie ]]=\"Showroom Akwa\")*(Tableau6[[Date ]]=$A14)*(Tableau6[Requetes]=B$2))","v":0},{"$f":"SUMPRODUCT((Tableau6[[Typologie ]]=\"Showroom Akwa\")*(Tableau6[[Date ]]=$A14)*(Tableau6[Requetes]=C$2))","v":0},{"$f":"SUMPRODUCT((Tableau6[[Typologie ]]=\"Showroom Akwa\")*(Tableau6[[Date ]]=$A14)*(Tableau6[Requetes]=D$2))","v":0},{"$f":"SUMPRODUCT((Tableau6[[Typologie ]]=\"Showroom Bafoussam\")*(Tableau6[[Date ]]=$A14)*(Tableau6[Requetes]=E$2))","v":0},{"$f":"SUMPRODUCT((Tableau6[[Typologie ]]=\"Showroom Bafoussam\")*(Tableau6[[Date ]]=$A14)*(Tableau6[Requetes]=F$2))","v":0},{"$f":"SUMPRODUCT((Tableau6[[Typologie ]]=\"Showroom Bafoussam\")*(Tableau6[[Date ]]=$A14)*(Tableau6[Requetes]=G$2))","v":0},{"$f":"SUMPRODUCT((Tableau6[[Typologie ]]=\"Showroom Yaounde\")*(Tableau6[[Date ]]=$A14)*(Tableau6[Requetes]=H$2))","v":0},{"$f":"SUMPRODUCT((Tableau6[[Code Réclamation  ]]=\"Showroom Yaounde\")*(Tableau6[[Typologie ]]=$A14)*(Tableau6[[Catégories ]]=I$2))","v":0},{"$f":"SUMPRODUCT((Tableau6[Noms & Prenoms]=\"Showroom Yaounde\")*(Tableau6[[Code Réclamation  ]]=$A14)*(Tableau6[Types]=J$2))","v":0},{"$f":"SUMPRODUCT((Tableau6[[Typologie ]]=\"Showroom Bonamoussadi\")*(Tableau6[[Date ]]=$A14)*(Tableau6[Requetes]=K$2))","v":0},{"$f":"SUMPRODUCT((Tableau6[[Code Réclamation  ]]=\"Showroom Bonamoussadi\")*(Tableau6[[Typologie ]]=$A14)*(Tableau6[[Catégories ]]=L$2))","v":0},{"$f":"SUMPRODUCT((Tableau6[Noms & Prenoms]=\"Showroom Bonamoussadi\")*(Tableau6[[Code Réclamation  ]]=$A14)*(Tableau6[Types]=M$2))","v":0},{"$f":"SUMPRODUCT((Tableau6[[Typologie ]]=\"Showroom Bonanjo\")*(Tableau6[[Date ]]=$A14)*(Tableau6[Requetes]=N$2))","v":0},{"$f":"SUMPRODUCT((Tableau6[[Code Réclamation  ]]=\"Showroom Bonanjo\")*(Tableau6[[Typologie ]]=$A14)*(Tableau6[[Catégories ]]=O$2))","v":0},{"$f":"SUMPRODUCT((Tableau6[Noms & Prenoms]=\"Showroom Bonanjo\")*(Tableau6[[Code Réclamation  ]]=$A14)*(Tableau6[Types]=P$2))","v":0},{"$f":"SUMPRODUCT((Tableau6[[Typologie ]]=\"Showroom Garoua\")*(Tableau6[[Date ]]=$A14)*(Tableau6[Requetes]=Q$2))","v":0},{"$f":"SUMPRODUCT((Tableau6[[Code Réclamation  ]]=\"Showroom Garoua\")*(Tableau6[[Typologie ]]=$A14)*(Tableau6[[Catégories ]]=R$2))","v":0},{"$f":"SUMPRODUCT((Tableau6[Noms & Prenoms]=\"Showroom Garoua\")*(Tableau6[[Code Réclamation  ]]=$A14)*(Tableau6[Types]=S$2))","v":0},{"$f":"SUMPRODUCT((Tableau6[[Typologie ]]=\"Shop Bastos\")*(Tableau6[[Date ]]=$A14)*(Tableau6[Requetes]=T$2))","v":0},{"$f":"SUMPRODUCT((Tableau6[[Code Réclamation  ]]=\"Shop Bastos\")*(Tableau6[[Typologie ]]=$A14)*(Tableau6[[Catégories ]]=U$2))","v":0},{"$f":"SUMPRODUCT((Tableau6[Noms & Prenoms]=\"Shop Bastos\")*(Tableau6[[Code Réclamation  ]]=$A14)*(Tableau6[Types]=V$2))","v":0},{"$f":"SUMPRODUCT((Tableau6[[Typologie ]]=\"Shop Essos\")*(Tableau6[[Date ]]=$A14)*(Tableau6[Requetes]=W$2))","v":0},{"$f":"SUMPRODUCT((Tableau6[[Code Réclamation  ]]=\"Shop Essos\")*(Tableau6[[Typologie ]]=$A14)*(Tableau6[[Catégories ]]=X$2))","v":0},{"$f":"SUMPRODUCT((Tableau6[Noms & Prenoms]=\"Shop Essos\")*(Tableau6[[Code Réclamation  ]]=$A14)*(Tableau6[Types]=Y$2))","v":0},{"$f":"SUMPRODUCT((Tableau6[[Typologie ]]=\"Shop Peyrissac\")*(Tableau6[[Date ]]=$A14)*(Tableau6[Requetes]=Z$2))","v":0},{"$f":"SUMPRODUCT((Tableau6[[Code Réclamation  ]]=\"Shop Peyrissac\")*(Tableau6[[Typologie ]]=$A14)*(Tableau6[[Catégories ]]=AA$2))","v":0},{"$f":"SUMPRODUCT((Tableau6[Noms & Prenoms]=\"Shop Peyrissac\")*(Tableau6[[Code Réclamation  ]]=$A14)*(Tableau6[Types]=AB$2))","v":0},{"$f":"SUMPRODUCT((Tableau6[[Typologie ]]=\"Back Office\")*(Tableau6[[Date ]]=$A14)*(Tableau6[Requetes]=AC$2))","v":0},{"$f":"SUMPRODUCT((Tableau6[[Code Réclamation  ]]=\"Back Office\")*(Tableau6[[Typologie ]]=$A14)*(Tableau6[[Catégories ]]=AD$2))","v":0},{"$f":"SUMPRODUCT((Tableau6[Noms & Prenoms]=\"Back Office\")*(Tableau6[[Code Réclamation  ]]=$A14)*(Tableau6[Types]=AE$2))","v":0},{"$f":"SUMPRODUCT((Tableau6[[Typologie ]]=\"Front Office\")*(Tableau6[[Date ]]=$A14)*(Tableau6[Requetes]=AF$2))","v":0},{"$f":"SUMPRODUCT((Tableau6[[Code Réclamation  ]]=\"Front Office\")*(Tableau6[[Typologie ]]=$A14)*(Tableau6[[Catégories ]]=AG$2))","v":0},{"$f":"SUMPRODUCT((Tableau6[Noms & Prenoms]=\"Front Office\")*(Tableau6[[Code Réclamation  ]]=$A14)*(Tableau6[Types]=AH$2))","v":0},{"$f":"SUMPRODUCT((Tableau6[[Typologie ]]=\"Direction Générale\")*(Tableau6[[Date ]]=$A14)*(Tableau6[Requetes]=AI$2))","v":0},{"$f":"SUMPRODUCT((Tableau6[[Code Réclamation  ]]=\"Direction Générale\")*(Tableau6[[Typologie ]]=$A14)*(Tableau6[[Catégories ]]=AJ$2))","v":0},{"$f":"SUMPRODUCT((Tableau6[Noms & Prenoms]=\"Direction Générale\")*(Tableau6[[Code Réclamation  ]]=$A14)*(Tableau6[Types]=AK$2))","v":0}]
["2018-01-13",{"$f":"SUMPRODUCT((Tableau6[[Typologie ]]=\"Showroom Akwa\")*(Tableau6[[Date ]]=$A15)*(Tableau6[Requetes]=B$2))","v":0},{"$f":"SUMPRODUCT((Tableau6[[Typologie ]]=\"Showroom Akwa\")*(Tableau6[[Date ]]=$A15)*(Tableau6[Requetes]=C$2))","v":0},{"$f":"SUMPRODUCT((Tableau6[[Typologie ]]=\"Showroom Akwa\")*(Tableau6[[Date ]]=$A15)*(Tableau6[Requetes]=D$2))","v":0},{"$f":"SUMPRODUCT((Tableau6[[Typologie ]]=\"Showroom Bafoussam\")*(Tableau6[[Date ]]=$A15)*(Tableau6[Requetes]=E$2))","v":0},{"$f":"SUMPRODUCT((Tableau6[[Typologie ]]=\"Showroom Bafoussam\")*(Tableau6[[Date ]]=$A15)*(Tableau6[Requetes]=F$2))","v":0},{"$f":"SUMPRODUCT((Tableau6[[Typologie ]]=\"Showroom Bafoussam\")*(Tableau6[[Date ]]=$A15)*(Tableau6[Requetes]=G$2))","v":0},{"$f":"SUMPRODUCT((Tableau6[[Typologie ]]=\"Showroom Yaounde\")*(Tableau6[[Date ]]=$A15)*(Tableau6[Requetes]=H$2))","v":0},{"$f":"SUMPRODUCT((Tableau6[[Code Réclamation  ]]=\"Showroom Yaounde\")*(Tableau6[[Typologie ]]=$A15)*(Tableau6[[Catégories ]]=I$2))","v":0},{"$f":"SUMPRODUCT((Tableau6[Noms & Prenoms]=\"Showroom Yaounde\")*(Tableau6[[Code Réclamation  ]]=$A15)*(Tableau6[Types]=J$2))","v":0},{"$f":"SUMPRODUCT((Tableau6[[Typologie ]]=\"Showroom Bonamoussadi\")*(Tableau6[[Date ]]=$A15)*(Tableau6[Requetes]=K$2))","v":0},{"$f":"SUMPRODUCT((Tableau6[[Code Réclamation  ]]=\"Showroom Bonamoussadi\")*(Tableau6[[Typologie ]]=$A15)*(Tableau6[[Catégories ]]=L$2))","v":0},{"$f":"SUMPRODUCT((Tableau6[Noms & Prenoms]=\"Showroom Bonamoussadi\")*(Tableau6[[Code Réclamation  ]]=$A15)*(Tableau6[Types]=M$2))","v":0},{"$f":"SUMPRODUCT((Tableau6[[Typologie ]]=\"Showroom Bonanjo\")*(Tableau6[[Date ]]=$A15)*(Tableau6[Requetes]=N$2))","v":0},{"$f":"SUMPRODUCT((Tableau6[[Code Réclamation  ]]=\"Showroom Bonanjo\")*(Tableau6[[Typologie ]]=$A15)*(Tableau6[[Catégories ]]=O$2))","v":0},{"$f":"SUMPRODUCT((Tableau6[Noms & Prenoms]=\"Showroom Bonanjo\")*(Tableau6[[Code Réclamation  ]]=$A15)*(Tableau6[Types]=P$2))","v":0},{"$f":"SUMPRODUCT((Tableau6[[Typologie ]]=\"Showroom Garoua\")*(Tableau6[[Date ]]=$A15)*(Tableau6[Requetes]=Q$2))","v":0},{"$f":"SUMPRODUCT((Tableau6[[Code Réclamation  ]]=\"Showroom Garoua\")*(Tableau6[[Typologie ]]=$A15)*(Tableau6[[Catégories ]]=R$2))","v":0},{"$f":"SUMPRODUCT((Tableau6[Noms & Prenoms]=\"Showroom Garoua\")*(Tableau6[[Code Réclamation  ]]=$A15)*(Tableau6[Types]=S$2))","v":0},{"$f":"SUMPRODUCT((Tableau6[[Typologie ]]=\"Shop Bastos\")*(Tableau6[[Date ]]=$A15)*(Tableau6[Requetes]=T$2))","v":0},{"$f":"SUMPRODUCT((Tableau6[[Code Réclamation  ]]=\"Shop Bastos\")*(Tableau6[[Typologie ]]=$A15)*(Tableau6[[Catégories ]]=U$2))","v":0},{"$f":"SUMPRODUCT((Tableau6[Noms & Prenoms]=\"Shop Bastos\")*(Tableau6[[Code Réclamation  ]]=$A15)*(Tableau6[Types]=V$2))","v":0},{"$f":"SUMPRODUCT((Tableau6[[Typologie ]]=\"Shop Essos\")*(Tableau6[[Date ]]=$A15)*(Tableau6[Requetes]=W$2))","v":0},{"$f":"SUMPRODUCT((Tableau6[[Code Réclamation  ]]=\"Shop Essos\")*(Tableau6[[Typologie ]]=$A15)*(Tableau6[[Catégories ]]=X$2))","v":0},{"$f":"SUMPRODUCT((Tableau6[Noms & Prenoms]=\"Shop Essos\")*(Tableau6[[Code Réclamation  ]]=$A15)*(Tableau6[Types]=Y$2))","v":0},{"$f":"SUMPRODUCT((Tableau6[[Typologie ]]=\"Shop Peyrissac\")*(Tableau6[[Date ]]=$A15)*(Tableau6[Requetes]=Z$2))","v":0},{"$f":"SUMPRODUCT((Tableau6[[Code Réclamation  ]]=\"Shop Peyrissac\")*(Tableau6[[Typologie ]]=$A15)*(Tableau6[[Catégories ]]=AA$2))","v":0},{"$f":"SUMPRODUCT((Tableau6[Noms & Prenoms]=\"Shop Peyrissac\")*(Tableau6[[Code Réclamation  ]]=$A15)*(Tableau6[Types]=AB$2))","v":0},{"$f":"SUMPRODUCT((Tableau6[[Typologie ]]=\"Back Office\")*(Tableau6[[Date ]]=$A15)*(Tableau6[Requetes]=AC$2))","v":0},{"$f":"SUMPRODUCT((Tableau6[[Code Réclamation  ]]=\"Back Office\")*(Tableau6[[Typologie ]]=$A15)*(Tableau6[[Catégories ]]=AD$2))","v":0},{"$f":"SUMPRODUCT((Tableau6[Noms & Prenoms]=\"Back Office\")*(Tableau6[[Code Réclamation  ]]=$A15)*(Tableau6[Types]=AE$2))","v":0},{"$f":"SUMPRODUCT((Tableau6[[Typologie ]]=\"Front Office\")*(Tableau6[[Date ]]=$A15)*(Tableau6[Requetes]=AF$2))","v":0},{"$f":"SUMPRODUCT((Tableau6[[Code Réclamation  ]]=\"Front Office\")*(Tableau6[[Typologie ]]=$A15)*(Tableau6[[Catégories ]]=AG$2))","v":0},{"$f":"SUMPRODUCT((Tableau6[Noms & Prenoms]=\"Front Office\")*(Tableau6[[Code Réclamation  ]]=$A15)*(Tableau6[Types]=AH$2))","v":0},{"$f":"SUMPRODUCT((Tableau6[[Typologie ]]=\"Direction Générale\")*(Tableau6[[Date ]]=$A15)*(Tableau6[Requetes]=AI$2))","v":0},{"$f":"SUMPRODUCT((Tableau6[[Code Réclamation  ]]=\"Direction Générale\")*(Tableau6[[Typologie ]]=$A15)*(Tableau6[[Catégories ]]=AJ$2))","v":0},{"$f":"SUMPRODUCT((Tableau6[Noms & Prenoms]=\"Direction Générale\")*(Tableau6[[Code Réclamation  ]]=$A15)*(Tableau6[Types]=AK$2))","v":0}]
["2018-01-14",{"$f":"SUMPRODUCT((Tableau6[[Typologie ]]=\"Showroom Akwa\")*(Tableau6[[Date ]]=$A16)*(Tableau6[Requetes]=B$2))","v":0},{"$f":"SUMPRODUCT((Tableau6[[Typologie ]]=\"Showroom Akwa\")*(Tableau6[[Date ]]=$A16)*(Tableau6[Requetes]=C$2))","v":0},{"$f":"SUMPRODUCT((Tableau6[[Typologie ]]=\"Showroom Akwa\")*(Tableau6[[Date ]]=$A16)*(Tableau6[Requetes]=D$2))","v":0},{"$f":"SUMPRODUCT((Tableau6[[Typologie ]]=\"Showroom Bafoussam\")*(Tableau6[[Date ]]=$A16)*(Tableau6[Requetes]=E$2))","v":0},{"$f":"SUMPRODUCT((Tableau6[[Typologie ]]=\"Showroom Bafoussam\")*(Tableau6[[Date ]]=$A16)*(Tableau6[Requetes]=F$2))","v":0},{"$f":"SUMPRODUCT((Tableau6[[Typologie ]]=\"Showroom Bafoussam\")*(Tableau6[[Date ]]=$A16)*(Tableau6[Requetes]=G$2))","v":0},{"$f":"SUMPRODUCT((Tableau6[[Typologie ]]=\"Showroom Yaounde\")*(Tableau6[[Date ]]=$A16)*(Tableau6[Requetes]=H$2))","v":0},{"$f":"SUMPRODUCT((Tableau6[[Code Réclamation  ]]=\"Showroom Yaounde\")*(Tableau6[[Typologie ]]=$A16)*(Tableau6[[Catégories ]]=I$2))","v":0},{"$f":"SUMPRODUCT((Tableau6[Noms & Prenoms]=\"Showroom Yaounde\")*(Tableau6[[Code Réclamation  ]]=$A16)*(Tableau6[Types]=J$2))","v":0},{"$f":"SUMPRODUCT((Tableau6[[Typologie ]]=\"Showroom Bonamoussadi\")*(Tableau6[[Date ]]=$A16)*(Tableau6[Requetes]=K$2))","v":0},{"$f":"SUMPRODUCT((Tableau6[[Code Réclamation  ]]=\"Showroom Bonamoussadi\")*(Tableau6[[Typologie ]]=$A16)*(Tableau6[[Catégories ]]=L$2))","v":0},{"$f":"SUMPRODUCT((Tableau6[Noms & Prenoms]=\"Showroom Bonamoussadi\")*(Tableau6[[Code Réclamation  ]]=$A16)*(Tableau6[Types]=M$2))","v":0},{"$f":"SUMPRODUCT((Tableau6[[Typologie ]]=\"Showroom Bonanjo\")*(Tableau6[[Date ]]=$A16)*(Tableau6[Requetes]=N$2))","v":0},{"$f":"SUMPRODUCT((Tableau6[[Code Réclamation  ]]=\"Showroom Bonanjo\")*(Tableau6[[Typologie ]]=$A16)*(Tableau6[[Catégories ]]=O$2))","v":0},{"$f":"SUMPRODUCT((Tableau6[Noms & Prenoms]=\"Showroom Bonanjo\")*(Tableau6[[Code Réclamation  ]]=$A16)*(Tableau6[Types]=P$2))","v":0},{"$f":"SUMPRODUCT((Tableau6[[Typologie ]]=\"Showroom Garoua\")*(Tableau6[[Date ]]=$A16)*(Tableau6[Requetes]=Q$2))","v":0},{"$f":"SUMPRODUCT((Tableau6[[Code Réclamation  ]]=\"Showroom Garoua\")*(Tableau6[[Typologie ]]=$A16)*(Tableau6[[Catégories ]]=R$2))","v":0},{"$f":"SUMPRODUCT((Tableau6[Noms & Prenoms]=\"Showroom Garoua\")*(Tableau6[[Code Réclamation  ]]=$A16)*(Tableau6[Types]=S$2))","v":0},{"$f":"SUMPRODUCT((Tableau6[[Typologie ]]=\"Shop Bastos\")*(Tableau6[[Date ]]=$A16)*(Tableau6[Requetes]=T$2))","v":0},{"$f":"SUMPRODUCT((Tableau6[[Code Réclamation  ]]=\"Shop Bastos\")*(Tableau6[[Typologie ]]=$A16)*(Tableau6[[Catégories ]]=U$2))","v":0},{"$f":"SUMPRODUCT((Tableau6[Noms & Prenoms]=\"Shop Bastos\")*(Tableau6[[Code Réclamation  ]]=$A16)*(Tableau6[Types]=V$2))","v":0},{"$f":"SUMPRODUCT((Tableau6[[Typologie ]]=\"Shop Essos\")*(Tableau6[[Date ]]=$A16)*(Tableau6[Requetes]=W$2))","v":0},{"$f":"SUMPRODUCT((Tableau6[[Code Réclamation  ]]=\"Shop Essos\")*(Tableau6[[Typologie ]]=$A16)*(Tableau6[[Catégories ]]=X$2))","v":0},{"$f":"SUMPRODUCT((Tableau6[Noms & Prenoms]=\"Shop Essos\")*(Tableau6[[Code Réclamation  ]]=$A16)*(Tableau6[Types]=Y$2))","v":0},{"$f":"SUMPRODUCT((Tableau6[[Typologie ]]=\"Shop Peyrissac\")*(Tableau6[[Date ]]=$A16)*(Tableau6[Requetes]=Z$2))","v":0},{"$f":"SUMPRODUCT((Tableau6[[Code Réclamation  ]]=\"Shop Peyrissac\")*(Tableau6[[Typologie ]]=$A16)*(Tableau6[[Catégories ]]=AA$2))","v":0},{"$f":"SUMPRODUCT((Tableau6[Noms & Prenoms]=\"Shop Peyrissac\")*(Tableau6[[Code Réclamation  ]]=$A16)*(Tableau6[Types]=AB$2))","v":0},{"$f":"SUMPRODUCT((Tableau6[[Typologie ]]=\"Back Office\")*(Tableau6[[Date ]]=$A16)*(Tableau6[Requetes]=AC$2))","v":0},{"$f":"SUMPRODUCT((Tableau6[[Code Réclamation  ]]=\"Back Office\")*(Tableau6[[Typologie ]]=$A16)*(Tableau6[[Catégories ]]=AD$2))","v":0},{"$f":"SUMPRODUCT((Tableau6[Noms & Prenoms]=\"Back Office\")*(Tableau6[[Code Réclamation  ]]=$A16)*(Tableau6[Types]=AE$2))","v":0},{"$f":"SUMPRODUCT((Tableau6[[Typologie ]]=\"Front Office\")*(Tableau6[[Date ]]=$A16)*(Tableau6[Requetes]=AF$2))","v":0},{"$f":"SUMPRODUCT((Tableau6[[Code Réclamation  ]]=\"Front Office\")*(Tableau6[[Typologie ]]=$A16)*(Tableau6[[Catégories ]]=AG$2))","v":0},{"$f":"SUMPRODUCT((Tableau6[Noms & Prenoms]=\"Front Office\")*(Tableau6[[Code Réclamation  ]]=$A16)*(Tableau6[Types]=AH$2))","v":0},{"$f":"SUMPRODUCT((Tableau6[[Typologie ]]=\"Direction Générale\")*(Tableau6[[Date ]]=$A16)*(Tableau6[Requetes]=AI$2))","v":0},{"$f":"SUMPRODUCT((Tableau6[[Code Réclamation  ]]=\"Direction Générale\")*(Tableau6[[Typologie ]]=$A16)*(Tableau6[[Catégories ]]=AJ$2))","v":0},{"$f":"SUMPRODUCT((Tableau6[Noms & Prenoms]=\"Direction Générale\")*(Tableau6[[Code Réclamation  ]]=$A16)*(Tableau6[Types]=AK$2))","v":0}]
["2018-01-15",{"$f":"SUMPRODUCT((Tableau6[[Typologie ]]=\"Showroom Akwa\")*(Tableau6[[Date ]]=$A17)*(Tableau6[Requetes]=B$2))","v":0},{"$f":"SUMPRODUCT((Tableau6[[Typologie ]]=\"Showroom Akwa\")*(Tableau6[[Date ]]=$A17)*(Tableau6[Requetes]=C$2))","v":0},{"$f":"SUMPRODUCT((Tableau6[[Typologie ]]=\"Showroom Akwa\")*(Tableau6[[Date ]]=$A17)*(Tableau6[Requetes]=D$2))","v":0},{"$f":"SUMPRODUCT((Tableau6[[Typologie ]]=\"Showroom Bafoussam\")*(Tableau6[[Date ]]=$A17)*(Tableau6[Requetes]=E$2))","v":0},{"$f":"SUMPRODUCT((Tableau6[[Typologie ]]=\"Showroom Bafoussam\")*(Tableau6[[Date ]]=$A17)*(Tableau6[Requetes]=F$2))","v":0},{"$f":"SUMPRODUCT((Tableau6[[Typologie ]]=\"Showroom Bafoussam\")*(Tableau6[[Date ]]=$A17)*(Tableau6[Requetes]=G$2))","v":0},{"$f":"SUMPRODUCT((Tableau6[[Typologie ]]=\"Showroom Yaounde\")*(Tableau6[[Date ]]=$A17)*(Tableau6[Requetes]=H$2))","v":0},{"$f":"SUMPRODUCT((Tableau6[[Code Réclamation  ]]=\"Showroom Yaounde\")*(Tableau6[[Typologie ]]=$A17)*(Tableau6[[Catégories ]]=I$2))","v":0},{"$f":"SUMPRODUCT((Tableau6[Noms & Prenoms]=\"Showroom Yaounde\")*(Tableau6[[Code Réclamation  ]]=$A17)*(Tableau6[Types]=J$2))","v":0},{"$f":"SUMPRODUCT((Tableau6[[Typologie ]]=\"Showroom Bonamoussadi\")*(Tableau6[[Date ]]=$A17)*(Tableau6[Requetes]=K$2))","v":0},{"$f":"SUMPRODUCT((Tableau6[[Code Réclamation  ]]=\"Showroom Bonamoussadi\")*(Tableau6[[Typologie ]]=$A17)*(Tableau6[[Catégories ]]=L$2))","v":0},{"$f":"SUMPRODUCT((Tableau6[Noms & Prenoms]=\"Showroom Bonamoussadi\")*(Tableau6[[Code Réclamation  ]]=$A17)*(Tableau6[Types]=M$2))","v":0},{"$f":"SUMPRODUCT((Tableau6[[Typologie ]]=\"Showroom Bonanjo\")*(Tableau6[[Date ]]=$A17)*(Tableau6[Requetes]=N$2))","v":0},{"$f":"SUMPRODUCT((Tableau6[[Code Réclamation  ]]=\"Showroom Bonanjo\")*(Tableau6[[Typologie ]]=$A17)*(Tableau6[[Catégories ]]=O$2))","v":0},{"$f":"SUMPRODUCT((Tableau6[Noms & Prenoms]=\"Showroom Bonanjo\")*(Tableau6[[Code Réclamation  ]]=$A17)*(Tableau6[Types]=P$2))","v":0},{"$f":"SUMPRODUCT((Tableau6[[Typologie ]]=\"Showroom Garoua\")*(Tableau6[[Date ]]=$A17)*(Tableau6[Requetes]=Q$2))","v":0},{"$f":"SUMPRODUCT((Tableau6[[Code Réclamation  ]]=\"Showroom Garoua\")*(Tableau6[[Typologie ]]=$A17)*(Tableau6[[Catégories ]]=R$2))","v":0},{"$f":"SUMPRODUCT((Tableau6[Noms & Prenoms]=\"Showroom Garoua\")*(Tableau6[[Code Réclamation  ]]=$A17)*(Tableau6[Types]=S$2))","v":0},{"$f":"SUMPRODUCT((Tableau6[[Typologie ]]=\"Shop Bastos\")*(Tableau6[[Date ]]=$A17)*(Tableau6[Requetes]=T$2))","v":0},{"$f":"SUMPRODUCT((Tableau6[[Code Réclamation  ]]=\"Shop Bastos\")*(Tableau6[[Typologie ]]=$A17)*(Tableau6[[Catégories ]]=U$2))","v":0},{"$f":"SUMPRODUCT((Tableau6[Noms & Prenoms]=\"Shop Bastos\")*(Tableau6[[Code Réclamation  ]]=$A17)*(Tableau6[Types]=V$2))","v":0},{"$f":"SUMPRODUCT((Tableau6[[Typologie ]]=\"Shop Essos\")*(Tableau6[[Date ]]=$A17)*(Tableau6[Requetes]=W$2))","v":0},{"$f":"SUMPRODUCT((Tableau6[[Code Réclamation  ]]=\"Shop Essos\")*(Tableau6[[Typologie ]]=$A17)*(Tableau6[[Catégories ]]=X$2))","v":0},{"$f":"SUMPRODUCT((Tableau6[Noms & Prenoms]=\"Shop Essos\")*(Tableau6[[Code Réclamation  ]]=$A17)*(Tableau6[Types]=Y$2))","v":0},{"$f":"SUMPRODUCT((Tableau6[[Typologie ]]=\"Shop Peyrissac\")*(Tableau6[[Date ]]=$A17)*(Tableau6[Requetes]=Z$2))","v":0},{"$f":"SUMPRODUCT((Tableau6[[Code Réclamation  ]]=\"Shop Peyrissac\")*(Tableau6[[Typologie ]]=$A17)*(Tableau6[[Catégories ]]=AA$2))","v":0},{"$f":"SUMPRODUCT((Tableau6[Noms & Prenoms]=\"Shop Peyrissac\")*(Tableau6[[Code Réclamation  ]]=$A17)*(Tableau6[Types]=AB$2))","v":0},{"$f":"SUMPRODUCT((Tableau6[[Typologie ]]=\"Back Office\")*(Tableau6[[Date ]]=$A17)*(Tableau6[Requetes]=AC$2))","v":0},{"$f":"SUMPRODUCT((Tableau6[[Code Réclamation  ]]=\"Back Office\")*(Tableau6[[Typologie ]]=$A17)*(Tableau6[[Catégories ]]=AD$2))","v":0},{"$f":"SUMPRODUCT((Tableau6[Noms & Prenoms]=\"Back Office\")*(Tableau6[[Code Réclamation  ]]=$A17)*(Tableau6[Types]=AE$2))","v":0},{"$f":"SUMPRODUCT((Tableau6[[Typologie ]]=\"Front Office\")*(Tableau6[[Date ]]=$A17)*(Tableau6[Requetes]=AF$2))","v":0},{"$f":"SUMPRODUCT((Tableau6[[Code Réclamation  ]]=\"Front Office\")*(Tableau6[[Typologie ]]=$A17)*(Tableau6[[Catégories ]]=AG$2))","v":0},{"$f":"SUMPRODUCT((Tableau6[Noms & Prenoms]=\"Front Office\")*(Tableau6[[Code Réclamation  ]]=$A17)*(Tableau6[Types]=AH$2))","v":0},{"$f":"SUMPRODUCT((Tableau6[[Typologie ]]=\"Direction Générale\")*(Tableau6[[Date ]]=$A17)*(Tableau6[Requetes]=AI$2))","v":0},{"$f":"SUMPRODUCT((Tableau6[[Code Réclamation  ]]=\"Direction Générale\")*(Tableau6[[Typologie ]]=$A17)*(Tableau6[[Catégories ]]=AJ$2))","v":0},{"$f":"SUMPRODUCT((Tableau6[Noms & Prenoms]=\"Direction Générale\")*(Tableau6[[Code Réclamation  ]]=$A17)*(Tableau6[Types]=AK$2))","v":0}]
["2018-01-16",{"$f":"SUMPRODUCT((Tableau6[[Typologie ]]=\"Showroom Akwa\")*(Tableau6[[Date ]]=$A18)*(Tableau6[Requetes]=B$2))","v":0},{"$f":"SUMPRODUCT((Tableau6[[Typologie ]]=\"Showroom Akwa\")*(Tableau6[[Date ]]=$A18)*(Tableau6[Requetes]=C$2))","v":0},{"$f":"SUMPRODUCT((Tableau6[[Typologie ]]=\"Showroom Akwa\")*(Tableau6[[Date ]]=$A18)*(Tableau6[Requetes]=D$2))","v":0},{"$f":"SUMPRODUCT((Tableau6[[Typologie ]]=\"Showroom Bafoussam\")*(Tableau6[[Date ]]=$A18)*(Tableau6[Requetes]=E$2))","v":0},{"$f":"SUMPRODUCT((Tableau6[[Typologie ]]=\"Showroom Bafoussam\")*(Tableau6[[Date ]]=$A18)*(Tableau6[Requetes]=F$2))","v":0},{"$f":"SUMPRODUCT((Tableau6[[Typologie ]]=\"Showroom Bafoussam\")*(Tableau6[[Date ]]=$A18)*(Tableau6[Requetes]=G$2))","v":0},{"$f":"SUMPRODUCT((Tableau6[[Typologie ]]=\"Showroom Yaounde\")*(Tableau6[[Date ]]=$A18)*(Tableau6[Requetes]=H$2))","v":0},{"$f":"SUMPRODUCT((Tableau6[[Code Réclamation  ]]=\"Showroom Yaounde\")*(Tableau6[[Typologie ]]=$A18)*(Tableau6[[Catégories ]]=I$2))","v":0},{"$f":"SUMPRODUCT((Tableau6[Noms & Prenoms]=\"Showroom Yaounde\")*(Tableau6[[Code Réclamation  ]]=$A18)*(Tableau6[Types]=J$2))","v":0},{"$f":"SUMPRODUCT((Tableau6[[Typologie ]]=\"Showroom Bonamoussadi\")*(Tableau6[[Date ]]=$A18)*(Tableau6[Requetes]=K$2))","v":0},{"$f":"SUMPRODUCT((Tableau6[[Code Réclamation  ]]=\"Showroom Bonamoussadi\")*(Tableau6[[Typologie ]]=$A18)*(Tableau6[[Catégories ]]=L$2))","v":0},{"$f":"SUMPRODUCT((Tableau6[Noms & Prenoms]=\"Showroom Bonamoussadi\")*(Tableau6[[Code Réclamation  ]]=$A18)*(Tableau6[Types]=M$2))","v":0},{"$f":"SUMPRODUCT((Tableau6[[Typologie ]]=\"Showroom Bonanjo\")*(Tableau6[[Date ]]=$A18)*(Tableau6[Requetes]=N$2))","v":0},{"$f":"SUMPRODUCT((Tableau6[[Code Réclamation  ]]=\"Showroom Bonanjo\")*(Tableau6[[Typologie ]]=$A18)*(Tableau6[[Catégories ]]=O$2))","v":0},{"$f":"SUMPRODUCT((Tableau6[Noms & Prenoms]=\"Showroom Bonanjo\")*(Tableau6[[Code Réclamation  ]]=$A18)*(Tableau6[Types]=P$2))","v":0},{"$f":"SUMPRODUCT((Tableau6[[Typologie ]]=\"Showroom Garoua\")*(Tableau6[[Date ]]=$A18)*(Tableau6[Requetes]=Q$2))","v":0},{"$f":"SUMPRODUCT((Tableau6[[Code Réclamation  ]]=\"Showroom Garoua\")*(Tableau6[[Typologie ]]=$A18)*(Tableau6[[Catégories ]]=R$2))","v":0},{"$f":"SUMPRODUCT((Tableau6[Noms & Prenoms]=\"Showroom Garoua\")*(Tableau6[[Code Réclamation  ]]=$A18)*(Tableau6[Types]=S$2))","v":0},{"$f":"SUMPRODUCT((Tableau6[[Typologie ]]=\"Shop Bastos\")*(Tableau6[[Date ]]=$A18)*(Tableau6[Requetes]=T$2))","v":0},{"$f":"SUMPRODUCT((Tableau6[[Code Réclamation  ]]=\"Shop Bastos\")*(Tableau6[[Typologie ]]=$A18)*(Tableau6[[Catégories ]]=U$2))","v":0},{"$f":"SUMPRODUCT((Tableau6[Noms & Prenoms]=\"Shop Bastos\")*(Tableau6[[Code Réclamation  ]]=$A18)*(Tableau6[Types]=V$2))","v":0},{"$f":"SUMPRODUCT((Tableau6[[Typologie ]]=\"Shop Essos\")*(Tableau6[[Date ]]=$A18)*(Tableau6[Requetes]=W$2))","v":0},{"$f":"SUMPRODUCT((Tableau6[[Code Réclamation  ]]=\"Shop Essos\")*(Tableau6[[Typologie ]]=$A18)*(Tableau6[[Catégories ]]=X$2))","v":0},{"$f":"SUMPRODUCT((Tableau6[Noms & Prenoms]=\"Shop Essos\")*(Tableau6[[Code Réclamation  ]]=$A18)*(Tableau6[Types]=Y$2))","v":0},{"$f":"SUMPRODUCT((Tableau6[[Typologie ]]=\"Shop Peyrissac\")*(Tableau6[[Date ]]=$A18)*(Tableau6[Requetes]=Z$2))","v":0},{"$f":"SUMPRODUCT((Tableau6[[Code Réclamation  ]]=\"Shop Peyrissac\")*(Tableau6[[Typologie ]]=$A18)*(Tableau6[[Catégories ]]=AA$2))","v":0},{"$f":"SUMPRODUCT((Tableau6[Noms & Prenoms]=\"Shop Peyrissac\")*(Tableau6[[Code Réclamation  ]]=$A18)*(Tableau6[Types]=AB$2))","v":0},{"$f":"SUMPRODUCT((Tableau6[[Typologie ]]=\"Back Office\")*(Tableau6[[Date ]]=$A18)*(Tableau6[Requetes]=AC$2))","v":0},{"$f":"SUMPRODUCT((Tableau6[[Code Réclamation  ]]=\"Back Office\")*(Tableau6[[Typologie ]]=$A18)*(Tableau6[[Catégories ]]=AD$2))","v":0},{"$f":"SUMPRODUCT((Tableau6[Noms & Prenoms]=\"Back Office\")*(Tableau6[[Code Réclamation  ]]=$A18)*(Tableau6[Types]=AE$2))","v":0},{"$f":"SUMPRODUCT((Tableau6[[Typologie ]]=\"Front Office\")*(Tableau6[[Date ]]=$A18)*(Tableau6[Requetes]=AF$2))","v":0},{"$f":"SUMPRODUCT((Tableau6[[Code Réclamation  ]]=\"Front Office\")*(Tableau6[[Typologie ]]=$A18)*(Tableau6[[Catégories ]]=AG$2))","v":0},{"$f":"SUMPRODUCT((Tableau6[Noms & Prenoms]=\"Front Office\")*(Tableau6[[Code Réclamation  ]]=$A18)*(Tableau6[Types]=AH$2))","v":0},{"$f":"SUMPRODUCT((Tableau6[[Typologie ]]=\"Direction Générale\")*(Tableau6[[Date ]]=$A18)*(Tableau6[Requetes]=AI$2))","v":0},{"$f":"SUMPRODUCT((Tableau6[[Code Réclamation  ]]=\"Direction Générale\")*(Tableau6[[Typologie ]]=$A18)*(Tableau6[[Catégories ]]=AJ$2))","v":0},{"$f":"SUMPRODUCT((Tableau6[Noms & Prenoms]=\"Direction Générale\")*(Tableau6[[Code Réclamation  ]]=$A18)*(Tableau6[Types]=AK$2))","v":0}]
["2018-01-17",{"$f":"SUMPRODUCT((Tableau6[[Typologie ]]=\"Showroom Akwa\")*(Tableau6[[Date ]]=$A19)*(Tableau6[Requetes]=B$2))","v":0},{"$f":"SUMPRODUCT((Tableau6[[Typologie ]]=\"Showroom Akwa\")*(Tableau6[[Date ]]=$A19)*(Tableau6[Requetes]=C$2))","v":0},{"$f":"SUMPRODUCT((Tableau6[[Typologie ]]=\"Showroom Akwa\")*(Tableau6[[Date ]]=$A19)*(Tableau6[Requetes]=D$2))","v":0},{"$f":"SUMPRODUCT((Tableau6[[Typologie ]]=\"Showroom Bafoussam\")*(Tableau6[[Date ]]=$A19)*(Tableau6[Requetes]=E$2))","v":0},{"$f":"SUMPRODUCT((Tableau6[[Typologie ]]=\"Showroom Bafoussam\")*(Tableau6[[Date ]]=$A19)*(Tableau6[Requetes]=F$2))","v":0},{"$f":"SUMPRODUCT((Tableau6[[Typologie ]]=\"Showroom Bafoussam\")*(Tableau6[[Date ]]=$A19)*(Tableau6[Requetes]=G$2))","v":0},{"$f":"SUMPRODUCT((Tableau6[[Typologie ]]=\"Showroom Yaounde\")*(Tableau6[[Date ]]=$A19)*(Tableau6[Requetes]=H$2))","v":0},{"$f":"SUMPRODUCT((Tableau6[[Code Réclamation  ]]=\"Showroom Yaounde\")*(Tableau6[[Typologie ]]=$A19)*(Tableau6[[Catégories ]]=I$2))","v":0},{"$f":"SUMPRODUCT((Tableau6[Noms & Prenoms]=\"Showroom Yaounde\")*(Tableau6[[Code Réclamation  ]]=$A19)*(Tableau6[Types]=J$2))","v":0},{"$f":"SUMPRODUCT((Tableau6[[Typologie ]]=\"Showroom Bonamoussadi\")*(Tableau6[[Date ]]=$A19)*(Tableau6[Requetes]=K$2))","v":0},{"$f":"SUMPRODUCT((Tableau6[[Code Réclamation  ]]=\"Showroom Bonamoussadi\")*(Tableau6[[Typologie ]]=$A19)*(Tableau6[[Catégories ]]=L$2))","v":0},{"$f":"SUMPRODUCT((Tableau6[Noms & Prenoms]=\"Showroom Bonamoussadi\")*(Tableau6[[Code Réclamation  ]]=$A19)*(Tableau6[Types]=M$2))","v":0},{"$f":"SUMPRODUCT((Tableau6[[Typologie ]]=\"Showroom Bonanjo\")*(Tableau6[[Date ]]=$A19)*(Tableau6[Requetes]=N$2))","v":0},{"$f":"SUMPRODUCT((Tableau6[[Code Réclamation  ]]=\"Showroom Bonanjo\")*(Tableau6[[Typologie ]]=$A19)*(Tableau6[[Catégories ]]=O$2))","v":0},{"$f":"SUMPRODUCT((Tableau6[Noms & Prenoms]=\"Showroom Bonanjo\")*(Tableau6[[Code Réclamation  ]]=$A19)*(Tableau6[Types]=P$2))","v":0},{"$f":"SUMPRODUCT((Tableau6[[Typologie ]]=\"Showroom Garoua\")*(Tableau6[[Date ]]=$A19)*(Tableau6[Requetes]=Q$2))","v":0},{"$f":"SUMPRODUCT((Tableau6[[Code Réclamation  ]]=\"Showroom Garoua\")*(Tableau6[[Typologie ]]=$A19)*(Tableau6[[Catégories ]]=R$2))","v":0},{"$f":"SUMPRODUCT((Tableau6[Noms & Prenoms]=\"Showroom Garoua\")*(Tableau6[[Code Réclamation  ]]=$A19)*(Tableau6[Types]=S$2))","v":0},{"$f":"SUMPRODUCT((Tableau6[[Typologie ]]=\"Shop Bastos\")*(Tableau6[[Date ]]=$A19)*(Tableau6[Requetes]=T$2))","v":0},{"$f":"SUMPRODUCT((Tableau6[[Code Réclamation  ]]=\"Shop Bastos\")*(Tableau6[[Typologie ]]=$A19)*(Tableau6[[Catégories ]]=U$2))","v":0},{"$f":"SUMPRODUCT((Tableau6[Noms & Prenoms]=\"Shop Bastos\")*(Tableau6[[Code Réclamation  ]]=$A19)*(Tableau6[Types]=V$2))","v":0},{"$f":"SUMPRODUCT((Tableau6[[Typologie ]]=\"Shop Essos\")*(Tableau6[[Date ]]=$A19)*(Tableau6[Requetes]=W$2))","v":0},{"$f":"SUMPRODUCT((Tableau6[[Code Réclamation  ]]=\"Shop Essos\")*(Tableau6[[Typologie ]]=$A19)*(Tableau6[[Catégories ]]=X$2))","v":0},{"$f":"SUMPRODUCT((Tableau6[Noms & Prenoms]=\"Shop Essos\")*(Tableau6[[Code Réclamation  ]]=$A19)*(Tableau6[Types]=Y$2))","v":0},{"$f":"SUMPRODUCT((Tableau6[[Typologie ]]=\"Shop Peyrissac\")*(Tableau6[[Date ]]=$A19)*(Tableau6[Requetes]=Z$2))","v":0},{"$f":"SUMPRODUCT((Tableau6[[Code Réclamation  ]]=\"Shop Peyrissac\")*(Tableau6[[Typologie ]]=$A19)*(Tableau6[[Catégories ]]=AA$2))","v":0},{"$f":"SUMPRODUCT((Tableau6[Noms & Prenoms]=\"Shop Peyrissac\")*(Tableau6[[Code Réclamation  ]]=$A19)*(Tableau6[Types]=AB$2))","v":0},{"$f":"SUMPRODUCT((Tableau6[[Typologie ]]=\"Back Office\")*(Tableau6[[Date ]]=$A19)*(Tableau6[Requetes]=AC$2))","v":0},{"$f":"SUMPRODUCT((Tableau6[[Code Réclamation  ]]=\"Back Office\")*(Tableau6[[Typologie ]]=$A19)*(Tableau6[[Catégories ]]=AD$2))","v":0},{"$f":"SUMPRODUCT((Tableau6[Noms & Prenoms]=\"Back Office\")*(Tableau6[[Code Réclamation  ]]=$A19)*(Tableau6[Types]=AE$2))","v":0},{"$f":"SUMPRODUCT((Tableau6[[Typologie ]]=\"Front Office\")*(Tableau6[[Date ]]=$A19)*(Tableau6[Requetes]=AF$2))","v":0},{"$f":"SUMPRODUCT((Tableau6[[Code Réclamation  ]]=\"Front Office\")*(Tableau6[[Typologie ]]=$A19)*(Tableau6[[Catégories ]]=AG$2))","v":0},{"$f":"SUMPRODUCT((Tableau6[Noms & Prenoms]=\"Front Office\")*(Tableau6[[Code Réclamation  ]]=$A19)*(Tableau6[Types]=AH$2))","v":0},{"$f":"SUMPRODUCT((Tableau6[[Typologie ]]=\"Direction Générale\")*(Tableau6[[Date ]]=$A19)*(Tableau6[Requetes]=AI$2))","v":0},{"$f":"SUMPRODUCT((Tableau6[[Code Réclamation  ]]=\"Direction Générale\")*(Tableau6[[Typologie ]]=$A19)*(Tableau6[[Catégories ]]=AJ$2))","v":0},{"$f":"SUMPRODUCT((Tableau6[Noms & Prenoms]=\"Direction Générale\")*(Tableau6[[Code Réclamation  ]]=$A19)*(Tableau6[Types]=AK$2))","v":0}]
["2018-01-18",{"$f":"SUMPRODUCT((Tableau6[[Typologie ]]=\"Showroom Akwa\")*(Tableau6[[Date ]]=$A20)*(Tableau6[Requetes]=B$2))","v":0},{"$f":"SUMPRODUCT((Tableau6[[Typologie ]]=\"Showroom Akwa\")*(Tableau6[[Date ]]=$A20)*(Tableau6[Requetes]=C$2))","v":0},{"$f":"SUMPRODUCT((Tableau6[[Typologie ]]=\"Showroom Akwa\")*(Tableau6[[Date ]]=$A20)*(Tableau6[Requetes]=D$2))","v":0},{"$f":"SUMPRODUCT((Tableau6[[Typologie ]]=\"Showroom Bafoussam\")*(Tableau6[[Date ]]=$A20)*(Tableau6[Requetes]=E$2))","v":0},{"$f":"SUMPRODUCT((Tableau6[[Typologie ]]=\"Showroom Bafoussam\")*(Tableau6[[Date ]]=$A20)*(Tableau6[Requetes]=F$2))","v":0},{"$f":"SUMPRODUCT((Tableau6[[Typologie ]]=\"Showroom Bafoussam\")*(Tableau6[[Date ]]=$A20)*(Tableau6[Requetes]=G$2))","v":0},{"$f":"SUMPRODUCT((Tableau6[[Typologie ]]=\"Showroom Yaounde\")*(Tableau6[[Date ]]=$A20)*(Tableau6[Requetes]=H$2))","v":0},{"$f":"SUMPRODUCT((Tableau6[[Code Réclamation  ]]=\"Showroom Yaounde\")*(Tableau6[[Typologie ]]=$A20)*(Tableau6[[Catégories ]]=I$2))","v":0},{"$f":"SUMPRODUCT((Tableau6[Noms & Prenoms]=\"Showroom Yaounde\")*(Tableau6[[Code Réclamation  ]]=$A20)*(Tableau6[Types]=J$2))","v":0},{"$f":"SUMPRODUCT((Tableau6[[Typologie ]]=\"Showroom Bonamoussadi\")*(Tableau6[[Date ]]=$A20)*(Tableau6[Requetes]=K$2))","v":0},{"$f":"SUMPRODUCT((Tableau6[[Code Réclamation  ]]=\"Showroom Bonamoussadi\")*(Tableau6[[Typologie ]]=$A20)*(Tableau6[[Catégories ]]=L$2))","v":0},{"$f":"SUMPRODUCT((Tableau6[Noms & Prenoms]=\"Showroom Bonamoussadi\")*(Tableau6[[Code Réclamation  ]]=$A20)*(Tableau6[Types]=M$2))","v":0},{"$f":"SUMPRODUCT((Tableau6[[Typologie ]]=\"Showroom Bonanjo\")*(Tableau6[[Date ]]=$A20)*(Tableau6[Requetes]=N$2))","v":0},{"$f":"SUMPRODUCT((Tableau6[[Code Réclamation  ]]=\"Showroom Bonanjo\")*(Tableau6[[Typologie ]]=$A20)*(Tableau6[[Catégories ]]=O$2))","v":0},{"$f":"SUMPRODUCT((Tableau6[Noms & Prenoms]=\"Showroom Bonanjo\")*(Tableau6[[Code Réclamation  ]]=$A20)*(Tableau6[Types]=P$2))","v":0},{"$f":"SUMPRODUCT((Tableau6[[Typologie ]]=\"Showroom Garoua\")*(Tableau6[[Date ]]=$A20)*(Tableau6[Requetes]=Q$2))","v":0},{"$f":"SUMPRODUCT((Tableau6[[Code Réclamation  ]]=\"Showroom Garoua\")*(Tableau6[[Typologie ]]=$A20)*(Tableau6[[Catégories ]]=R$2))","v":0},{"$f":"SUMPRODUCT((Tableau6[Noms & Prenoms]=\"Showroom Garoua\")*(Tableau6[[Code Réclamation  ]]=$A20)*(Tableau6[Types]=S$2))","v":0},{"$f":"SUMPRODUCT((Tableau6[[Typologie ]]=\"Shop Bastos\")*(Tableau6[[Date ]]=$A20)*(Tableau6[Requetes]=T$2))","v":0},{"$f":"SUMPRODUCT((Tableau6[[Code Réclamation  ]]=\"Shop Bastos\")*(Tableau6[[Typologie ]]=$A20)*(Tableau6[[Catégories ]]=U$2))","v":0},{"$f":"SUMPRODUCT((Tableau6[Noms & Prenoms]=\"Shop Bastos\")*(Tableau6[[Code Réclamation  ]]=$A20)*(Tableau6[Types]=V$2))","v":0},{"$f":"SUMPRODUCT((Tableau6[[Typologie ]]=\"Shop Essos\")*(Tableau6[[Date ]]=$A20)*(Tableau6[Requetes]=W$2))","v":0},{"$f":"SUMPRODUCT((Tableau6[[Code Réclamation  ]]=\"Shop Essos\")*(Tableau6[[Typologie ]]=$A20)*(Tableau6[[Catégories ]]=X$2))","v":0},{"$f":"SUMPRODUCT((Tableau6[Noms & Prenoms]=\"Shop Essos\")*(Tableau6[[Code Réclamation  ]]=$A20)*(Tableau6[Types]=Y$2))","v":0},{"$f":"SUMPRODUCT((Tableau6[[Typologie ]]=\"Shop Peyrissac\")*(Tableau6[[Date ]]=$A20)*(Tableau6[Requetes]=Z$2))","v":0},{"$f":"SUMPRODUCT((Tableau6[[Code Réclamation  ]]=\"Shop Peyrissac\")*(Tableau6[[Typologie ]]=$A20)*(Tableau6[[Catégories ]]=AA$2))","v":0},{"$f":"SUMPRODUCT((Tableau6[Noms & Prenoms]=\"Shop Peyrissac\")*(Tableau6[[Code Réclamation  ]]=$A20)*(Tableau6[Types]=AB$2))","v":0},{"$f":"SUMPRODUCT((Tableau6[[Typologie ]]=\"Back Office\")*(Tableau6[[Date ]]=$A20)*(Tableau6[Requetes]=AC$2))","v":0},{"$f":"SUMPRODUCT((Tableau6[[Code Réclamation  ]]=\"Back Office\")*(Tableau6[[Typologie ]]=$A20)*(Tableau6[[Catégories ]]=AD$2))","v":0},{"$f":"SUMPRODUCT((Tableau6[Noms & Prenoms]=\"Back Office\")*(Tableau6[[Code Réclamation  ]]=$A20)*(Tableau6[Types]=AE$2))","v":0},{"$f":"SUMPRODUCT((Tableau6[[Typologie ]]=\"Front Office\")*(Tableau6[[Date ]]=$A20)*(Tableau6[Requetes]=AF$2))","v":0},{"$f":"SUMPRODUCT((Tableau6[[Code Réclamation  ]]=\"Front Office\")*(Tableau6[[Typologie ]]=$A20)*(Tableau6[[Catégories ]]=AG$2))","v":0},{"$f":"SUMPRODUCT((Tableau6[Noms & Prenoms]=\"Front Office\")*(Tableau6[[Code Réclamation  ]]=$A20)*(Tableau6[Types]=AH$2))","v":0},{"$f":"SUMPRODUCT((Tableau6[[Typologie ]]=\"Direction Générale\")*(Tableau6[[Date ]]=$A20)*(Tableau6[Requetes]=AI$2))","v":0},{"$f":"SUMPRODUCT((Tableau6[[Code Réclamation  ]]=\"Direction Générale\")*(Tableau6[[Typologie ]]=$A20)*(Tableau6[[Catégories ]]=AJ$2))","v":0},{"$f":"SUMPRODUCT((Tableau6[Noms & Prenoms]=\"Direction Générale\")*(Tableau6[[Code Réclamation  ]]=$A20)*(Tableau6[Types]=AK$2))","v":0}]
["2018-01-19",{"$f":"SUMPRODUCT((Tableau6[[Typologie ]]=\"Showroom Akwa\")*(Tableau6[[Date ]]=$A21)*(Tableau6[Requetes]=B$2))","v":0},{"$f":"SUMPRODUCT((Tableau6[[Typologie ]]=\"Showroom Akwa\")*(Tableau6[[Date ]]=$A21)*(Tableau6[Requetes]=C$2))","v":0},{"$f":"SUMPRODUCT((Tableau6[[Typologie ]]=\"Showroom Akwa\")*(Tableau6[[Date ]]=$A21)*(Tableau6[Requetes]=D$2))","v":0},{"$f":"SUMPRODUCT((Tableau6[[Typologie ]]=\"Showroom Bafoussam\")*(Tableau6[[Date ]]=$A21)*(Tableau6[Requetes]=E$2))","v":0},{"$f":"SUMPRODUCT((Tableau6[[Typologie ]]=\"Showroom Bafoussam\")*(Tableau6[[Date ]]=$A21)*(Tableau6[Requetes]=F$2))","v":0},{"$f":"SUMPRODUCT((Tableau6[[Typologie ]]=\"Showroom Bafoussam\")*(Tableau6[[Date ]]=$A21)*(Tableau6[Requetes]=G$2))","v":0},{"$f":"SUMPRODUCT((Tableau6[[Typologie ]]=\"Showroom Yaounde\")*(Tableau6[[Date ]]=$A21)*(Tableau6[Requetes]=H$2))","v":0},{"$f":"SUMPRODUCT((Tableau6[[Code Réclamation  ]]=\"Showroom Yaounde\")*(Tableau6[[Typologie ]]=$A21)*(Tableau6[[Catégories ]]=I$2))","v":0},{"$f":"SUMPRODUCT((Tableau6[Noms & Prenoms]=\"Showroom Yaounde\")*(Tableau6[[Code Réclamation  ]]=$A21)*(Tableau6[Types]=J$2))","v":0},{"$f":"SUMPRODUCT((Tableau6[[Typologie ]]=\"Showroom Bonamoussadi\")*(Tableau6[[Date ]]=$A21)*(Tableau6[Requetes]=K$2))","v":0},{"$f":"SUMPRODUCT((Tableau6[[Code Réclamation  ]]=\"Showroom Bonamoussadi\")*(Tableau6[[Typologie ]]=$A21)*(Tableau6[[Catégories ]]=L$2))","v":0},{"$f":"SUMPRODUCT((Tableau6[Noms & Prenoms]=\"Showroom Bonamoussadi\")*(Tableau6[[Code Réclamation  ]]=$A21)*(Tableau6[Types]=M$2))","v":0},{"$f":"SUMPRODUCT((Tableau6[[Typologie ]]=\"Showroom Bonanjo\")*(Tableau6[[Date ]]=$A21)*(Tableau6[Requetes]=N$2))","v":0},{"$f":"SUMPRODUCT((Tableau6[[Code Réclamation  ]]=\"Showroom Bonanjo\")*(Tableau6[[Typologie ]]=$A21)*(Tableau6[[Catégories ]]=O$2))","v":0},{"$f":"SUMPRODUCT((Tableau6[Noms & Prenoms]=\"Showroom Bonanjo\")*(Tableau6[[Code Réclamation  ]]=$A21)*(Tableau6[Types]=P$2))","v":0},{"$f":"SUMPRODUCT((Tableau6[[Typologie ]]=\"Showroom Garoua\")*(Tableau6[[Date ]]=$A21)*(Tableau6[Requetes]=Q$2))","v":0},{"$f":"SUMPRODUCT((Tableau6[[Code Réclamation  ]]=\"Showroom Garoua\")*(Tableau6[[Typologie ]]=$A21)*(Tableau6[[Catégories ]]=R$2))","v":0},{"$f":"SUMPRODUCT((Tableau6[Noms & Prenoms]=\"Showroom Garoua\")*(Tableau6[[Code Réclamation  ]]=$A21)*(Tableau6[Types]=S$2))","v":0},{"$f":"SUMPRODUCT((Tableau6[[Typologie ]]=\"Shop Bastos\")*(Tableau6[[Date ]]=$A21)*(Tableau6[Requetes]=T$2))","v":0},{"$f":"SUMPRODUCT((Tableau6[[Code Réclamation  ]]=\"Shop Bastos\")*(Tableau6[[Typologie ]]=$A21)*(Tableau6[[Catégories ]]=U$2))","v":0},{"$f":"SUMPRODUCT((Tableau6[Noms & Prenoms]=\"Shop Bastos\")*(Tableau6[[Code Réclamation  ]]=$A21)*(Tableau6[Types]=V$2))","v":0},{"$f":"SUMPRODUCT((Tableau6[[Typologie ]]=\"Shop Essos\")*(Tableau6[[Date ]]=$A21)*(Tableau6[Requetes]=W$2))","v":0},{"$f":"SUMPRODUCT((Tableau6[[Code Réclamation  ]]=\"Shop Essos\")*(Tableau6[[Typologie ]]=$A21)*(Tableau6[[Catégories ]]=X$2))","v":0},{"$f":"SUMPRODUCT((Tableau6[Noms & Prenoms]=\"Shop Essos\")*(Tableau6[[Code Réclamation  ]]=$A21)*(Tableau6[Types]=Y$2))","v":0},{"$f":"SUMPRODUCT((Tableau6[[Typologie ]]=\"Shop Peyrissac\")*(Tableau6[[Date ]]=$A21)*(Tableau6[Requetes]=Z$2))","v":0},{"$f":"SUMPRODUCT((Tableau6[[Code Réclamation  ]]=\"Shop Peyrissac\")*(Tableau6[[Typologie ]]=$A21)*(Tableau6[[Catégories ]]=AA$2))","v":0},{"$f":"SUMPRODUCT((Tableau6[Noms & Prenoms]=\"Shop Peyrissac\")*(Tableau6[[Code Réclamation  ]]=$A21)*(Tableau6[Types]=AB$2))","v":0},{"$f":"SUMPRODUCT((Tableau6[[Typologie ]]=\"Back Office\")*(Tableau6[[Date ]]=$A21)*(Tableau6[Requetes]=AC$2))","v":0},{"$f":"SUMPRODUCT((Tableau6[[Code Réclamation  ]]=\"Back Office\")*(Tableau6[[Typologie ]]=$A21)*(Tableau6[[Catégories ]]=AD$2))","v":0},{"$f":"SUMPRODUCT((Tableau6[Noms & Prenoms]=\"Back Office\")*(Tableau6[[Code Réclamation  ]]=$A21)*(Tableau6[Types]=AE$2))","v":0},{"$f":"SUMPRODUCT((Tableau6[[Typologie ]]=\"Front Office\")*(Tableau6[[Date ]]=$A21)*(Tableau6[Requetes]=AF$2))","v":0},{"$f":"SUMPRODUCT((Tableau6[[Code Réclamation  ]]=\"Front Office\")*(Tableau6[[Typologie ]]=$A21)*(Tableau6[[Catégories ]]=AG$2))","v":0},{"$f":"SUMPRODUCT((Tableau6[Noms & Prenoms]=\"Front Office\")*(Tableau6[[Code Réclamation  ]]=$A21)*(Tableau6[Types]=AH$2))","v":0},{"$f":"SUMPRODUCT((Tableau6[[Typologie ]]=\"Direction Générale\")*(Tableau6[[Date ]]=$A21)*(Tableau6[Requetes]=AI$2))","v":0},{"$f":"SUMPRODUCT((Tableau6[[Code Réclamation  ]]=\"Direction Générale\")*(Tableau6[[Typologie ]]=$A21)*(Tableau6[[Catégories ]]=AJ$2))","v":0},{"$f":"SUMPRODUCT((Tableau6[Noms & Prenoms]=\"Direction Générale\")*(Tableau6[[Code Réclamation  ]]=$A21)*(Tableau6[Types]=AK$2))","v":0}]
["2018-01-20",{"$f":"SUMPRODUCT((Tableau6[[Typologie ]]=\"Showroom Akwa\")*(Tableau6[[Date ]]=$A22)*(Tableau6[Requetes]=B$2))","v":0},{"$f":"SUMPRODUCT((Tableau6[[Typologie ]]=\"Showroom Akwa\")*(Tableau6[[Date ]]=$A22)*(Tableau6[Requetes]=C$2))","v":0},{"$f":"SUMPRODUCT((Tableau6[[Typologie ]]=\"Showroom Akwa\")*(Tableau6[[Date ]]=$A22)*(Tableau6[Requetes]=D$2))","v":0},{"$f":"SUMPRODUCT((Tableau6[[Typologie ]]=\"Showroom Bafoussam\")*(Tableau6[[Date ]]=$A22)*(Tableau6[Requetes]=E$2))","v":0},{"$f":"SUMPRODUCT((Tableau6[[Typologie ]]=\"Showroom Bafoussam\")*(Tableau6[[Date ]]=$A22)*(Tableau6[Requetes]=F$2))","v":0},{"$f":"SUMPRODUCT((Tableau6[[Typologie ]]=\"Showroom Bafoussam\")*(Tableau6[[Date ]]=$A22)*(Tableau6[Requetes]=G$2))","v":0},{"$f":"SUMPRODUCT((Tableau6[[Typologie ]]=\"Showroom Yaounde\")*(Tableau6[[Date ]]=$A22)*(Tableau6[Requetes]=H$2))","v":0},{"$f":"SUMPRODUCT((Tableau6[[Code Réclamation  ]]=\"Showroom Yaounde\")*(Tableau6[[Typologie ]]=$A22)*(Tableau6[[Catégories ]]=I$2))","v":0},{"$f":"SUMPRODUCT((Tableau6[Noms & Prenoms]=\"Showroom Yaounde\")*(Tableau6[[Code Réclamation  ]]=$A22)*(Tableau6[Types]=J$2))","v":0},{"$f":"SUMPRODUCT((Tableau6[[Typologie ]]=\"Showroom Bonamoussadi\")*(Tableau6[[Date ]]=$A22)*(Tableau6[Requetes]=K$2))","v":0},{"$f":"SUMPRODUCT((Tableau6[[Code Réclamation  ]]=\"Showroom Bonamoussadi\")*(Tableau6[[Typologie ]]=$A22)*(Tableau6[[Catégories ]]=L$2))","v":0},{"$f":"SUMPRODUCT((Tableau6[Noms & Prenoms]=\"Showroom Bonamoussadi\")*(Tableau6[[Code Réclamation  ]]=$A22)*(Tableau6[Types]=M$2))","v":0},{"$f":"SUMPRODUCT((Tableau6[[Typologie ]]=\"Showroom Bonanjo\")*(Tableau6[[Date ]]=$A22)*(Tableau6[Requetes]=N$2))","v":0},{"$f":"SUMPRODUCT((Tableau6[[Code Réclamation  ]]=\"Showroom Bonanjo\")*(Tableau6[[Typologie ]]=$A22)*(Tableau6[[Catégories ]]=O$2))","v":0},{"$f":"SUMPRODUCT((Tableau6[Noms & Prenoms]=\"Showroom Bonanjo\")*(Tableau6[[Code Réclamation  ]]=$A22)*(Tableau6[Types]=P$2))","v":0},{"$f":"SUMPRODUCT((Tableau6[[Typologie ]]=\"Showroom Garoua\")*(Tableau6[[Date ]]=$A22)*(Tableau6[Requetes]=Q$2))","v":0},{"$f":"SUMPRODUCT((Tableau6[[Code Réclamation  ]]=\"Showroom Garoua\")*(Tableau6[[Typologie ]]=$A22)*(Tableau6[[Catégories ]]=R$2))","v":0},{"$f":"SUMPRODUCT((Tableau6[Noms & Prenoms]=\"Showroom Garoua\")*(Tableau6[[Code Réclamation  ]]=$A22)*(Tableau6[Types]=S$2))","v":0},{"$f":"SUMPRODUCT((Tableau6[[Typologie ]]=\"Shop Bastos\")*(Tableau6[[Date ]]=$A22)*(Tableau6[Requetes]=T$2))","v":0},{"$f":"SUMPRODUCT((Tableau6[[Code Réclamation  ]]=\"Shop Bastos\")*(Tableau6[[Typologie ]]=$A22)*(Tableau6[[Catégories ]]=U$2))","v":0},{"$f":"SUMPRODUCT((Tableau6[Noms & Prenoms]=\"Shop Bastos\")*(Tableau6[[Code Réclamation  ]]=$A22)*(Tableau6[Types]=V$2))","v":0},{"$f":"SUMPRODUCT((Tableau6[[Typologie ]]=\"Shop Essos\")*(Tableau6[[Date ]]=$A22)*(Tableau6[Requetes]=W$2))","v":0},{"$f":"SUMPRODUCT((Tableau6[[Code Réclamation  ]]=\"Shop Essos\")*(Tableau6[[Typologie ]]=$A22)*(Tableau6[[Catégories ]]=X$2))","v":0},{"$f":"SUMPRODUCT((Tableau6[Noms & Prenoms]=\"Shop Essos\")*(Tableau6[[Code Réclamation  ]]=$A22)*(Tableau6[Types]=Y$2))","v":0},{"$f":"SUMPRODUCT((Tableau6[[Typologie ]]=\"Shop Peyrissac\")*(Tableau6[[Date ]]=$A22)*(Tableau6[Requetes]=Z$2))","v":0},{"$f":"SUMPRODUCT((Tableau6[[Code Réclamation  ]]=\"Shop Peyrissac\")*(Tableau6[[Typologie ]]=$A22)*(Tableau6[[Catégories ]]=AA$2))","v":0},{"$f":"SUMPRODUCT((Tableau6[Noms & Prenoms]=\"Shop Peyrissac\")*(Tableau6[[Code Réclamation  ]]=$A22)*(Tableau6[Types]=AB$2))","v":0},{"$f":"SUMPRODUCT((Tableau6[[Typologie ]]=\"Back Office\")*(Tableau6[[Date ]]=$A22)*(Tableau6[Requetes]=AC$2))","v":0},{"$f":"SUMPRODUCT((Tableau6[[Code Réclamation  ]]=\"Back Office\")*(Tableau6[[Typologie ]]=$A22)*(Tableau6[[Catégories ]]=AD$2))","v":0},{"$f":"SUMPRODUCT((Tableau6[Noms & Prenoms]=\"Back Office\")*(Tableau6[[Code Réclamation  ]]=$A22)*(Tableau6[Types]=AE$2))","v":0},{"$f":"SUMPRODUCT((Tableau6[[Typologie ]]=\"Front Office\")*(Tableau6[[Date ]]=$A22)*(Tableau6[Requetes]=AF$2))","v":0},{"$f":"SUMPRODUCT((Tableau6[[Code Réclamation  ]]=\"Front Office\")*(Tableau6[[Typologie ]]=$A22)*(Tableau6[[Catégories ]]=AG$2))","v":0},{"$f":"SUMPRODUCT((Tableau6[Noms & Prenoms]=\"Front Office\")*(Tableau6[[Code Réclamation  ]]=$A22)*(Tableau6[Types]=AH$2))","v":0},{"$f":"SUMPRODUCT((Tableau6[[Typologie ]]=\"Direction Générale\")*(Tableau6[[Date ]]=$A22)*(Tableau6[Requetes]=AI$2))","v":0},{"$f":"SUMPRODUCT((Tableau6[[Code Réclamation  ]]=\"Direction Générale\")*(Tableau6[[Typologie ]]=$A22)*(Tableau6[[Catégories ]]=AJ$2))","v":0},{"$f":"SUMPRODUCT((Tableau6[Noms & Prenoms]=\"Direction Générale\")*(Tableau6[[Code Réclamation  ]]=$A22)*(Tableau6[Types]=AK$2))","v":0}]
["2018-01-21",{"$f":"SUMPRODUCT((Tableau6[[Typologie ]]=\"Showroom Akwa\")*(Tableau6[[Date ]]=$A23)*(Tableau6[Requetes]=B$2))","v":0},{"$f":"SUMPRODUCT((Tableau6[[Typologie ]]=\"Showroom Akwa\")*(Tableau6[[Date ]]=$A23)*(Tableau6[Requetes]=C$2))","v":0},{"$f":"SUMPRODUCT((Tableau6[[Typologie ]]=\"Showroom Akwa\")*(Tableau6[[Date ]]=$A23)*(Tableau6[Requetes]=D$2))","v":0},{"$f":"SUMPRODUCT((Tableau6[[Typologie ]]=\"Showroom Bafoussam\")*(Tableau6[[Date ]]=$A23)*(Tableau6[Requetes]=E$2))","v":0},{"$f":"SUMPRODUCT((Tableau6[[Typologie ]]=\"Showroom Bafoussam\")*(Tableau6[[Date ]]=$A23)*(Tableau6[Requetes]=F$2))","v":0},{"$f":"SUMPRODUCT((Tableau6[[Typologie ]]=\"Showroom Bafoussam\")*(Tableau6[[Date ]]=$A23)*(Tableau6[Requetes]=G$2))","v":0},{"$f":"SUMPRODUCT((Tableau6[[Typologie ]]=\"Showroom Yaounde\")*(Tableau6[[Date ]]=$A23)*(Tableau6[Requetes]=H$2))","v":0},{"$f":"SUMPRODUCT((Tableau6[[Code Réclamation  ]]=\"Showroom Yaounde\")*(Tableau6[[Typologie ]]=$A23)*(Tableau6[[Catégories ]]=I$2))","v":0},{"$f":"SUMPRODUCT((Tableau6[Noms & Prenoms]=\"Showroom Yaounde\")*(Tableau6[[Code Réclamation  ]]=$A23)*(Tableau6[Types]=J$2))","v":0},{"$f":"SUMPRODUCT((Tableau6[[Typologie ]]=\"Showroom Bonamoussadi\")*(Tableau6[[Date ]]=$A23)*(Tableau6[Requetes]=K$2))","v":0},{"$f":"SUMPRODUCT((Tableau6[[Code Réclamation  ]]=\"Showroom Bonamoussadi\")*(Tableau6[[Typologie ]]=$A23)*(Tableau6[[Catégories ]]=L$2))","v":0},{"$f":"SUMPRODUCT((Tableau6[Noms & Prenoms]=\"Showroom Bonamoussadi\")*(Tableau6[[Code Réclamation  ]]=$A23)*(Tableau6[Types]=M$2))","v":0},{"$f":"SUMPRODUCT((Tableau6[[Typologie ]]=\"Showroom Bonanjo\")*(Tableau6[[Date ]]=$A23)*(Tableau6[Requetes]=N$2))","v":0},{"$f":"SUMPRODUCT((Tableau6[[Code Réclamation  ]]=\"Showroom Bonanjo\")*(Tableau6[[Typologie ]]=$A23)*(Tableau6[[Catégories ]]=O$2))","v":0},{"$f":"SUMPRODUCT((Tableau6[Noms & Prenoms]=\"Showroom Bonanjo\")*(Tableau6[[Code Réclamation  ]]=$A23)*(Tableau6[Types]=P$2))","v":0},{"$f":"SUMPRODUCT((Tableau6[[Typologie ]]=\"Showroom Garoua\")*(Tableau6[[Date ]]=$A23)*(Tableau6[Requetes]=Q$2))","v":0},{"$f":"SUMPRODUCT((Tableau6[[Code Réclamation  ]]=\"Showroom Garoua\")*(Tableau6[[Typologie ]]=$A23)*(Tableau6[[Catégories ]]=R$2))","v":0},{"$f":"SUMPRODUCT((Tableau6[Noms & Prenoms]=\"Showroom Garoua\")*(Tableau6[[Code Réclamation  ]]=$A23)*(Tableau6[Types]=S$2))","v":0},{"$f":"SUMPRODUCT((Tableau6[[Typologie ]]=\"Shop Bastos\")*(Tableau6[[Date ]]=$A23)*(Tableau6[Requetes]=T$2))","v":0},{"$f":"SUMPRODUCT((Tableau6[[Code Réclamation  ]]=\"Shop Bastos\")*(Tableau6[[Typologie ]]=$A23)*(Tableau6[[Catégories ]]=U$2))","v":0},{"$f":"SUMPRODUCT((Tableau6[Noms & Prenoms]=\"Shop Bastos\")*(Tableau6[[Code Réclamation  ]]=$A23)*(Tableau6[Types]=V$2))","v":0},{"$f":"SUMPRODUCT((Tableau6[[Typologie ]]=\"Shop Essos\")*(Tableau6[[Date ]]=$A23)*(Tableau6[Requetes]=W$2))","v":0},{"$f":"SUMPRODUCT((Tableau6[[Code Réclamation  ]]=\"Shop Essos\")*(Tableau6[[Typologie ]]=$A23)*(Tableau6[[Catégories ]]=X$2))","v":0},{"$f":"SUMPRODUCT((Tableau6[Noms & Prenoms]=\"Shop Essos\")*(Tableau6[[Code Réclamation  ]]=$A23)*(Tableau6[Types]=Y$2))","v":0},{"$f":"SUMPRODUCT((Tableau6[[Typologie ]]=\"Shop Peyrissac\")*(Tableau6[[Date ]]=$A23)*(Tableau6[Requetes]=Z$2))","v":0},{"$f":"SUMPRODUCT((Tableau6[[Code Réclamation  ]]=\"Shop Peyrissac\")*(Tableau6[[Typologie ]]=$A23)*(Tableau6[[Catégories ]]=AA$2))","v":0},{"$f":"SUMPRODUCT((Tableau6[Noms & Prenoms]=\"Shop Peyrissac\")*(Tableau6[[Code Réclamation  ]]=$A23)*(Tableau6[Types]=AB$2))","v":0},{"$f":"SUMPRODUCT((Tableau6[[Typologie ]]=\"Back Office\")*(Tableau6[[Date ]]=$A23)*(Tableau6[Requetes]=AC$2))","v":0},{"$f":"SUMPRODUCT((Tableau6[[Code Réclamation  ]]=\"Back Office\")*(Tableau6[[Typologie ]]=$A23)*(Tableau6[[Catégories ]]=AD$2))","v":0},{"$f":"SUMPRODUCT((Tableau6[Noms & Prenoms]=\"Back Office\")*(Tableau6[[Code Réclamation  ]]=$A23)*(Tableau6[Types]=AE$2))","v":0},{"$f":"SUMPRODUCT((Tableau6[[Typologie ]]=\"Front Office\")*(Tableau6[[Date ]]=$A23)*(Tableau6[Requetes]=AF$2))","v":0},{"$f":"SUMPRODUCT((Tableau6[[Code Réclamation  ]]=\"Front Office\")*(Tableau6[[Typologie ]]=$A23)*(Tableau6[[Catégories ]]=AG$2))","v":0},{"$f":"SUMPRODUCT((Tableau6[Noms & Prenoms]=\"Front Office\")*(Tableau6[[Code Réclamation  ]]=$A23)*(Tableau6[Types]=AH$2))","v":0},{"$f":"SUMPRODUCT((Tableau6[[Typologie ]]=\"Direction Générale\")*(Tableau6[[Date ]]=$A23)*(Tableau6[Requetes]=AI$2))","v":0},{"$f":"SUMPRODUCT((Tableau6[[Code Réclamation  ]]=\"Direction Générale\")*(Tableau6[[Typologie ]]=$A23)*(Tableau6[[Catégories ]]=AJ$2))","v":0},{"$f":"SUMPRODUCT((Tableau6[Noms & Prenoms]=\"Direction Générale\")*(Tableau6[[Code Réclamation  ]]=$A23)*(Tableau6[Types]=AK$2))","v":0}]
["2018-01-22",{"$f":"SUMPRODUCT((Tableau6[[Typologie ]]=\"Showroom Akwa\")*(Tableau6[[Date ]]=$A24)*(Tableau6[Requetes]=B$2))","v":0},{"$f":"SUMPRODUCT((Tableau6[[Typologie ]]=\"Showroom Akwa\")*(Tableau6[[Date ]]=$A24)*(Tableau6[Requetes]=C$2))","v":0},{"$f":"SUMPRODUCT((Tableau6[[Typologie ]]=\"Showroom Akwa\")*(Tableau6[[Date ]]=$A24)*(Tableau6[Requetes]=D$2))","v":0},{"$f":"SUMPRODUCT((Tableau6[[Typologie ]]=\"Showroom Bafoussam\")*(Tableau6[[Date ]]=$A24)*(Tableau6[Requetes]=E$2))","v":0},{"$f":"SUMPRODUCT((Tableau6[[Typologie ]]=\"Showroom Bafoussam\")*(Tableau6[[Date ]]=$A24)*(Tableau6[Requetes]=F$2))","v":0},{"$f":"SUMPRODUCT((Tableau6[[Typologie ]]=\"Showroom Bafoussam\")*(Tableau6[[Date ]]=$A24)*(Tableau6[Requetes]=G$2))","v":0},{"$f":"SUMPRODUCT((Tableau6[[Typologie ]]=\"Showroom Yaounde\")*(Tableau6[[Date ]]=$A24)*(Tableau6[Requetes]=H$2))","v":0},{"$f":"SUMPRODUCT((Tableau6[[Code Réclamation  ]]=\"Showroom Yaounde\")*(Tableau6[[Typologie ]]=$A24)*(Tableau6[[Catégories ]]=I$2))","v":0},{"$f":"SUMPRODUCT((Tableau6[Noms & Prenoms]=\"Showroom Yaounde\")*(Tableau6[[Code Réclamation  ]]=$A24)*(Tableau6[Types]=J$2))","v":0},{"$f":"SUMPRODUCT((Tableau6[[Typologie ]]=\"Showroom Bonamoussadi\")*(Tableau6[[Date ]]=$A24)*(Tableau6[Requetes]=K$2))","v":0},{"$f":"SUMPRODUCT((Tableau6[[Code Réclamation  ]]=\"Showroom Bonamoussadi\")*(Tableau6[[Typologie ]]=$A24)*(Tableau6[[Catégories ]]=L$2))","v":0},{"$f":"SUMPRODUCT((Tableau6[Noms & Prenoms]=\"Showroom Bonamoussadi\")*(Tableau6[[Code Réclamation  ]]=$A24)*(Tableau6[Types]=M$2))","v":0},{"$f":"SUMPRODUCT((Tableau6[[Typologie ]]=\"Showroom Bonanjo\")*(Tableau6[[Date ]]=$A24)*(Tableau6[Requetes]=N$2))","v":0},{"$f":"SUMPRODUCT((Tableau6[[Code Réclamation  ]]=\"Showroom Bonanjo\")*(Tableau6[[Typologie ]]=$A24)*(Tableau6[[Catégories ]]=O$2))","v":0},{"$f":"SUMPRODUCT((Tableau6[Noms & Prenoms]=\"Showroom Bonanjo\")*(Tableau6[[Code Réclamation  ]]=$A24)*(Tableau6[Types]=P$2))","v":0},{"$f":"SUMPRODUCT((Tableau6[[Typologie ]]=\"Showroom Garoua\")*(Tableau6[[Date ]]=$A24)*(Tableau6[Requetes]=Q$2))","v":0},{"$f":"SUMPRODUCT((Tableau6[[Code Réclamation  ]]=\"Showroom Garoua\")*(Tableau6[[Typologie ]]=$A24)*(Tableau6[[Catégories ]]=R$2))","v":0},{"$f":"SUMPRODUCT((Tableau6[Noms & Prenoms]=\"Showroom Garoua\")*(Tableau6[[Code Réclamation  ]]=$A24)*(Tableau6[Types]=S$2))","v":0},{"$f":"SUMPRODUCT((Tableau6[[Typologie ]]=\"Shop Bastos\")*(Tableau6[[Date ]]=$A24)*(Tableau6[Requetes]=T$2))","v":0},{"$f":"SUMPRODUCT((Tableau6[[Code Réclamation  ]]=\"Shop Bastos\")*(Tableau6[[Typologie ]]=$A24)*(Tableau6[[Catégories ]]=U$2))","v":0},{"$f":"SUMPRODUCT((Tableau6[Noms & Prenoms]=\"Shop Bastos\")*(Tableau6[[Code Réclamation  ]]=$A24)*(Tableau6[Types]=V$2))","v":0},{"$f":"SUMPRODUCT((Tableau6[[Typologie ]]=\"Shop Essos\")*(Tableau6[[Date ]]=$A24)*(Tableau6[Requetes]=W$2))","v":0},{"$f":"SUMPRODUCT((Tableau6[[Code Réclamation  ]]=\"Shop Essos\")*(Tableau6[[Typologie ]]=$A24)*(Tableau6[[Catégories ]]=X$2))","v":0},{"$f":"SUMPRODUCT((Tableau6[Noms & Prenoms]=\"Shop Essos\")*(Tableau6[[Code Réclamation  ]]=$A24)*(Tableau6[Types]=Y$2))","v":0},{"$f":"SUMPRODUCT((Tableau6[[Typologie ]]=\"Shop Peyrissac\")*(Tableau6[[Date ]]=$A24)*(Tableau6[Requetes]=Z$2))","v":0},{"$f":"SUMPRODUCT((Tableau6[[Code Réclamation  ]]=\"Shop Peyrissac\")*(Tableau6[[Typologie ]]=$A24)*(Tableau6[[Catégories ]]=AA$2))","v":0},{"$f":"SUMPRODUCT((Tableau6[Noms & Prenoms]=\"Shop Peyrissac\")*(Tableau6[[Code Réclamation  ]]=$A24)*(Tableau6[Types]=AB$2))","v":0},{"$f":"SUMPRODUCT((Tableau6[[Typologie ]]=\"Back Office\")*(Tableau6[[Date ]]=$A24)*(Tableau6[Requetes]=AC$2))","v":0},{"$f":"SUMPRODUCT((Tableau6[[Code Réclamation  ]]=\"Back Office\")*(Tableau6[[Typologie ]]=$A24)*(Tableau6[[Catégories ]]=AD$2))","v":0},{"$f":"SUMPRODUCT((Tableau6[Noms & Prenoms]=\"Back Office\")*(Tableau6[[Code Réclamation  ]]=$A24)*(Tableau6[Types]=AE$2))","v":0},{"$f":"SUMPRODUCT((Tableau6[[Typologie ]]=\"Front Office\")*(Tableau6[[Date ]]=$A24)*(Tableau6[Requetes]=AF$2))","v":0},{"$f":"SUMPRODUCT((Tableau6[[Code Réclamation  ]]=\"Front Office\")*(Tableau6[[Typologie ]]=$A24)*(Tableau6[[Catégories ]]=AG$2))","v":0},{"$f":"SUMPRODUCT((Tableau6[Noms & Prenoms]=\"Front Office\")*(Tableau6[[Code Réclamation  ]]=$A24)*(Tableau6[Types]=AH$2))","v":0},{"$f":"SUMPRODUCT((Tableau6[[Typologie ]]=\"Direction Générale\")*(Tableau6[[Date ]]=$A24)*(Tableau6[Requetes]=AI$2))","v":0},{"$f":"SUMPRODUCT((Tableau6[[Code Réclamation  ]]=\"Direction Générale\")*(Tableau6[[Typologie ]]=$A24)*(Tableau6[[Catégories ]]=AJ$2))","v":0},{"$f":"SUMPRODUCT((Tableau6[Noms & Prenoms]=\"Direction Générale\")*(Tableau6[[Code Réclamation  ]]=$A24)*(Tableau6[Types]=AK$2))","v":0}]
["2018-01-23",{"$f":"SUMPRODUCT((Tableau6[[Typologie ]]=\"Showroom Akwa\")*(Tableau6[[Date ]]=$A25)*(Tableau6[Requetes]=B$2))","v":0},{"$f":"SUMPRODUCT((Tableau6[[Typologie ]]=\"Showroom Akwa\")*(Tableau6[[Date ]]=$A25)*(Tableau6[Requetes]=C$2))","v":0},{"$f":"SUMPRODUCT((Tableau6[[Typologie ]]=\"Showroom Akwa\")*(Tableau6[[Date ]]=$A25)*(Tableau6[Requetes]=D$2))","v":0},{"$f":"SUMPRODUCT((Tableau6[[Typologie ]]=\"Showroom Bafoussam\")*(Tableau6[[Date ]]=$A25)*(Tableau6[Requetes]=E$2))","v":0},{"$f":"SUMPRODUCT((Tableau6[[Typologie ]]=\"Showroom Bafoussam\")*(Tableau6[[Date ]]=$A25)*(Tableau6[Requetes]=F$2))","v":0},{"$f":"SUMPRODUCT((Tableau6[[Typologie ]]=\"Showroom Bafoussam\")*(Tableau6[[Date ]]=$A25)*(Tableau6[Requetes]=G$2))","v":0},{"$f":"SUMPRODUCT((Tableau6[[Typologie ]]=\"Showroom Yaounde\")*(Tableau6[[Date ]]=$A25)*(Tableau6[Requetes]=H$2))","v":0},{"$f":"SUMPRODUCT((Tableau6[[Code Réclamation  ]]=\"Showroom Yaounde\")*(Tableau6[[Typologie ]]=$A25)*(Tableau6[[Catégories ]]=I$2))","v":0},{"$f":"SUMPRODUCT((Tableau6[Noms & Prenoms]=\"Showroom Yaounde\")*(Tableau6[[Code Réclamation  ]]=$A25)*(Tableau6[Types]=J$2))","v":0},{"$f":"SUMPRODUCT((Tableau6[[Typologie ]]=\"Showroom Bonamoussadi\")*(Tableau6[[Date ]]=$A25)*(Tableau6[Requetes]=K$2))","v":0},{"$f":"SUMPRODUCT((Tableau6[[Code Réclamation  ]]=\"Showroom Bonamoussadi\")*(Tableau6[[Typologie ]]=$A25)*(Tableau6[[Catégories ]]=L$2))","v":0},{"$f":"SUMPRODUCT((Tableau6[Noms & Prenoms]=\"Showroom Bonamoussadi\")*(Tableau6[[Code Réclamation  ]]=$A25)*(Tableau6[Types]=M$2))","v":0},{"$f":"SUMPRODUCT((Tableau6[[Typologie ]]=\"Showroom Bonanjo\")*(Tableau6[[Date ]]=$A25)*(Tableau6[Requetes]=N$2))","v":0},{"$f":"SUMPRODUCT((Tableau6[[Code Réclamation  ]]=\"Showroom Bonanjo\")*(Tableau6[[Typologie ]]=$A25)*(Tableau6[[Catégories ]]=O$2))","v":0},{"$f":"SUMPRODUCT((Tableau6[Noms & Prenoms]=\"Showroom Bonanjo\")*(Tableau6[[Code Réclamation  ]]=$A25)*(Tableau6[Types]=P$2))","v":0},{"$f":"SUMPRODUCT((Tableau6[[Typologie ]]=\"Showroom Garoua\")*(Tableau6[[Date ]]=$A25)*(Tableau6[Requetes]=Q$2))","v":0},{"$f":"SUMPRODUCT((Tableau6[[Code Réclamation  ]]=\"Showroom Garoua\")*(Tableau6[[Typologie ]]=$A25)*(Tableau6[[Catégories ]]=R$2))","v":0},{"$f":"SUMPRODUCT((Tableau6[Noms & Prenoms]=\"Showroom Garoua\")*(Tableau6[[Code Réclamation  ]]=$A25)*(Tableau6[Types]=S$2))","v":0},{"$f":"SUMPRODUCT((Tableau6[[Typologie ]]=\"Shop Bastos\")*(Tableau6[[Date ]]=$A25)*(Tableau6[Requetes]=T$2))","v":0},{"$f":"SUMPRODUCT((Tableau6[[Code Réclamation  ]]=\"Shop Bastos\")*(Tableau6[[Typologie ]]=$A25)*(Tableau6[[Catégories ]]=U$2))","v":0},{"$f":"SUMPRODUCT((Tableau6[Noms & Prenoms]=\"Shop Bastos\")*(Tableau6[[Code Réclamation  ]]=$A25)*(Tableau6[Types]=V$2))","v":0},{"$f":"SUMPRODUCT((Tableau6[[Typologie ]]=\"Shop Essos\")*(Tableau6[[Date ]]=$A25)*(Tableau6[Requetes]=W$2))","v":0},{"$f":"SUMPRODUCT((Tableau6[[Code Réclamation  ]]=\"Shop Essos\")*(Tableau6[[Typologie ]]=$A25)*(Tableau6[[Catégories ]]=X$2))","v":0},{"$f":"SUMPRODUCT((Tableau6[Noms & Prenoms]=\"Shop Essos\")*(Tableau6[[Code Réclamation  ]]=$A25)*(Tableau6[Types]=Y$2))","v":0},{"$f":"SUMPRODUCT((Tableau6[[Typologie ]]=\"Shop Peyrissac\")*(Tableau6[[Date ]]=$A25)*(Tableau6[Requetes]=Z$2))","v":0},{"$f":"SUMPRODUCT((Tableau6[[Code Réclamation  ]]=\"Shop Peyrissac\")*(Tableau6[[Typologie ]]=$A25)*(Tableau6[[Catégories ]]=AA$2))","v":0},{"$f":"SUMPRODUCT((Tableau6[Noms & Prenoms]=\"Shop Peyrissac\")*(Tableau6[[Code Réclamation  ]]=$A25)*(Tableau6[Types]=AB$2))","v":0},{"$f":"SUMPRODUCT((Tableau6[[Typologie ]]=\"Back Office\")*(Tableau6[[Date ]]=$A25)*(Tableau6[Requetes]=AC$2))","v":0},{"$f":"SUMPRODUCT((Tableau6[[Code Réclamation  ]]=\"Back Office\")*(Tableau6[[Typologie ]]=$A25)*(Tableau6[[Catégories ]]=AD$2))","v":0},{"$f":"SUMPRODUCT((Tableau6[Noms & Prenoms]=\"Back Office\")*(Tableau6[[Code Réclamation  ]]=$A25)*(Tableau6[Types]=AE$2))","v":0},{"$f":"SUMPRODUCT((Tableau6[[Typologie ]]=\"Front Office\")*(Tableau6[[Date ]]=$A25)*(Tableau6[Requetes]=AF$2))","v":0},{"$f":"SUMPRODUCT((Tableau6[[Code Réclamation  ]]=\"Front Office\")*(Tableau6[[Typologie ]]=$A25)*(Tableau6[[Catégories ]]=AG$2))","v":0},{"$f":"SUMPRODUCT((Tableau6[Noms & Prenoms]=\"Front Office\")*(Tableau6[[Code Réclamation  ]]=$A25)*(Tableau6[Types]=AH$2))","v":0},{"$f":"SUMPRODUCT((Tableau6[[Typologie ]]=\"Direction Générale\")*(Tableau6[[Date ]]=$A25)*(Tableau6[Requetes]=AI$2))","v":0},{"$f":"SUMPRODUCT((Tableau6[[Code Réclamation  ]]=\"Direction Générale\")*(Tableau6[[Typologie ]]=$A25)*(Tableau6[[Catégories ]]=AJ$2))","v":0},{"$f":"SUMPRODUCT((Tableau6[Noms & Prenoms]=\"Direction Générale\")*(Tableau6[[Code Réclamation  ]]=$A25)*(Tableau6[Types]=AK$2))","v":0}]
["2018-01-24",{"$f":"SUMPRODUCT((Tableau6[[Typologie ]]=\"Showroom Akwa\")*(Tableau6[[Date ]]=$A26)*(Tableau6[Requetes]=B$2))","v":0},{"$f":"SUMPRODUCT((Tableau6[[Typologie ]]=\"Showroom Akwa\")*(Tableau6[[Date ]]=$A26)*(Tableau6[Requetes]=C$2))","v":0},{"$f":"SUMPRODUCT((Tableau6[[Typologie ]]=\"Showroom Akwa\")*(Tableau6[[Date ]]=$A26)*(Tableau6[Requetes]=D$2))","v":0},{"$f":"SUMPRODUCT((Tableau6[[Typologie ]]=\"Showroom Bafoussam\")*(Tableau6[[Date ]]=$A26)*(Tableau6[Requetes]=E$2))","v":0},{"$f":"SUMPRODUCT((Tableau6[[Typologie ]]=\"Showroom Bafoussam\")*(Tableau6[[Date ]]=$A26)*(Tableau6[Requetes]=F$2))","v":0},{"$f":"SUMPRODUCT((Tableau6[[Typologie ]]=\"Showroom Bafoussam\")*(Tableau6[[Date ]]=$A26)*(Tableau6[Requetes]=G$2))","v":0},{"$f":"SUMPRODUCT((Tableau6[[Typologie ]]=\"Showroom Yaounde\")*(Tableau6[[Date ]]=$A26)*(Tableau6[Requetes]=H$2))","v":0},{"$f":"SUMPRODUCT((Tableau6[[Code Réclamation  ]]=\"Showroom Yaounde\")*(Tableau6[[Typologie ]]=$A26)*(Tableau6[[Catégories ]]=I$2))","v":0},{"$f":"SUMPRODUCT((Tableau6[Noms & Prenoms]=\"Showroom Yaounde\")*(Tableau6[[Code Réclamation  ]]=$A26)*(Tableau6[Types]=J$2))","v":0},{"$f":"SUMPRODUCT((Tableau6[[Typologie ]]=\"Showroom Bonamoussadi\")*(Tableau6[[Date ]]=$A26)*(Tableau6[Requetes]=K$2))","v":0},{"$f":"SUMPRODUCT((Tableau6[[Code Réclamation  ]]=\"Showroom Bonamoussadi\")*(Tableau6[[Typologie ]]=$A26)*(Tableau6[[Catégories ]]=L$2))","v":0},{"$f":"SUMPRODUCT((Tableau6[Noms & Prenoms]=\"Showroom Bonamoussadi\")*(Tableau6[[Code Réclamation  ]]=$A26)*(Tableau6[Types]=M$2))","v":0},{"$f":"SUMPRODUCT((Tableau6[[Typologie ]]=\"Showroom Bonanjo\")*(Tableau6[[Date ]]=$A26)*(Tableau6[Requetes]=N$2))","v":0},{"$f":"SUMPRODUCT((Tableau6[[Code Réclamation  ]]=\"Showroom Bonanjo\")*(Tableau6[[Typologie ]]=$A26)*(Tableau6[[Catégories ]]=O$2))","v":0},{"$f":"SUMPRODUCT((Tableau6[Noms & Prenoms]=\"Showroom Bonanjo\")*(Tableau6[[Code Réclamation  ]]=$A26)*(Tableau6[Types]=P$2))","v":0},{"$f":"SUMPRODUCT((Tableau6[[Typologie ]]=\"Showroom Garoua\")*(Tableau6[[Date ]]=$A26)*(Tableau6[Requetes]=Q$2))","v":0},{"$f":"SUMPRODUCT((Tableau6[[Code Réclamation  ]]=\"Showroom Garoua\")*(Tableau6[[Typologie ]]=$A26)*(Tableau6[[Catégories ]]=R$2))","v":0},{"$f":"SUMPRODUCT((Tableau6[Noms & Prenoms]=\"Showroom Garoua\")*(Tableau6[[Code Réclamation  ]]=$A26)*(Tableau6[Types]=S$2))","v":0},{"$f":"SUMPRODUCT((Tableau6[[Typologie ]]=\"Shop Bastos\")*(Tableau6[[Date ]]=$A26)*(Tableau6[Requetes]=T$2))","v":0},{"$f":"SUMPRODUCT((Tableau6[[Code Réclamation  ]]=\"Shop Bastos\")*(Tableau6[[Typologie ]]=$A26)*(Tableau6[[Catégories ]]=U$2))","v":0},{"$f":"SUMPRODUCT((Tableau6[Noms & Prenoms]=\"Shop Bastos\")*(Tableau6[[Code Réclamation  ]]=$A26)*(Tableau6[Types]=V$2))","v":0},{"$f":"SUMPRODUCT((Tableau6[[Typologie ]]=\"Shop Essos\")*(Tableau6[[Date ]]=$A26)*(Tableau6[Requetes]=W$2))","v":0},{"$f":"SUMPRODUCT((Tableau6[[Code Réclamation  ]]=\"Shop Essos\")*(Tableau6[[Typologie ]]=$A26)*(Tableau6[[Catégories ]]=X$2))","v":0},{"$f":"SUMPRODUCT((Tableau6[Noms & Prenoms]=\"Shop Essos\")*(Tableau6[[Code Réclamation  ]]=$A26)*(Tableau6[Types]=Y$2))","v":0},{"$f":"SUMPRODUCT((Tableau6[[Typologie ]]=\"Shop Peyrissac\")*(Tableau6[[Date ]]=$A26)*(Tableau6[Requetes]=Z$2))","v":0},{"$f":"SUMPRODUCT((Tableau6[[Code Réclamation  ]]=\"Shop Peyrissac\")*(Tableau6[[Typologie ]]=$A26)*(Tableau6[[Catégories ]]=AA$2))","v":0},{"$f":"SUMPRODUCT((Tableau6[Noms & Prenoms]=\"Shop Peyrissac\")*(Tableau6[[Code Réclamation  ]]=$A26)*(Tableau6[Types]=AB$2))","v":0},{"$f":"SUMPRODUCT((Tableau6[[Typologie ]]=\"Back Office\")*(Tableau6[[Date ]]=$A26)*(Tableau6[Requetes]=AC$2))","v":0},{"$f":"SUMPRODUCT((Tableau6[[Code Réclamation  ]]=\"Back Office\")*(Tableau6[[Typologie ]]=$A26)*(Tableau6[[Catégories ]]=AD$2))","v":0},{"$f":"SUMPRODUCT((Tableau6[Noms & Prenoms]=\"Back Office\")*(Tableau6[[Code Réclamation  ]]=$A26)*(Tableau6[Types]=AE$2))","v":0},{"$f":"SUMPRODUCT((Tableau6[[Typologie ]]=\"Front Office\")*(Tableau6[[Date ]]=$A26)*(Tableau6[Requetes]=AF$2))","v":0},{"$f":"SUMPRODUCT((Tableau6[[Code Réclamation  ]]=\"Front Office\")*(Tableau6[[Typologie ]]=$A26)*(Tableau6[[Catégories ]]=AG$2))","v":0},{"$f":"SUMPRODUCT((Tableau6[Noms & Prenoms]=\"Front Office\")*(Tableau6[[Code Réclamation  ]]=$A26)*(Tableau6[Types]=AH$2))","v":0},{"$f":"SUMPRODUCT((Tableau6[[Typologie ]]=\"Direction Générale\")*(Tableau6[[Date ]]=$A26)*(Tableau6[Requetes]=AI$2))","v":0},{"$f":"SUMPRODUCT((Tableau6[[Code Réclamation  ]]=\"Direction Générale\")*(Tableau6[[Typologie ]]=$A26)*(Tableau6[[Catégories ]]=AJ$2))","v":0},{"$f":"SUMPRODUCT((Tableau6[Noms & Prenoms]=\"Direction Générale\")*(Tableau6[[Code Réclamation  ]]=$A26)*(Tableau6[Types]=AK$2))","v":0}]
["2018-01-25",{"$f":"SUMPRODUCT((Tableau6[[Typologie ]]=\"Showroom Akwa\")*(Tableau6[[Date ]]=$A27)*(Tableau6[Requetes]=B$2))","v":0},{"$f":"SUMPRODUCT((Tableau6[[Typologie ]]=\"Showroom Akwa\")*(Tableau6[[Date ]]=$A27)*(Tableau6[Requetes]=C$2))","v":0},{"$f":"SUMPRODUCT((Tableau6[[Typologie ]]=\"Showroom Akwa\")*(Tableau6[[Date ]]=$A27)*(Tableau6[Requetes]=D$2))","v":0},{"$f":"SUMPRODUCT((Tableau6[[Typologie ]]=\"Showroom Bafoussam\")*(Tableau6[[Date ]]=$A27)*(Tableau6[Requetes]=E$2))","v":0},{"$f":"SUMPRODUCT((Tableau6[[Typologie ]]=\"Showroom Bafoussam\")*(Tableau6[[Date ]]=$A27)*(Tableau6[Requetes]=F$2))","v":0},{"$f":"SUMPRODUCT((Tableau6[[Typologie ]]=\"Showroom Bafoussam\")*(Tableau6[[Date ]]=$A27)*(Tableau6[Requetes]=G$2))","v":0},{"$f":"SUMPRODUCT((Tableau6[[Typologie ]]=\"Showroom Yaounde\")*(Tableau6[[Date ]]=$A27)*(Tableau6[Requetes]=H$2))","v":0},{"$f":"SUMPRODUCT((Tableau6[[Code Réclamation  ]]=\"Showroom Yaounde\")*(Tableau6[[Typologie ]]=$A27)*(Tableau6[[Catégories ]]=I$2))","v":0},{"$f":"SUMPRODUCT((Tableau6[Noms & Prenoms]=\"Showroom Yaounde\")*(Tableau6[[Code Réclamation  ]]=$A27)*(Tableau6[Types]=J$2))","v":0},{"$f":"SUMPRODUCT((Tableau6[[Typologie ]]=\"Showroom Bonamoussadi\")*(Tableau6[[Date ]]=$A27)*(Tableau6[Requetes]=K$2))","v":0},{"$f":"SUMPRODUCT((Tableau6[[Code Réclamation  ]]=\"Showroom Bonamoussadi\")*(Tableau6[[Typologie ]]=$A27)*(Tableau6[[Catégories ]]=L$2))","v":0},{"$f":"SUMPRODUCT((Tableau6[Noms & Prenoms]=\"Showroom Bonamoussadi\")*(Tableau6[[Code Réclamation  ]]=$A27)*(Tableau6[Types]=M$2))","v":0},{"$f":"SUMPRODUCT((Tableau6[[Typologie ]]=\"Showroom Bonanjo\")*(Tableau6[[Date ]]=$A27)*(Tableau6[Requetes]=N$2))","v":0},{"$f":"SUMPRODUCT((Tableau6[[Code Réclamation  ]]=\"Showroom Bonanjo\")*(Tableau6[[Typologie ]]=$A27)*(Tableau6[[Catégories ]]=O$2))","v":0},{"$f":"SUMPRODUCT((Tableau6[Noms & Prenoms]=\"Showroom Bonanjo\")*(Tableau6[[Code Réclamation  ]]=$A27)*(Tableau6[Types]=P$2))","v":0},{"$f":"SUMPRODUCT((Tableau6[[Typologie ]]=\"Showroom Garoua\")*(Tableau6[[Date ]]=$A27)*(Tableau6[Requetes]=Q$2))","v":0},{"$f":"SUMPRODUCT((Tableau6[[Code Réclamation  ]]=\"Showroom Garoua\")*(Tableau6[[Typologie ]]=$A27)*(Tableau6[[Catégories ]]=R$2))","v":0},{"$f":"SUMPRODUCT((Tableau6[Noms & Prenoms]=\"Showroom Garoua\")*(Tableau6[[Code Réclamation  ]]=$A27)*(Tableau6[Types]=S$2))","v":0},{"$f":"SUMPRODUCT((Tableau6[[Typologie ]]=\"Shop Bastos\")*(Tableau6[[Date ]]=$A27)*(Tableau6[Requetes]=T$2))","v":0},{"$f":"SUMPRODUCT((Tableau6[[Code Réclamation  ]]=\"Shop Bastos\")*(Tableau6[[Typologie ]]=$A27)*(Tableau6[[Catégories ]]=U$2))","v":0},{"$f":"SUMPRODUCT((Tableau6[Noms & Prenoms]=\"Shop Bastos\")*(Tableau6[[Code Réclamation  ]]=$A27)*(Tableau6[Types]=V$2))","v":0},{"$f":"SUMPRODUCT((Tableau6[[Typologie ]]=\"Shop Essos\")*(Tableau6[[Date ]]=$A27)*(Tableau6[Requetes]=W$2))","v":0},{"$f":"SUMPRODUCT((Tableau6[[Code Réclamation  ]]=\"Shop Essos\")*(Tableau6[[Typologie ]]=$A27)*(Tableau6[[Catégories ]]=X$2))","v":0},{"$f":"SUMPRODUCT((Tableau6[Noms & Prenoms]=\"Shop Essos\")*(Tableau6[[Code Réclamation  ]]=$A27)*(Tableau6[Types]=Y$2))","v":0},{"$f":"SUMPRODUCT((Tableau6[[Typologie ]]=\"Shop Peyrissac\")*(Tableau6[[Date ]]=$A27)*(Tableau6[Requetes]=Z$2))","v":0},{"$f":"SUMPRODUCT((Tableau6[[Code Réclamation  ]]=\"Shop Peyrissac\")*(Tableau6[[Typologie ]]=$A27)*(Tableau6[[Catégories ]]=AA$2))","v":0},{"$f":"SUMPRODUCT((Tableau6[Noms & Prenoms]=\"Shop Peyrissac\")*(Tableau6[[Code Réclamation  ]]=$A27)*(Tableau6[Types]=AB$2))","v":0},{"$f":"SUMPRODUCT((Tableau6[[Typologie ]]=\"Back Office\")*(Tableau6[[Date ]]=$A27)*(Tableau6[Requetes]=AC$2))","v":0},{"$f":"SUMPRODUCT((Tableau6[[Code Réclamation  ]]=\"Back Office\")*(Tableau6[[Typologie ]]=$A27)*(Tableau6[[Catégories ]]=AD$2))","v":0},{"$f":"SUMPRODUCT((Tableau6[Noms & Prenoms]=\"Back Office\")*(Tableau6[[Code Réclamation  ]]=$A27)*(Tableau6[Types]=AE$2))","v":0},{"$f":"SUMPRODUCT((Tableau6[[Typologie ]]=\"Front Office\")*(Tableau6[[Date ]]=$A27)*(Tableau6[Requetes]=AF$2))","v":0},{"$f":"SUMPRODUCT((Tableau6[[Code Réclamation  ]]=\"Front Office\")*(Tableau6[[Typologie ]]=$A27)*(Tableau6[[Catégories ]]=AG$2))","v":0},{"$f":"SUMPRODUCT((Tableau6[Noms & Prenoms]=\"Front Office\")*(Tableau6[[Code Réclamation  ]]=$A27)*(Tableau6[Types]=AH$2))","v":0},{"$f":"SUMPRODUCT((Tableau6[[Typologie ]]=\"Direction Générale\")*(Tableau6[[Date ]]=$A27)*(Tableau6[Requetes]=AI$2))","v":0},{"$f":"SUMPRODUCT((Tableau6[[Code Réclamation  ]]=\"Direction Générale\")*(Tableau6[[Typologie ]]=$A27)*(Tableau6[[Catégories ]]=AJ$2))","v":0},{"$f":"SUMPRODUCT((Tableau6[Noms & Prenoms]=\"Direction Générale\")*(Tableau6[[Code Réclamation  ]]=$A27)*(Tableau6[Types]=AK$2))","v":0}]
["2018-01-26",{"$f":"SUMPRODUCT((Tableau6[[Typologie ]]=\"Showroom Akwa\")*(Tableau6[[Date ]]=$A28)*(Tableau6[Requetes]=B$2))","v":0},{"$f":"SUMPRODUCT((Tableau6[[Typologie ]]=\"Showroom Akwa\")*(Tableau6[[Date ]]=$A28)*(Tableau6[Requetes]=C$2))","v":0},{"$f":"SUMPRODUCT((Tableau6[[Typologie ]]=\"Showroom Akwa\")*(Tableau6[[Date ]]=$A28)*(Tableau6[Requetes]=D$2))","v":0},{"$f":"SUMPRODUCT((Tableau6[[Typologie ]]=\"Showroom Bafoussam\")*(Tableau6[[Date ]]=$A28)*(Tableau6[Requetes]=E$2))","v":0},{"$f":"SUMPRODUCT((Tableau6[[Typologie ]]=\"Showroom Bafoussam\")*(Tableau6[[Date ]]=$A28)*(Tableau6[Requetes]=F$2))","v":0},{"$f":"SUMPRODUCT((Tableau6[[Typologie ]]=\"Showroom Bafoussam\")*(Tableau6[[Date ]]=$A28)*(Tableau6[Requetes]=G$2))","v":0},{"$f":"SUMPRODUCT((Tableau6[[Typologie ]]=\"Showroom Yaounde\")*(Tableau6[[Date ]]=$A28)*(Tableau6[Requetes]=H$2))","v":0},{"$f":"SUMPRODUCT((Tableau6[[Code Réclamation  ]]=\"Showroom Yaounde\")*(Tableau6[[Typologie ]]=$A28)*(Tableau6[[Catégories ]]=I$2))","v":0},{"$f":"SUMPRODUCT((Tableau6[Noms & Prenoms]=\"Showroom Yaounde\")*(Tableau6[[Code Réclamation  ]]=$A28)*(Tableau6[Types]=J$2))","v":0},{"$f":"SUMPRODUCT((Tableau6[[Typologie ]]=\"Showroom Bonamoussadi\")*(Tableau6[[Date ]]=$A28)*(Tableau6[Requetes]=K$2))","v":0},{"$f":"SUMPRODUCT((Tableau6[[Code Réclamation  ]]=\"Showroom Bonamoussadi\")*(Tableau6[[Typologie ]]=$A28)*(Tableau6[[Catégories ]]=L$2))","v":0},{"$f":"SUMPRODUCT((Tableau6[Noms & Prenoms]=\"Showroom Bonamoussadi\")*(Tableau6[[Code Réclamation  ]]=$A28)*(Tableau6[Types]=M$2))","v":0},{"$f":"SUMPRODUCT((Tableau6[[Typologie ]]=\"Showroom Bonanjo\")*(Tableau6[[Date ]]=$A28)*(Tableau6[Requetes]=N$2))","v":0},{"$f":"SUMPRODUCT((Tableau6[[Code Réclamation  ]]=\"Showroom Bonanjo\")*(Tableau6[[Typologie ]]=$A28)*(Tableau6[[Catégories ]]=O$2))","v":0},{"$f":"SUMPRODUCT((Tableau6[Noms & Prenoms]=\"Showroom Bonanjo\")*(Tableau6[[Code Réclamation  ]]=$A28)*(Tableau6[Types]=P$2))","v":0},{"$f":"SUMPRODUCT((Tableau6[[Typologie ]]=\"Showroom Garoua\")*(Tableau6[[Date ]]=$A28)*(Tableau6[Requetes]=Q$2))","v":0},{"$f":"SUMPRODUCT((Tableau6[[Code Réclamation  ]]=\"Showroom Garoua\")*(Tableau6[[Typologie ]]=$A28)*(Tableau6[[Catégories ]]=R$2))","v":0},{"$f":"SUMPRODUCT((Tableau6[Noms & Prenoms]=\"Showroom Garoua\")*(Tableau6[[Code Réclamation  ]]=$A28)*(Tableau6[Types]=S$2))","v":0},{"$f":"SUMPRODUCT((Tableau6[[Typologie ]]=\"Shop Bastos\")*(Tableau6[[Date ]]=$A28)*(Tableau6[Requetes]=T$2))","v":0},{"$f":"SUMPRODUCT((Tableau6[[Code Réclamation  ]]=\"Shop Bastos\")*(Tableau6[[Typologie ]]=$A28)*(Tableau6[[Catégories ]]=U$2))","v":0},{"$f":"SUMPRODUCT((Tableau6[Noms & Prenoms]=\"Shop Bastos\")*(Tableau6[[Code Réclamation  ]]=$A28)*(Tableau6[Types]=V$2))","v":0},{"$f":"SUMPRODUCT((Tableau6[[Typologie ]]=\"Shop Essos\")*(Tableau6[[Date ]]=$A28)*(Tableau6[Requetes]=W$2))","v":0},{"$f":"SUMPRODUCT((Tableau6[[Code Réclamation  ]]=\"Shop Essos\")*(Tableau6[[Typologie ]]=$A28)*(Tableau6[[Catégories ]]=X$2))","v":0},{"$f":"SUMPRODUCT((Tableau6[Noms & Prenoms]=\"Shop Essos\")*(Tableau6[[Code Réclamation  ]]=$A28)*(Tableau6[Types]=Y$2))","v":0},{"$f":"SUMPRODUCT((Tableau6[[Typologie ]]=\"Shop Peyrissac\")*(Tableau6[[Date ]]=$A28)*(Tableau6[Requetes]=Z$2))","v":0},{"$f":"SUMPRODUCT((Tableau6[[Code Réclamation  ]]=\"Shop Peyrissac\")*(Tableau6[[Typologie ]]=$A28)*(Tableau6[[Catégories ]]=AA$2))","v":0},{"$f":"SUMPRODUCT((Tableau6[Noms & Prenoms]=\"Shop Peyrissac\")*(Tableau6[[Code Réclamation  ]]=$A28)*(Tableau6[Types]=AB$2))","v":0},{"$f":"SUMPRODUCT((Tableau6[[Typologie ]]=\"Back Office\")*(Tableau6[[Date ]]=$A28)*(Tableau6[Requetes]=AC$2))","v":0},{"$f":"SUMPRODUCT((Tableau6[[Code Réclamation  ]]=\"Back Office\")*(Tableau6[[Typologie ]]=$A28)*(Tableau6[[Catégories ]]=AD$2))","v":0},{"$f":"SUMPRODUCT((Tableau6[Noms & Prenoms]=\"Back Office\")*(Tableau6[[Code Réclamation  ]]=$A28)*(Tableau6[Types]=AE$2))","v":0},{"$f":"SUMPRODUCT((Tableau6[[Typologie ]]=\"Front Office\")*(Tableau6[[Date ]]=$A28)*(Tableau6[Requetes]=AF$2))","v":0},{"$f":"SUMPRODUCT((Tableau6[[Code Réclamation  ]]=\"Front Office\")*(Tableau6[[Typologie ]]=$A28)*(Tableau6[[Catégories ]]=AG$2))","v":0},{"$f":"SUMPRODUCT((Tableau6[Noms & Prenoms]=\"Front Office\")*(Tableau6[[Code Réclamation  ]]=$A28)*(Tableau6[Types]=AH$2))","v":0},{"$f":"SUMPRODUCT((Tableau6[[Typologie ]]=\"Direction Générale\")*(Tableau6[[Date ]]=$A28)*(Tableau6[Requetes]=AI$2))","v":0},{"$f":"SUMPRODUCT((Tableau6[[Code Réclamation  ]]=\"Direction Générale\")*(Tableau6[[Typologie ]]=$A28)*(Tableau6[[Catégories ]]=AJ$2))","v":0},{"$f":"SUMPRODUCT((Tableau6[Noms & Prenoms]=\"Direction Générale\")*(Tableau6[[Code Réclamation  ]]=$A28)*(Tableau6[Types]=AK$2))","v":0}]
["2018-01-27",{"$f":"SUMPRODUCT((Tableau6[[Typologie ]]=\"Showroom Akwa\")*(Tableau6[[Date ]]=$A29)*(Tableau6[Requetes]=B$2))","v":0},{"$f":"SUMPRODUCT((Tableau6[[Typologie ]]=\"Showroom Akwa\")*(Tableau6[[Date ]]=$A29)*(Tableau6[Requetes]=C$2))","v":0},{"$f":"SUMPRODUCT((Tableau6[[Typologie ]]=\"Showroom Akwa\")*(Tableau6[[Date ]]=$A29)*(Tableau6[Requetes]=D$2))","v":0},{"$f":"SUMPRODUCT((Tableau6[[Typologie ]]=\"Showroom Bafoussam\")*(Tableau6[[Date ]]=$A29)*(Tableau6[Requetes]=E$2))","v":0},{"$f":"SUMPRODUCT((Tableau6[[Typologie ]]=\"Showroom Bafoussam\")*(Tableau6[[Date ]]=$A29)*(Tableau6[Requetes]=F$2))","v":0},{"$f":"SUMPRODUCT((Tableau6[[Typologie ]]=\"Showroom Bafoussam\")*(Tableau6[[Date ]]=$A29)*(Tableau6[Requetes]=G$2))","v":0},{"$f":"SUMPRODUCT((Tableau6[[Typologie ]]=\"Showroom Yaounde\")*(Tableau6[[Date ]]=$A29)*(Tableau6[Requetes]=H$2))","v":0},{"$f":"SUMPRODUCT((Tableau6[[Code Réclamation  ]]=\"Showroom Yaounde\")*(Tableau6[[Typologie ]]=$A29)*(Tableau6[[Catégories ]]=I$2))","v":0},{"$f":"SUMPRODUCT((Tableau6[Noms & Prenoms]=\"Showroom Yaounde\")*(Tableau6[[Code Réclamation  ]]=$A29)*(Tableau6[Types]=J$2))","v":0},{"$f":"SUMPRODUCT((Tableau6[[Typologie ]]=\"Showroom Bonamoussadi\")*(Tableau6[[Date ]]=$A29)*(Tableau6[Requetes]=K$2))","v":0},{"$f":"SUMPRODUCT((Tableau6[[Code Réclamation  ]]=\"Showroom Bonamoussadi\")*(Tableau6[[Typologie ]]=$A29)*(Tableau6[[Catégories ]]=L$2))","v":0},{"$f":"SUMPRODUCT((Tableau6[Noms & Prenoms]=\"Showroom Bonamoussadi\")*(Tableau6[[Code Réclamation  ]]=$A29)*(Tableau6[Types]=M$2))","v":0},{"$f":"SUMPRODUCT((Tableau6[[Typologie ]]=\"Showroom Bonanjo\")*(Tableau6[[Date ]]=$A29)*(Tableau6[Requetes]=N$2))","v":0},{"$f":"SUMPRODUCT((Tableau6[[Code Réclamation  ]]=\"Showroom Bonanjo\")*(Tableau6[[Typologie ]]=$A29)*(Tableau6[[Catégories ]]=O$2))","v":0},{"$f":"SUMPRODUCT((Tableau6[Noms & Prenoms]=\"Showroom Bonanjo\")*(Tableau6[[Code Réclamation  ]]=$A29)*(Tableau6[Types]=P$2))","v":0},{"$f":"SUMPRODUCT((Tableau6[[Typologie ]]=\"Showroom Garoua\")*(Tableau6[[Date ]]=$A29)*(Tableau6[Requetes]=Q$2))","v":0},{"$f":"SUMPRODUCT((Tableau6[[Code Réclamation  ]]=\"Showroom Garoua\")*(Tableau6[[Typologie ]]=$A29)*(Tableau6[[Catégories ]]=R$2))","v":0},{"$f":"SUMPRODUCT((Tableau6[Noms & Prenoms]=\"Showroom Garoua\")*(Tableau6[[Code Réclamation  ]]=$A29)*(Tableau6[Types]=S$2))","v":0},{"$f":"SUMPRODUCT((Tableau6[[Typologie ]]=\"Shop Bastos\")*(Tableau6[[Date ]]=$A29)*(Tableau6[Requetes]=T$2))","v":0},{"$f":"SUMPRODUCT((Tableau6[[Code Réclamation  ]]=\"Shop Bastos\")*(Tableau6[[Typologie ]]=$A29)*(Tableau6[[Catégories ]]=U$2))","v":0},{"$f":"SUMPRODUCT((Tableau6[Noms & Prenoms]=\"Shop Bastos\")*(Tableau6[[Code Réclamation  ]]=$A29)*(Tableau6[Types]=V$2))","v":0},{"$f":"SUMPRODUCT((Tableau6[[Typologie ]]=\"Shop Essos\")*(Tableau6[[Date ]]=$A29)*(Tableau6[Requetes]=W$2))","v":0},{"$f":"SUMPRODUCT((Tableau6[[Code Réclamation  ]]=\"Shop Essos\")*(Tableau6[[Typologie ]]=$A29)*(Tableau6[[Catégories ]]=X$2))","v":0},{"$f":"SUMPRODUCT((Tableau6[Noms & Prenoms]=\"Shop Essos\")*(Tableau6[[Code Réclamation  ]]=$A29)*(Tableau6[Types]=Y$2))","v":0},{"$f":"SUMPRODUCT((Tableau6[[Typologie ]]=\"Shop Peyrissac\")*(Tableau6[[Date ]]=$A29)*(Tableau6[Requetes]=Z$2))","v":0},{"$f":"SUMPRODUCT((Tableau6[[Code Réclamation  ]]=\"Shop Peyrissac\")*(Tableau6[[Typologie ]]=$A29)*(Tableau6[[Catégories ]]=AA$2))","v":0},{"$f":"SUMPRODUCT((Tableau6[Noms & Prenoms]=\"Shop Peyrissac\")*(Tableau6[[Code Réclamation  ]]=$A29)*(Tableau6[Types]=AB$2))","v":0},{"$f":"SUMPRODUCT((Tableau6[[Typologie ]]=\"Back Office\")*(Tableau6[[Date ]]=$A29)*(Tableau6[Requetes]=AC$2))","v":0},{"$f":"SUMPRODUCT((Tableau6[[Code Réclamation  ]]=\"Back Office\")*(Tableau6[[Typologie ]]=$A29)*(Tableau6[[Catégories ]]=AD$2))","v":0},{"$f":"SUMPRODUCT((Tableau6[Noms & Prenoms]=\"Back Office\")*(Tableau6[[Code Réclamation  ]]=$A29)*(Tableau6[Types]=AE$2))","v":0},{"$f":"SUMPRODUCT((Tableau6[[Typologie ]]=\"Front Office\")*(Tableau6[[Date ]]=$A29)*(Tableau6[Requetes]=AF$2))","v":0},{"$f":"SUMPRODUCT((Tableau6[[Code Réclamation  ]]=\"Front Office\")*(Tableau6[[Typologie ]]=$A29)*(Tableau6[[Catégories ]]=AG$2))","v":0},{"$f":"SUMPRODUCT((Tableau6[Noms & Prenoms]=\"Front Office\")*(Tableau6[[Code Réclamation  ]]=$A29)*(Tableau6[Types]=AH$2))","v":0},{"$f":"SUMPRODUCT((Tableau6[[Typologie ]]=\"Direction Générale\")*(Tableau6[[Date ]]=$A29)*(Tableau6[Requetes]=AI$2))","v":0},{"$f":"SUMPRODUCT((Tableau6[[Code Réclamation  ]]=\"Direction Générale\")*(Tableau6[[Typologie ]]=$A29)*(Tableau6[[Catégories ]]=AJ$2))","v":0},{"$f":"SUMPRODUCT((Tableau6[Noms & Prenoms]=\"Direction Générale\")*(Tableau6[[Code Réclamation  ]]=$A29)*(Tableau6[Types]=AK$2))","v":0}]
["2018-01-28",{"$f":"SUMPRODUCT((Tableau6[[Typologie ]]=\"Showroom Akwa\")*(Tableau6[[Date ]]=$A30)*(Tableau6[Requetes]=B$2))","v":0},{"$f":"SUMPRODUCT((Tableau6[[Typologie ]]=\"Showroom Akwa\")*(Tableau6[[Date ]]=$A30)*(Tableau6[Requetes]=C$2))","v":0},{"$f":"SUMPRODUCT((Tableau6[[Typologie ]]=\"Showroom Akwa\")*(Tableau6[[Date ]]=$A30)*(Tableau6[Requetes]=D$2))","v":0},{"$f":"SUMPRODUCT((Tableau6[[Typologie ]]=\"Showroom Bafoussam\")*(Tableau6[[Date ]]=$A30)*(Tableau6[Requetes]=E$2))","v":0},{"$f":"SUMPRODUCT((Tableau6[[Typologie ]]=\"Showroom Bafoussam\")*(Tableau6[[Date ]]=$A30)*(Tableau6[Requetes]=F$2))","v":0},{"$f":"SUMPRODUCT((Tableau6[[Typologie ]]=\"Showroom Bafoussam\")*(Tableau6[[Date ]]=$A30)*(Tableau6[Requetes]=G$2))","v":0},{"$f":"SUMPRODUCT((Tableau6[[Typologie ]]=\"Showroom Yaounde\")*(Tableau6[[Date ]]=$A30)*(Tableau6[Requetes]=H$2))","v":0},{"$f":"SUMPRODUCT((Tableau6[[Code Réclamation  ]]=\"Showroom Yaounde\")*(Tableau6[[Typologie ]]=$A30)*(Tableau6[[Catégories ]]=I$2))","v":0},{"$f":"SUMPRODUCT((Tableau6[Noms & Prenoms]=\"Showroom Yaounde\")*(Tableau6[[Code Réclamation  ]]=$A30)*(Tableau6[Types]=J$2))","v":0},{"$f":"SUMPRODUCT((Tableau6[[Typologie ]]=\"Showroom Bonamoussadi\")*(Tableau6[[Date ]]=$A30)*(Tableau6[Requetes]=K$2))","v":0},{"$f":"SUMPRODUCT((Tableau6[[Code Réclamation  ]]=\"Showroom Bonamoussadi\")*(Tableau6[[Typologie ]]=$A30)*(Tableau6[[Catégories ]]=L$2))","v":0},{"$f":"SUMPRODUCT((Tableau6[Noms & Prenoms]=\"Showroom Bonamoussadi\")*(Tableau6[[Code Réclamation  ]]=$A30)*(Tableau6[Types]=M$2))","v":0},{"$f":"SUMPRODUCT((Tableau6[[Typologie ]]=\"Showroom Bonanjo\")*(Tableau6[[Date ]]=$A30)*(Tableau6[Requetes]=N$2))","v":0},{"$f":"SUMPRODUCT((Tableau6[[Code Réclamation  ]]=\"Showroom Bonanjo\")*(Tableau6[[Typologie ]]=$A30)*(Tableau6[[Catégories ]]=O$2))","v":0},{"$f":"SUMPRODUCT((Tableau6[Noms & Prenoms]=\"Showroom Bonanjo\")*(Tableau6[[Code Réclamation  ]]=$A30)*(Tableau6[Types]=P$2))","v":0},{"$f":"SUMPRODUCT((Tableau6[[Typologie ]]=\"Showroom Garoua\")*(Tableau6[[Date ]]=$A30)*(Tableau6[Requetes]=Q$2))","v":0},{"$f":"SUMPRODUCT((Tableau6[[Code Réclamation  ]]=\"Showroom Garoua\")*(Tableau6[[Typologie ]]=$A30)*(Tableau6[[Catégories ]]=R$2))","v":0},{"$f":"SUMPRODUCT((Tableau6[Noms & Prenoms]=\"Showroom Garoua\")*(Tableau6[[Code Réclamation  ]]=$A30)*(Tableau6[Types]=S$2))","v":0},{"$f":"SUMPRODUCT((Tableau6[[Typologie ]]=\"Shop Bastos\")*(Tableau6[[Date ]]=$A30)*(Tableau6[Requetes]=T$2))","v":0},{"$f":"SUMPRODUCT((Tableau6[[Code Réclamation  ]]=\"Shop Bastos\")*(Tableau6[[Typologie ]]=$A30)*(Tableau6[[Catégories ]]=U$2))","v":0},{"$f":"SUMPRODUCT((Tableau6[Noms & Prenoms]=\"Shop Bastos\")*(Tableau6[[Code Réclamation  ]]=$A30)*(Tableau6[Types]=V$2))","v":0},{"$f":"SUMPRODUCT((Tableau6[[Typologie ]]=\"Shop Essos\")*(Tableau6[[Date ]]=$A30)*(Tableau6[Requetes]=W$2))","v":0},{"$f":"SUMPRODUCT((Tableau6[[Code Réclamation  ]]=\"Shop Essos\")*(Tableau6[[Typologie ]]=$A30)*(Tableau6[[Catégories ]]=X$2))","v":0},{"$f":"SUMPRODUCT((Tableau6[Noms & Prenoms]=\"Shop Essos\")*(Tableau6[[Code Réclamation  ]]=$A30)*(Tableau6[Types]=Y$2))","v":0},{"$f":"SUMPRODUCT((Tableau6[[Typologie ]]=\"Shop Peyrissac\")*(Tableau6[[Date ]]=$A30)*(Tableau6[Requetes]=Z$2))","v":0},{"$f":"SUMPRODUCT((Tableau6[[Code Réclamation  ]]=\"Shop Peyrissac\")*(Tableau6[[Typologie ]]=$A30)*(Tableau6[[Catégories ]]=AA$2))","v":0},{"$f":"SUMPRODUCT((Tableau6[Noms & Prenoms]=\"Shop Peyrissac\")*(Tableau6[[Code Réclamation  ]]=$A30)*(Tableau6[Types]=AB$2))","v":0},{"$f":"SUMPRODUCT((Tableau6[[Typologie ]]=\"Back Office\")*(Tableau6[[Date ]]=$A30)*(Tableau6[Requetes]=AC$2))","v":0},{"$f":"SUMPRODUCT((Tableau6[[Code Réclamation  ]]=\"Back Office\")*(Tableau6[[Typologie ]]=$A30)*(Tableau6[[Catégories ]]=AD$2))","v":0},{"$f":"SUMPRODUCT((Tableau6[Noms & Prenoms]=\"Back Office\")*(Tableau6[[Code Réclamation  ]]=$A30)*(Tableau6[Types]=AE$2))","v":0},{"$f":"SUMPRODUCT((Tableau6[[Typologie ]]=\"Front Office\")*(Tableau6[[Date ]]=$A30)*(Tableau6[Requetes]=AF$2))","v":0},{"$f":"SUMPRODUCT((Tableau6[[Code Réclamation  ]]=\"Front Office\")*(Tableau6[[Typologie ]]=$A30)*(Tableau6[[Catégories ]]=AG$2))","v":0},{"$f":"SUMPRODUCT((Tableau6[Noms & Prenoms]=\"Front Office\")*(Tableau6[[Code Réclamation  ]]=$A30)*(Tableau6[Types]=AH$2))","v":0},{"$f":"SUMPRODUCT((Tableau6[[Typologie ]]=\"Direction Générale\")*(Tableau6[[Date ]]=$A30)*(Tableau6[Requetes]=AI$2))","v":0},{"$f":"SUMPRODUCT((Tableau6[[Code Réclamation  ]]=\"Direction Générale\")*(Tableau6[[Typologie ]]=$A30)*(Tableau6[[Catégories ]]=AJ$2))","v":0},{"$f":"SUMPRODUCT((Tableau6[Noms & Prenoms]=\"Direction Générale\")*(Tableau6[[Code Réclamation  ]]=$A30)*(Tableau6[Types]=AK$2))","v":0}]
["2018-01-29",{"$f":"SUMPRODUCT((Tableau6[[Typologie ]]=\"Showroom Akwa\")*(Tableau6[[Date ]]=$A31)*(Tableau6[Requetes]=B$2))","v":0},{"$f":"SUMPRODUCT((Tableau6[[Typologie ]]=\"Showroom Akwa\")*(Tableau6[[Date ]]=$A31)*(Tableau6[Requetes]=C$2))","v":0},{"$f":"SUMPRODUCT((Tableau6[[Typologie ]]=\"Showroom Akwa\")*(Tableau6[[Date ]]=$A31)*(Tableau6[Requetes]=D$2))","v":0},{"$f":"SUMPRODUCT((Tableau6[[Typologie ]]=\"Showroom Bafoussam\")*(Tableau6[[Date ]]=$A31)*(Tableau6[Requetes]=E$2))","v":0},{"$f":"SUMPRODUCT((Tableau6[[Typologie ]]=\"Showroom Bafoussam\")*(Tableau6[[Date ]]=$A31)*(Tableau6[Requetes]=F$2))","v":0},{"$f":"SUMPRODUCT((Tableau6[[Typologie ]]=\"Showroom Bafoussam\")*(Tableau6[[Date ]]=$A31)*(Tableau6[Requetes]=G$2))","v":0},{"$f":"SUMPRODUCT((Tableau6[[Typologie ]]=\"Showroom Yaounde\")*(Tableau6[[Date ]]=$A31)*(Tableau6[Requetes]=H$2))","v":0},{"$f":"SUMPRODUCT((Tableau6[[Code Réclamation  ]]=\"Showroom Yaounde\")*(Tableau6[[Typologie ]]=$A31)*(Tableau6[[Catégories ]]=I$2))","v":0},{"$f":"SUMPRODUCT((Tableau6[Noms & Prenoms]=\"Showroom Yaounde\")*(Tableau6[[Code Réclamation  ]]=$A31)*(Tableau6[Types]=J$2))","v":0},{"$f":"SUMPRODUCT((Tableau6[[Typologie ]]=\"Showroom Bonamoussadi\")*(Tableau6[[Date ]]=$A31)*(Tableau6[Requetes]=K$2))","v":0},{"$f":"SUMPRODUCT((Tableau6[[Code Réclamation  ]]=\"Showroom Bonamoussadi\")*(Tableau6[[Typologie ]]=$A31)*(Tableau6[[Catégories ]]=L$2))","v":0},{"$f":"SUMPRODUCT((Tableau6[Noms & Prenoms]=\"Showroom Bonamoussadi\")*(Tableau6[[Code Réclamation  ]]=$A31)*(Tableau6[Types]=M$2))","v":0},{"$f":"SUMPRODUCT((Tableau6[[Typologie ]]=\"Showroom Bonanjo\")*(Tableau6[[Date ]]=$A31)*(Tableau6[Requetes]=N$2))","v":0},{"$f":"SUMPRODUCT((Tableau6[[Code Réclamation  ]]=\"Showroom Bonanjo\")*(Tableau6[[Typologie ]]=$A31)*(Tableau6[[Catégories ]]=O$2))","v":0},{"$f":"SUMPRODUCT((Tableau6[Noms & Prenoms]=\"Showroom Bonanjo\")*(Tableau6[[Code Réclamation  ]]=$A31)*(Tableau6[Types]=P$2))","v":0},{"$f":"SUMPRODUCT((Tableau6[[Typologie ]]=\"Showroom Garoua\")*(Tableau6[[Date ]]=$A31)*(Tableau6[Requetes]=Q$2))","v":0},{"$f":"SUMPRODUCT((Tableau6[[Code Réclamation  ]]=\"Showroom Garoua\")*(Tableau6[[Typologie ]]=$A31)*(Tableau6[[Catégories ]]=R$2))","v":0},{"$f":"SUMPRODUCT((Tableau6[Noms & Prenoms]=\"Showroom Garoua\")*(Tableau6[[Code Réclamation  ]]=$A31)*(Tableau6[Types]=S$2))","v":0},{"$f":"SUMPRODUCT((Tableau6[[Typologie ]]=\"Shop Bastos\")*(Tableau6[[Date ]]=$A31)*(Tableau6[Requetes]=T$2))","v":0},{"$f":"SUMPRODUCT((Tableau6[[Code Réclamation  ]]=\"Shop Bastos\")*(Tableau6[[Typologie ]]=$A31)*(Tableau6[[Catégories ]]=U$2))","v":0},{"$f":"SUMPRODUCT((Tableau6[Noms & Prenoms]=\"Shop Bastos\")*(Tableau6[[Code Réclamation  ]]=$A31)*(Tableau6[Types]=V$2))","v":0},{"$f":"SUMPRODUCT((Tableau6[[Typologie ]]=\"Shop Essos\")*(Tableau6[[Date ]]=$A31)*(Tableau6[Requetes]=W$2))","v":0},{"$f":"SUMPRODUCT((Tableau6[[Code Réclamation  ]]=\"Shop Essos\")*(Tableau6[[Typologie ]]=$A31)*(Tableau6[[Catégories ]]=X$2))","v":0},{"$f":"SUMPRODUCT((Tableau6[Noms & Prenoms]=\"Shop Essos\")*(Tableau6[[Code Réclamation  ]]=$A31)*(Tableau6[Types]=Y$2))","v":0},{"$f":"SUMPRODUCT((Tableau6[[Typologie ]]=\"Shop Peyrissac\")*(Tableau6[[Date ]]=$A31)*(Tableau6[Requetes]=Z$2))","v":0},{"$f":"SUMPRODUCT((Tableau6[[Code Réclamation  ]]=\"Shop Peyrissac\")*(Tableau6[[Typologie ]]=$A31)*(Tableau6[[Catégories ]]=AA$2))","v":0},{"$f":"SUMPRODUCT((Tableau6[Noms & Prenoms]=\"Shop Peyrissac\")*(Tableau6[[Code Réclamation  ]]=$A31)*(Tableau6[Types]=AB$2))","v":0},{"$f":"SUMPRODUCT((Tableau6[[Typologie ]]=\"Back Office\")*(Tableau6[[Date ]]=$A31)*(Tableau6[Requetes]=AC$2))","v":0},{"$f":"SUMPRODUCT((Tableau6[[Code Réclamation  ]]=\"Back Office\")*(Tableau6[[Typologie ]]=$A31)*(Tableau6[[Catégories ]]=AD$2))","v":0},{"$f":"SUMPRODUCT((Tableau6[Noms & Prenoms]=\"Back Office\")*(Tableau6[[Code Réclamation  ]]=$A31)*(Tableau6[Types]=AE$2))","v":0},{"$f":"SUMPRODUCT((Tableau6[[Typologie ]]=\"Front Office\")*(Tableau6[[Date ]]=$A31)*(Tableau6[Requetes]=AF$2))","v":0},{"$f":"SUMPRODUCT((Tableau6[[Code Réclamation  ]]=\"Front Office\")*(Tableau6[[Typologie ]]=$A31)*(Tableau6[[Catégories ]]=AG$2))","v":0},{"$f":"SUMPRODUCT((Tableau6[Noms & Prenoms]=\"Front Office\")*(Tableau6[[Code Réclamation  ]]=$A31)*(Tableau6[Types]=AH$2))","v":0},{"$f":"SUMPRODUCT((Tableau6[[Typologie ]]=\"Direction Générale\")*(Tableau6[[Date ]]=$A31)*(Tableau6[Requetes]=AI$2))","v":0},{"$f":"SUMPRODUCT((Tableau6[[Code Réclamation  ]]=\"Direction Générale\")*(Tableau6[[Typologie ]]=$A31)*(Tableau6[[Catégories ]]=AJ$2))","v":0},{"$f":"SUMPRODUCT((Tableau6[Noms & Prenoms]=\"Direction Générale\")*(Tableau6[[Code Réclamation  ]]=$A31)*(Tableau6[Types]=AK$2))","v":0}]
["2018-01-30",{"$f":"SUMPRODUCT((Tableau6[[Typologie ]]=\"Showroom Akwa\")*(Tableau6[[Date ]]=$A32)*(Tableau6[Requetes]=B$2))","v":0},{"$f":"SUMPRODUCT((Tableau6[[Typologie ]]=\"Showroom Akwa\")*(Tableau6[[Date ]]=$A32)*(Tableau6[Requetes]=C$2))","v":0},{"$f":"SUMPRODUCT((Tableau6[[Typologie ]]=\"Showroom Akwa\")*(Tableau6[[Date ]]=$A32)*(Tableau6[Requetes]=D$2))","v":0},{"$f":"SUMPRODUCT((Tableau6[[Typologie ]]=\"Showroom Bafoussam\")*(Tableau6[[Date ]]=$A32)*(Tableau6[Requetes]=E$2))","v":0},{"$f":"SUMPRODUCT((Tableau6[[Typologie ]]=\"Showroom Bafoussam\")*(Tableau6[[Date ]]=$A32)*(Tableau6[Requetes]=F$2))","v":0},{"$f":"SUMPRODUCT((Tableau6[[Typologie ]]=\"Showroom Bafoussam\")*(Tableau6[[Date ]]=$A32)*(Tableau6[Requetes]=G$2))","v":0},{"$f":"SUMPRODUCT((Tableau6[[Typologie ]]=\"Showroom Yaounde\")*(Tableau6[[Date ]]=$A32)*(Tableau6[Requetes]=H$2))","v":0},{"$f":"SUMPRODUCT((Tableau6[[Code Réclamation  ]]=\"Showroom Yaounde\")*(Tableau6[[Typologie ]]=$A32)*(Tableau6[[Catégories ]]=I$2))","v":0},{"$f":"SUMPRODUCT((Tableau6[Noms & Prenoms]=\"Showroom Yaounde\")*(Tableau6[[Code Réclamation  ]]=$A32)*(Tableau6[Types]=J$2))","v":0},{"$f":"SUMPRODUCT((Tableau6[[Typologie ]]=\"Showroom Bonamoussadi\")*(Tableau6[[Date ]]=$A32)*(Tableau6[Requetes]=K$2))","v":0},{"$f":"SUMPRODUCT((Tableau6[[Code Réclamation  ]]=\"Showroom Bonamoussadi\")*(Tableau6[[Typologie ]]=$A32)*(Tableau6[[Catégories ]]=L$2))","v":0},{"$f":"SUMPRODUCT((Tableau6[Noms & Prenoms]=\"Showroom Bonamoussadi\")*(Tableau6[[Code Réclamation  ]]=$A32)*(Tableau6[Types]=M$2))","v":0},{"$f":"SUMPRODUCT((Tableau6[[Typologie ]]=\"Showroom Bonanjo\")*(Tableau6[[Date ]]=$A32)*(Tableau6[Requetes]=N$2))","v":0},{"$f":"SUMPRODUCT((Tableau6[[Code Réclamation  ]]=\"Showroom Bonanjo\")*(Tableau6[[Typologie ]]=$A32)*(Tableau6[[Catégories ]]=O$2))","v":0},{"$f":"SUMPRODUCT((Tableau6[Noms & Prenoms]=\"Showroom Bonanjo\")*(Tableau6[[Code Réclamation  ]]=$A32)*(Tableau6[Types]=P$2))","v":0},{"$f":"SUMPRODUCT((Tableau6[[Typologie ]]=\"Showroom Garoua\")*(Tableau6[[Date ]]=$A32)*(Tableau6[Requetes]=Q$2))","v":0},{"$f":"SUMPRODUCT((Tableau6[[Code Réclamation  ]]=\"Showroom Garoua\")*(Tableau6[[Typologie ]]=$A32)*(Tableau6[[Catégories ]]=R$2))","v":0},{"$f":"SUMPRODUCT((Tableau6[Noms & Prenoms]=\"Showroom Garoua\")*(Tableau6[[Code Réclamation  ]]=$A32)*(Tableau6[Types]=S$2))","v":0},{"$f":"SUMPRODUCT((Tableau6[[Typologie ]]=\"Shop Bastos\")*(Tableau6[[Date ]]=$A32)*(Tableau6[Requetes]=T$2))","v":0},{"$f":"SUMPRODUCT((Tableau6[[Code Réclamation  ]]=\"Shop Bastos\")*(Tableau6[[Typologie ]]=$A32)*(Tableau6[[Catégories ]]=U$2))","v":0},{"$f":"SUMPRODUCT((Tableau6[Noms & Prenoms]=\"Shop Bastos\")*(Tableau6[[Code Réclamation  ]]=$A32)*(Tableau6[Types]=V$2))","v":0},{"$f":"SUMPRODUCT((Tableau6[[Typologie ]]=\"Shop Essos\")*(Tableau6[[Date ]]=$A32)*(Tableau6[Requetes]=W$2))","v":0},{"$f":"SUMPRODUCT((Tableau6[[Code Réclamation  ]]=\"Shop Essos\")*(Tableau6[[Typologie ]]=$A32)*(Tableau6[[Catégories ]]=X$2))","v":0},{"$f":"SUMPRODUCT((Tableau6[Noms & Prenoms]=\"Shop Essos\")*(Tableau6[[Code Réclamation  ]]=$A32)*(Tableau6[Types]=Y$2))","v":0},{"$f":"SUMPRODUCT((Tableau6[[Typologie ]]=\"Shop Peyrissac\")*(Tableau6[[Date ]]=$A32)*(Tableau6[Requetes]=Z$2))","v":0},{"$f":"SUMPRODUCT((Tableau6[[Code Réclamation  ]]=\"Shop Peyrissac\")*(Tableau6[[Typologie ]]=$A32)*(Tableau6[[Catégories ]]=AA$2))","v":0},{"$f":"SUMPRODUCT((Tableau6[Noms & Prenoms]=\"Shop Peyrissac\")*(Tableau6[[Code Réclamation  ]]=$A32)*(Tableau6[Types]=AB$2))","v":0},{"$f":"SUMPRODUCT((Tableau6[[Typologie ]]=\"Back Office\")*(Tableau6[[Date ]]=$A32)*(Tableau6[Requetes]=AC$2))","v":0},{"$f":"SUMPRODUCT((Tableau6[[Code Réclamation  ]]=\"Back Office\")*(Tableau6[[Typologie ]]=$A32)*(Tableau6[[Catégories ]]=AD$2))","v":0},{"$f":"SUMPRODUCT((Tableau6[Noms & Prenoms]=\"Back Office\")*(Tableau6[[Code Réclamation  ]]=$A32)*(Tableau6[Types]=AE$2))","v":0},{"$f":"SUMPRODUCT((Tableau6[[Typologie ]]=\"Front Office\")*(Tableau6[[Date ]]=$A32)*(Tableau6[Requetes]=AF$2))","v":0},{"$f":"SUMPRODUCT((Tableau6[[Code Réclamation  ]]=\"Front Office\")*(Tableau6[[Typologie ]]=$A32)*(Tableau6[[Catégories ]]=AG$2))","v":0},{"$f":"SUMPRODUCT((Tableau6[Noms & Prenoms]=\"Front Office\")*(Tableau6[[Code Réclamation  ]]=$A32)*(Tableau6[Types]=AH$2))","v":0},{"$f":"SUMPRODUCT((Tableau6[[Typologie ]]=\"Direction Générale\")*(Tableau6[[Date ]]=$A32)*(Tableau6[Requetes]=AI$2))","v":0},{"$f":"SUMPRODUCT((Tableau6[[Code Réclamation  ]]=\"Direction Générale\")*(Tableau6[[Typologie ]]=$A32)*(Tableau6[[Catégories ]]=AJ$2))","v":0},{"$f":"SUMPRODUCT((Tableau6[Noms & Prenoms]=\"Direction Générale\")*(Tableau6[[Code Réclamation  ]]=$A32)*(Tableau6[Types]=AK$2))","v":0}]
["2018-01-31",{"$f":"SUMPRODUCT((Tableau6[[Typologie ]]=\"Showroom Akwa\")*(Tableau6[[Date ]]=$A33)*(Tableau6[Requetes]=B$2))","v":0},{"$f":"SUMPRODUCT((Tableau6[[Typologie ]]=\"Showroom Akwa\")*(Tableau6[[Date ]]=$A33)*(Tableau6[Requetes]=C$2))","v":0},{"$f":"SUMPRODUCT((Tableau6[[Typologie ]]=\"Showroom Akwa\")*(Tableau6[[Date ]]=$A33)*(Tableau6[Requetes]=D$2))","v":0},{"$f":"SUMPRODUCT((Tableau6[[Typologie ]]=\"Showroom Bafoussam\")*(Tableau6[[Date ]]=$A33)*(Tableau6[Requetes]=E$2))","v":0},{"$f":"SUMPRODUCT((Tableau6[[Typologie ]]=\"Showroom Bafoussam\")*(Tableau6[[Date ]]=$A33)*(Tableau6[Requetes]=F$2))","v":0},{"$f":"SUMPRODUCT((Tableau6[[Typologie ]]=\"Showroom Bafoussam\")*(Tableau6[[Date ]]=$A33)*(Tableau6[Requetes]=G$2))","v":0},{"$f":"SUMPRODUCT((Tableau6[[Typologie ]]=\"Showroom Yaounde\")*(Tableau6[[Date ]]=$A33)*(Tableau6[Requetes]=H$2))","v":0},{"$f":"SUMPRODUCT((Tableau6[[Code Réclamation  ]]=\"Showroom Yaounde\")*(Tableau6[[Typologie ]]=$A33)*(Tableau6[[Catégories ]]=I$2))","v":0},{"$f":"SUMPRODUCT((Tableau6[Noms & Prenoms]=\"Showroom Yaounde\")*(Tableau6[[Code Réclamation  ]]=$A33)*(Tableau6[Types]=J$2))","v":0},{"$f":"SUMPRODUCT((Tableau6[[Typologie ]]=\"Showroom Bonamoussadi\")*(Tableau6[[Date ]]=$A33)*(Tableau6[Requetes]=K$2))","v":0},{"$f":"SUMPRODUCT((Tableau6[[Code Réclamation  ]]=\"Showroom Bonamoussadi\")*(Tableau6[[Typologie ]]=$A33)*(Tableau6[[Catégories ]]=L$2))","v":0},{"$f":"SUMPRODUCT((Tableau6[Noms & Prenoms]=\"Showroom Bonamoussadi\")*(Tableau6[[Code Réclamation  ]]=$A33)*(Tableau6[Types]=M$2))","v":0},{"$f":"SUMPRODUCT((Tableau6[[Typologie ]]=\"Showroom Bonanjo\")*(Tableau6[[Date ]]=$A33)*(Tableau6[Requetes]=N$2))","v":0},{"$f":"SUMPRODUCT((Tableau6[[Code Réclamation  ]]=\"Showroom Bonanjo\")*(Tableau6[[Typologie ]]=$A33)*(Tableau6[[Catégories ]]=O$2))","v":0},{"$f":"SUMPRODUCT((Tableau6[Noms & Prenoms]=\"Showroom Bonanjo\")*(Tableau6[[Code Réclamation  ]]=$A33)*(Tableau6[Types]=P$2))","v":0},{"$f":"SUMPRODUCT((Tableau6[[Typologie ]]=\"Showroom Garoua\")*(Tableau6[[Date ]]=$A33)*(Tableau6[Requetes]=Q$2))","v":0},{"$f":"SUMPRODUCT((Tableau6[[Code Réclamation  ]]=\"Showroom Garoua\")*(Tableau6[[Typologie ]]=$A33)*(Tableau6[[Catégories ]]=R$2))","v":0},{"$f":"SUMPRODUCT((Tableau6[Noms & Prenoms]=\"Showroom Garoua\")*(Tableau6[[Code Réclamation  ]]=$A33)*(Tableau6[Types]=S$2))","v":0},{"$f":"SUMPRODUCT((Tableau6[[Typologie ]]=\"Shop Bastos\")*(Tableau6[[Date ]]=$A33)*(Tableau6[Requetes]=T$2))","v":0},{"$f":"SUMPRODUCT((Tableau6[[Code Réclamation  ]]=\"Shop Bastos\")*(Tableau6[[Typologie ]]=$A33)*(Tableau6[[Catégories ]]=U$2))","v":0},{"$f":"SUMPRODUCT((Tableau6[Noms & Prenoms]=\"Shop Bastos\")*(Tableau6[[Code Réclamation  ]]=$A33)*(Tableau6[Types]=V$2))","v":0},{"$f":"SUMPRODUCT((Tableau6[[Typologie ]]=\"Shop Essos\")*(Tableau6[[Date ]]=$A33)*(Tableau6[Requetes]=W$2))","v":0},{"$f":"SUMPRODUCT((Tableau6[[Code Réclamation  ]]=\"Shop Essos\")*(Tableau6[[Typologie ]]=$A33)*(Tableau6[[Catégories ]]=X$2))","v":0},{"$f":"SUMPRODUCT((Tableau6[Noms & Prenoms]=\"Shop Essos\")*(Tableau6[[Code Réclamation  ]]=$A33)*(Tableau6[Types]=Y$2))","v":0},{"$f":"SUMPRODUCT((Tableau6[[Typologie ]]=\"Shop Peyrissac\")*(Tableau6[[Date ]]=$A33)*(Tableau6[Requetes]=Z$2))","v":0},{"$f":"SUMPRODUCT((Tableau6[[Code Réclamation  ]]=\"Shop Peyrissac\")*(Tableau6[[Typologie ]]=$A33)*(Tableau6[[Catégories ]]=AA$2))","v":0},{"$f":"SUMPRODUCT((Tableau6[Noms & Prenoms]=\"Shop Peyrissac\")*(Tableau6[[Code Réclamation  ]]=$A33)*(Tableau6[Types]=AB$2))","v":0},{"$f":"SUMPRODUCT((Tableau6[[Typologie ]]=\"Back Office\")*(Tableau6[[Date ]]=$A33)*(Tableau6[Requetes]=AC$2))","v":0},{"$f":"SUMPRODUCT((Tableau6[[Code Réclamation  ]]=\"Back Office\")*(Tableau6[[Typologie ]]=$A33)*(Tableau6[[Catégories ]]=AD$2))","v":0},{"$f":"SUMPRODUCT((Tableau6[Noms & Prenoms]=\"Back Office\")*(Tableau6[[Code Réclamation  ]]=$A33)*(Tableau6[Types]=AE$2))","v":0},{"$f":"SUMPRODUCT((Tableau6[[Typologie ]]=\"Front Office\")*(Tableau6[[Date ]]=$A33)*(Tableau6[Requetes]=AF$2))","v":0},{"$f":"SUMPRODUCT((Tableau6[[Code Réclamation  ]]=\"Front Office\")*(Tableau6[[Typologie ]]=$A33)*(Tableau6[[Catégories ]]=AG$2))","v":0},{"$f":"SUMPRODUCT((Tableau6[Noms & Prenoms]=\"Front Office\")*(Tableau6[[Code Réclamation  ]]=$A33)*(Tableau6[Types]=AH$2))","v":0},{"$f":"SUMPRODUCT((Tableau6[[Typologie ]]=\"Direction Générale\")*(Tableau6[[Date ]]=$A33)*(Tableau6[Requetes]=AI$2))","v":0},{"$f":"SUMPRODUCT((Tableau6[[Code Réclamation  ]]=\"Direction Générale\")*(Tableau6[[Typologie ]]=$A33)*(Tableau6[[Catégories ]]=AJ$2))","v":0},{"$f":"SUMPRODUCT((Tableau6[Noms & Prenoms]=\"Direction Générale\")*(Tableau6[[Code Réclamation  ]]=$A33)*(Tableau6[Types]=AK$2))","v":0}]
["Total"]
["Moyenne"]
[]
["M-1"]

{"sheet":"Réclamations","index":1,"n_rows":67,"n_cols":18,"rows_kept":67,"cut":false,"hidden":false,"merged":[[1,0,1,4],[4,0,4,4],[7,0,7,15],[5,0,5,4],[6,0,6,4],[2,0,2,4],[3,0,3,4]]}
[]
[]
[]
[]
[]
[]
[]
[]
[]
["Nbre","Date ","Typologie ","Code Réclamation  ","Noms & Prenoms","Customer MSISDN","Services ","Equipements","Ville","Quartier","Requetes","Catégories ","Types","Probleme rencontré","Solution apportée","Date_ Resolution","Delai de resolution","Statuts "]
[1,"2018-01-02","Showroom Akwa",{"$f":"IFERROR(VLOOKUP(Tableau6[[#This Row],[Typologie ]],Tableau1[],2,0),\"\")","v":"SRCSP"},null,null,null,null,null,null,"Plaintes",null,null,null,null,null,{"$f":"IF(Tableau6[[#This Row],[Date_ Resolution]]=\"\",\"\",NETWORKDAYS.INTL(Tableau6[[#This Row],[Date ]],Tableau6[[#This Row],[Date_ Resolution]],11,11)&\" Jr\")","v":""}]
[2,"2018-01-02","Showroom Akwa",{"$f":"IFERROR(VLOOKUP(Tableau6[[#This Row],[Typologie ]],Tableau1[],2,0),\"\")","v":"SRCSP"},null,null,null,null,null,null,"Support_Technique",null,null,null,null,null,{"$f":"IF(Tableau6[[#This Row],[Date_ Resolution]]=\"\",\"\",NETWORKDAYS.INTL(Tableau6[[#This Row],[Date ]],Tableau6[[#This Row],[Date_ Resolution]],11,11)&\" Jr\")","v":""}]
[3,"2018-01-10","Showroom Akwa",{"$f":"IFERROR(VLOOKUP(Tableau6[[#This Row],[Typologie ]],Tableau1[],2,0),\"\")","v":"SRCSP"},null,null,null,null,null,null,"Support_Technique",null,null,null,null,null,{"$f":"IF(Tableau6[[#This Row],[Date_ Resolution]]=\"\",\"\",NETWORKDAYS.INTL(Tableau6[[#This Row],[Date ]],Tableau6[[#This Row],[Date_ Resolution]],11,11)&\" Jr\")","v":""}]
[4,"2018-01-10","Showroom Akwa",{"$f":"IFERROR(VLOOKUP(Tableau6[[#This Row],[Typologie ]],Tableau1[],2,0),\"\")","v":"SRCSP"},null,null,null,null,null,null,"Support_Technique",null,null,null,null,null,{"$f":"IF(Tableau6[[#This Row],[Date_ Resolution]]=\"\",\"\",NETWORKDAYS.INTL(Tableau6[[#This Row],[Date ]],Tableau6[[#This Row],[Date_ Resolution]],11,11)&\" Jr\")","v":""}]
[5,"2018-01-10","Showroom Akwa",{"$f":"IFERROR(VLOOKUP(Tableau6[[#This Row],[Typologie ]],Tableau1[],2,0),\"\")","v":"SRCSP"},null,null,null,null,null,null,"Support_Technique",null,null,null,null,null,{"$f":"IF(Tableau6[[#This Row],[Date_ Resolution]]=\"\",\"\",NETWORKDAYS.INTL(Tableau6[[#This Row],[Date ]],Tableau6[[#This Row],[Date_ Resolution]],11,11)&\" Jr\")","v":""}]
[6,"2018-01-10","Showroom Akwa",{"$f":"IFERROR(VLOOKUP(Tableau6[[#This Row],[Typologie ]],Tableau1[],2,0),\"\")","v":"SRCSP"},null,null,null,null,null,null,"Support_Technique",null,null,null,null,null,{"$f":"IF(Tableau6[[#This Row],[Date_ Resolution]]=\"\",\"\",NETWORKDAYS.INTL(Tableau6[[#This Row],[Date ]],Tableau6[[#This Row],[Date_ Resolution]],11,11)&\" Jr\")","v":""}]
[7,"2018-01-10","Showroom Akwa",{"$f":"IFERROR(VLOOKUP(Tableau6[[#This Row],[Typologie ]],Tableau1[],2,0),\"\")","v":"SRCSP"},null,null,null,null,null,null,"Support_Technique",null,null,null,null,null,{"$f":"IF(Tableau6[[#This Row],[Date_ Resolution]]=\"\",\"\",NETWORKDAYS.INTL(Tableau6[[#This Row],[Date ]],Tableau6[[#This Row],[Date_ Resolution]],11,11)&\" Jr\")","v":""}]
[8,"2018-01-10","Showroom Bafoussam",{"$f":"IFERROR(VLOOKUP(Tableau6[[#This Row],[Typologie ]],Tableau1[],2,0),\"\")","v":"SRBAF"},null,null,null,null,null,null,"Support_Technique",null,null,null,null,null,{"$f":"IF(Tableau6[[#This Row],[Date_ Resolution]]=\"\",\"\",NETWORKDAYS.INTL(Tableau6[[#This Row],[Date ]],Tableau6[[#This Row],[Date_ Resolution]],11,11)&\" Jr\")","v":""}]
[9,"2018-01-10","Front Office ",{"$f":"IFERROR(VLOOKUP(Tableau6[[#This Row],[Typologie ]],Tableau1[],2,0),\"\")","v":"RCFRO"},null,null,null,null,null,null,"Plaintes",null,null,null,null,null,{"$f":"IF(Tableau6[[#This Row],[Date_ Resolution]]=\"\",\"\",NETWORKDAYS.INTL(Tableau6[[#This Row],[Date ]],Tableau6[[#This Row],[Date_ Resolution]],11,11)&\" Jr\")","v":""}]
[10,"2018-01-10","Front Office ",{"$f":"IFERROR(VLOOKUP(Tableau6[[#This Row],[Typologie ]],Tableau1[],2,0),\"\")","v":"RCFRO"},null,null,null,null,null,null,"Plaintes",null,null,null,null,null,{"$f":"IF(Tableau6[[#This Row],[Date_ Resolution]]=\"\",\"\",NETWORKDAYS.INTL(Tableau6[[#This Row],[Date ]],Tableau6[[#This Row],[Date_ Resolution]],11,11)&\" Jr\")","v":""}]
[11,"2018-01-10","Front Office ",{"$f":"IFERROR(VLOOKUP(Tableau6[[#This Row],[Typologie ]],Tableau1[],2,0),\"\")","v":"RCFRO"},null,null,null,null,null,null,"Plaintes",null,null,null,null,null,{"$f":"IF(Tableau6[[#This Row],[Date_ Resolution]]=\"\",\"\",NETWORKDAYS.INTL(Tableau6[[#This Row],[Date ]],Tableau6[[#This Row],[Date_ Resolution]],11,11)&\" Jr\")","v":""}]
[12,"2018-01-10","Back Office ",{"$f":"IFERROR(VLOOKUP(Tableau6[[#This Row],[Typologie ]],Tableau1[],2,0),\"\")","v":"RCBAO"},null,null,null,null,null,null,"Informations ",null,null,null,null,null,{"$f":"IF(Tableau6[[#This Row],[Date_ Resolution]]=\"\",\"\",NETWORKDAYS.INTL(Tableau6[[#This Row],[Date ]],Tableau6[[#This Row],[Date_ Resolution]],11,11)&\" Jr\")","v":""}]
[13,"2018-01-10","Direction Générale",{"$f":"IFERROR(VLOOKUP(Tableau6[[#This Row],[Typologie ]],Tableau1[],2,0),\"\")","v":"RCDG"},null,null,null,null,null,null,"Plaintes",null,null,null,null,null,{"$f":"IF(Tableau6[[#This Row],[Date_ Resolution]]=\"\",\"\",NETWORKDAYS.INTL(Tableau6[[#This Row],[Date ]],Tableau6[[#This Row],[Date_ Resolution]],11,11)&\" Jr\")","v":""}]
[14,"2018-01-10","Front Office ",{"$f":"IFERROR(VLOOKUP(Tableau6[[#This Row],[Typologie ]],Tableau1[],2,0),\"\")","v":"RCFRO"},null,null,null,null,null,null,"Informations ",null,null,null,null,null,{"$f":"IF(Tableau6[[#This Row],[Date_ Resolution]]=\"\",\"\",NETWORKDAYS.INTL(Tableau6[[#This Row],[Date ]],Tableau6[[#This Row],[Date_ Resolution]],11,11)&\" Jr\")","v":""}]
[15,"2018-01-10","Shop Bastos",{"$f":"IFERROR(VLOOKUP(Tableau6[[#This Row],[Typologie ]],Tableau1[],2,0),\"\")","v":"SSBAS"},null,null,null,null,null,null,"Support_Technique",null,null,null,null,null,{"$f":"IF(Tableau6[[#This Row],[Date_ Resolution]]=\"\",\"\",NETWORKDAYS.INTL(Tableau6[[#This Row],[Date ]],Tableau6[[#This Row],[Date_ Resolution]],11,11)&\" Jr\")","v":""}]
[16,"2018-01-10","Shop Essos",{"$f":"IFERROR(VLOOKUP(Tableau6[[#This Row],[Typologie ]],Tableau1[],2,0),\"\")","v":"SSESS"},null,null,null,null,null,null,"Informations ",null,null,null,null,null,{"$f":"IF(Tableau6[[#This Row],[Date_ Resolution]]=\"\",\"\",NETWORKDAYS.INTL(Tableau6[[#This Row],[Date ]],Tableau6[[#This Row],[Date_ Resolution]],11,11)&\" Jr\")","v":""}]
[17,"2018-01-10","Shop Peyrissac",{"$f":"IFERROR(VLOOKUP(Tableau6[[#This Row],[Typologie ]],Tableau1[],2,0),\"\")","v":"SSPEY"},null,null,null,null,null,null,"Informations ",null,null,null,null,null,{"$f":"IF(Tableau6[[#This Row],[Date_ Resolution]]=\"\",\"\",NETWORKDAYS.INTL(Tableau6[[#This Row],[Date ]],Tableau6[[#This Row],[Date_ Resolution]],11,11)&\" Jr\")","v":""}]
[18,"2018-01-10","Showroom Akwa",{"$f":"IFERROR(VLOOKUP(Tableau6[[#This Row],[Typologie ]],Tableau1[],2,0),\"\")","v":"SRCSP"},null,null,null,null,null,null,"Support_Technique",null,null,null,null,null,{"$f":"IF(Tableau6[[#This Row],[Date_ Resolution]]=\"\",\"\",NETWORKDAYS.INTL(Tableau6[[#This Row],[Date ]],Tableau6[[#This Row],[Date_ Resolution]],11,11)&\" Jr\")","v":""}]
[19,"2018-01-10","Showroom Bafoussam",{"$f":"IFERROR(VLOOKUP(Tableau6[[#This Row],[Typologie ]],Tableau1[],2,0),\"\")","v":"SRBAF"},null,null,null,null,null,null,"Informations ",null,null,null,null,null,{"$f":"IF(Tableau6[[#This Row],[Date_ Resolution]]=\"\",\"\",NETWORKDAYS.INTL(Tableau6[[#This Row],[Date ]],Tableau6[[#This Row],[Date_ Resolution]],11,11)&\" Jr\")","v":""}]
[20,"2018-01-10","Showroom Bonamoussadi",{"$f":"IFERROR(VLOOKUP(Tableau6[[#This Row],[Typologie ]],Tableau1[],2,0),\"\")","v":"SRBDI"},null,null,null,null,null,null,"Informations ",null,null,null,null,null,{"$f":"IF(Tableau6[[#This Row],[Date_ Resolution]]=\"\",\"\",NETWORKDAYS.INTL(Tableau6[[#This Row],[Date ]],Tableau6[[#This Row],[Date_ Resolution]],11,11)&\" Jr\")","v":""}]
[21,"2018-01-10","Showroom Bonanjo",{"$f":"IFERROR(VLOOKUP(Tableau6[[#This Row],[Typologie ]],Tableau1[],2,0),\"\")","v":"SRDHL"},null,null,null,null,null,null,"Informations ",null,null,null,null,null,{"$f":"IF(Tableau6[[#This Row],[Date_ Resolution]]=\"\",\"\",NETWORKDAYS.INTL(Tableau6[[#This Row],[Date ]],Tableau6[[#This Row],[Date_ Resolution]],11,11)&\" Jr\")","v":""}]
[22,"2018-01-10","Showroom Garoua ",{"$f":"IFERROR(VLOOKUP(Tableau6[[#This Row],[Typologie ]],Tableau1[],2,0),\"\")","v":"SRGAR"},null,null,null,null,null,null,"Informations ",null,null,null,null,null,{"$f":"IF(Tableau6[[#This Row],[Date_ Resolution]]=\"\",\"\",NETWORKDAYS.INTL(Tableau6[[#This Row],[Date ]],Tableau6[[#This Row],[Date_ Resolution]],11,11)&\" Jr\")","v":""}]
[23,"2018-01-10","Showroom Yaounde",{"$f":"IFERROR(VLOOKUP(Tableau6[[#This Row],[Typologie ]],Tableau1[],2,0),\"\")","v":"SRAVK"},null,null,null,null,null,null,"Informations ",null,null,null,null,null,{"$f":"IF(Tableau6[[#This Row],[Date_ Resolution]]=\"\",\"\",NETWORKDAYS.INTL(Tableau6[[#This Row],[Date ]],Tableau6[[#This Row],[Date_ Resolution]],11,11)&\" Jr\")","v":""}]
[24,"2018-01-11","Showroom Bonamoussadi",{"$f":"IFERROR(VLOOKUP(Tableau6[[#This Row],[Typologie ]],Tableau1[],2,0),\"\")","v":"SRBDI"},null,null,null,null,null,null,"Plaintes",null,null,null,null,null,{"$f":"IF(Tableau6[[#This Row],[Date_ Resolution]]=\"\",\"\",NETWORKDAYS.INTL(Tableau6[[#This Row],[Date ]],Tableau6[[#This Row],[Date_ Resolution]],11,11)&\" Jr\")","v":""}]
[25,"2018-01-12","Showroom Bonamoussadi",{"$f":"IFERROR(VLOOKUP(Tableau6[[#This Row],[Typologie ]],Tableau1[],2,0),\"\")","v":"SRBDI"},null,null,null,null,null,null,"Plaintes",null,null,null,null,null,{"$f":"IF(Tableau6[[#This Row],[Date_ Resolution]]=\"\",\"\",NETWORKDAYS.INTL(Tableau6[[#This Row],[Date ]],Tableau6[[#This Row],[Date_ Resolution]],11,11)&\" Jr\")","v":""}]
[26,"2018-01-13","Showroom Bonamoussadi",{"$f":"IFERROR(VLOOKUP(Tableau6[[#This Row],[Typologie ]],Tableau1[],2,0),\"\")","v":"SRBDI"},null,null,null,null,null,null,"Plaintes",null,null,null,null,null,{"$f":"IF(Tableau6[[#This Row],[Date_ Resolution]]=\"\",\"\",NETWORKDAYS.INTL(Tableau6[[#This Row],[Date ]],Tableau6[[#This Row],[Date_ Resolution]],11,11)&\" Jr\")","v":""}]
[27,"2018-01-14","Showroom Bonamoussadi",{"$f":"IFERROR(VLOOKUP(Tableau6[[#This Row],[Typologie ]],Tableau1[],2,0),\"\")","v":"SRBDI"},null,null,null,null,null,null,"Plaintes",null,null,null,null,null,{"$f":"IF(Tableau6[[#This Row],[Date_ Resolution]]=\"\",\"\",NETWORKDAYS.INTL(Tableau6[[#This Row],[Date ]],Tableau6[[#This Row],[Date_ Resolution]],11,11)&\" Jr\")","v":""}]
[28,"2018-01-15","Showroom Bonamoussadi",{"$f":"IFERROR(VLOOKUP(Tableau6[[#This Row],[Typologie ]],Tableau1[],2,0),\"\")","v":"SRBDI"},null,null,null,null,null,null,"Informations ",null,null,null,null,null,{"$f":"IF(Tableau6[[#This Row],[Date_ Resolution]]=\"\",\"\",NETWORKDAYS.INTL(Tableau6[[#This Row],[Date ]],Tableau6[[#This Row],[Date_ Resolution]],11,11)&\" Jr\")","v":""}]
[29,"2018-01-16","Showroom Bonamoussadi",{"$f":"IFERROR(VLOOKUP(Tableau6[[#This Row],[Typologie ]],Tableau1[],2,0),\"\")","v":"SRBDI"},null,null,null,null,null,null,"Informations ",null,null,null,null,null,{"$f":"IF(Tableau6[[#This Row],[Date_ Resolution]]=\"\",\"\",NETWORKDAYS.INTL(Tableau6[[#This Row],[Date ]],Tableau6[[#This Row],[Date_ Resolution]],11,11)&\" Jr\")","v":""}]
[30,"2018-01-17","Showroom Bonamoussadi",{"$f":"IFERROR(VLOOKUP(Tableau6[[#This Row],[Typologie ]],Tableau1[],2,0),\"\")","v":"SRBDI"},null,null,null,null,null,null,"Informations ",null,null,null,null,null,{"$f":"IF(Tableau6[[#This Row],[Date_ Resolution]]=\"\",\"\",NETWORKDAYS.INTL(Tableau6[[#This Row],[Date ]],Tableau6[[#This Row],[Date_ Resolution]],11,11)&\" Jr\")","v":""}]
[31,"2018-01-18","Showroom Bonamoussadi",{"$f":"IFERROR(VLOOKUP(Tableau6[[#This Row],[Typologie ]],Tableau1[],2,0),\"\")","v":"SRBDI"},null,null,null,null,null,null,"Informations ",null,null,null,null,null,{"$f":"IF(Tableau6[[#This Row],[Date_ Resolution]]=\"\",\"\",NETWORKDAYS.INTL(Tableau6[[#This Row],[Date ]],Tableau6[[#This Row],[Date_ Resolution]],11,11)&\" Jr\")","v":""}]
[null,null,null,{"$f":"IFERROR(VLOOKUP(Tableau6[[#This Row],[Typologie ]],Tableau1[],2,0),\"\")","v":""},null,null,null,null,null,null,null,null,null,null,null,null,{"$f":"IF(Tableau6[[#This Row],[Date_ Resolution]]=\"\",\"\",NETWORKDAYS.INTL(Tableau6[[#This Row],[Date ]],Tableau6[[#This Row],[Date_ Resolution]],11,11)&\" Jr\")","v":""}]
[null,null,null,{"$f":"IFERROR(VLOOKUP(Tableau6[[#This Row],[Typologie ]],Tableau1[],2,0),\"\")","v":""},null,null,null,null,null,null,null,null,null,null,null,null,{"$f":"IF(Tableau6[[#This Row],[Date_ Resolution]]=\"\",\"\",NETWORKDAYS.INTL(Tableau6[[#This Row],[Date ]],Tableau6[[#This Row],[Date_ Resolution]],11,11)&\" Jr\")","v":""}]
[null,null,null,{"$f":"IFERROR(VLOOKUP(Tableau6[[#This Row],[Typologie ]],Tableau1[],2,0),\"\")","v":""},null,null,null,null,null,null,null,null,null,null,null,null,{"$f":"IF(Tableau6[[#This Row],[Date_ Resolution]]=\"\",\"\",NETWORKDAYS.INTL(Tableau6[[#This Row],[Date ]],Tableau6[[#This Row],[Date_ Resolution]],11,11)&\" Jr\")","v":""}]
[null,null,null,{"$f":"IFERROR(VLOOKUP(Tableau6[[#This Row],[Typologie ]],Tableau1[],2,0),\"\")","v":""},null,null,null,null,null,null,null,null,null,null,null,null,{"$f":"IF(Tableau6[[#This Row],[Date_ Resolution]]=\"\",\"\",NETWORKDAYS.INTL(Tableau6[[#This Row],[Date ]],Tableau6[[#This Row],[Date_ Resolution]],11,11)&\" Jr\")","v":""}]
[null,null,null,{"$f":"IFERROR(VLOOKUP(Tableau6[[#This Row],[Typologie ]],Tableau1[],2,0),\"\")","v":""},null,null,null,null,null,null,null,null,null,null,null,null,{"$f":"IF(Tableau6[[#This Row],[Date_ Resolution]]=\"\",\"\",NETWORKDAYS.INTL(Tableau6[[#This Row],[Date ]],Tableau6[[#This Row],[Date_ Resolution]],11,11)&\" Jr\")","v":""}]
[null,null,null,{"$f":"IFERROR(VLOOKUP(Tableau6[[#This Row],[Typologie ]],Tableau1[],2,0),\"\")","v":""},null,null,null,null,null,null,null,null,null,null,null,null,{"$f":"IF(Tableau6[[#This Row],[Date_ Resolution]]=\"\",\"\",NETWORKDAYS.INTL(Tableau6[[#This Row],[Date ]],Tableau6[[#This Row],[Date_ Resolution]],11,11)&\" Jr\")","v":""}]
[null,null,null,{"$f":"IFERROR(VLOOKUP(Tableau6[[#This Row],[Typologie ]],Tableau1[],2,0),\"\")","v":""},null,null,null,null,null,null,null,null,null,null,null,null,{"$f":"IF(Tableau6[[#This Row],[Date_ Resolution]]=\"\",\"\",NETWORKDAYS.INTL(Tableau6[[#This Row],[Date ]],Tableau6[[#This Row],[Date_ Resolution]],11,11)&\" Jr\")","v":""}]
[null,null,null,{"$f":"IFERROR(VLOOKUP(Tableau6[[#This Row],[Typologie ]],Tableau1[],2,0),\"\")","v":""},null,null,null,null,null,null,null,null,null,null,null,null,{"$f":"IF(Tableau6[[#This Row],[Date_ Resolution]]=\"\",\"\",NETWORKDAYS.INTL(Tableau6[[#This Row],[Date ]],Tableau6[[#This Row],[Date_ Resolution]],11,11)&\" Jr\")","v":""}]
[null,null,null,{"$f":"IFERROR(VLOOKUP(Tableau6[[#This Row],[Typologie ]],Tableau1[],2,0),\"\")","v":""},null,null,null,null,null,null,null,null,null,null,null,null,{"$f":"IF(Tableau6[[#This Row],[Date_ Resolution]]=\"\",\"\",NETWORKDAYS.INTL(Tableau6[[#This Row],[Date ]],Tableau6[[#This Row],[Date_ Resolution]],11,11)&\" Jr\")","v":""}]
[null,null,null,{"$f":"IFERROR(VLOOKUP(Tableau6[[#This Row],[Typologie ]],Tableau1[],2,0),\"\")","v":""},null,null,null,null,null,null,null,null,null,null,null,null,{"$f":"IF(Tableau6[[#This Row],[Date_ Resolution]]=\"\",\"\",NETWORKDAYS.INTL(Tableau6[[#This Row],[Date ]],Tableau6[[#This Row],[Date_ Resolution]],11,11)&\" Jr\")","v":""}]
[null,null,null,{"$f":"IFERROR(VLOOKUP(Tableau6[[#This Row],[Typologie ]],Tableau1[],2,0),\"\")","v":""},null,null,null,null,null,null,null,null,null,null,null,null,{"$f":"IF(Tableau6[[#This Row],[Date_ Resolution]]=\"\",\"\",NETWORKDAYS.INTL(Tableau6[[#This Row],[Date ]],Tableau6[[#This Row],[Date_ Resolution]],11,11)&\" Jr\")","v":""}]
[null,null,null,{"$f":"IFERROR(VLOOKUP(Tableau6[[#This Row],[Typologie ]],Tableau1[],2,0),\"\")","v":""},null,null,null,null,null,null,null,null,null,null,null,null,{"$f":"IF(Tableau6[[#This Row],[Date_ Resolution]]=\"\",\"\",NETWORKDAYS.INTL(Tableau6[[#This Row],[Date ]],Tableau6[[#This Row],[Date_ Resolution]],11,11)&\" Jr\")","v":""}]
[null,null,null,{"$f":"IFERROR(VLOOKUP(Tableau6[[#This Row],[Typologie ]],Tableau1[],2,0),\"\")","v":""},null,null,null,null,null,null,null,null,null,null,null,null,{"$f":"IF(Tableau6[[#This Row],[Date_ Resolution]]=\"\",\"\",NETWORKDAYS.INTL(Tableau6[[#This Row],[Date ]],Tableau6[[#This Row],[Date_ Resolution]],11,11)&\" Jr\")","v":""}]
[null,null,null,{"$f":"IFERROR(VLOOKUP(Tableau6[[#This Row],[Typologie ]],Tableau1[],2,0),\"\")","v":""},null,null,null,null,null,null,null,null,null,null,null,null,{"$f":"IF(Tableau6[[#This Row],[Date_ Resolution]]=\"\",\"\",NETWORKDAYS.INTL(Tableau6[[#This Row],[Date ]],Tableau6[[#This Row],[Date_ Resolution]],11,11)&\" Jr\")","v":""}]
[null,null,null,{"$f":"IFERROR(VLOOKUP(Tableau6[[#This Row],[Typologie ]],Tableau1[],2,0),\"\")","v":""},null,null,null,null,null,null,null,null,null,null,null,null,{"$f":"IF(Tableau6[[#This Row],[Date_ Resolution]]=\"\",\"\",NETWORKDAYS.INTL(Tableau6[[#This Row],[Date ]],Tableau6[[#This Row],[Date_ Resolution]],11,11)&\" Jr\")","v":""}]
[null,null,null,{"$f":"IFERROR(VLOOKUP(Tableau6[[#This Row],[Typologie ]],Tableau1[],2,0),\"\")","v":""},null,null,null,null,null,null,null,null,null,null,null,null,{"$f":"IF(Tableau6[[#This Row],[Date_ Resolution]]=\"\",\"\",NETWORKDAYS.INTL(Tableau6[[#This Row],[Date ]],Tableau6[[#This Row],[Date_ Resolution]],11,11)&\" Jr\")","v":""}]
[null,null,null,{"$f":"IFERROR(VLOOKUP(Tableau6[[#This Row],[Typologie ]],Tableau1[],2,0),\"\")","v":""},null,null,null,null,null,null,null,null,null,null,null,null,{"$f":"IF(Tableau6[[#This Row],[Date_ Resolution]]=\"\",\"\",NETWORKDAYS.INTL(Tableau6[[#This Row],[Date ]],Tableau6[[#This Row],[Date_ Resolution]],11,11)&\" Jr\")","v":""}]
[null,null,null,{"$f":"IFERROR(VLOOKUP(Tableau6[[#This Row],[Typologie ]],Tableau1[],2,0),\"\")","v":""},null,null,null,null,null,null,null,null,null,null,null,null,{"$f":"IF(Tableau6[[#This Row],[Date_ Resolution]]=\"\",\"\",NETWORKDAYS.INTL(Tableau6[[#This Row],[Date ]],Tableau6[[#This Row],[Date_ Resolution]],11,11)&\" Jr\")","v":""}]
[null,null,null,{"$f":"IFERROR(VLOOKUP(Tableau6[[#This Row],[Typologie ]],Tableau1[],2,0),\"\")","v":""},null,null,null,null,null,null,null,null,null,null,null,null,{"$f":"IF(Tableau6[[#This Row],[Date_ Resolution]]=\"\",\"\",NETWORKDAYS.INTL(Tableau6[[#This Row],[Date ]],Tableau6[[#This Row],[Date_ Resolution]],11,11)&\" Jr\")","v":""}]
[null,null,null,{"$f":"IFERROR(VLOOKUP(Tableau6[[#This Row],[Typologie ]],Tableau1[],2,0),\"\")","v":""},null,null,null,null,null,null,null,null,null,null,null,null,{"$f":"IF(Tableau6[[#This Row],[Date_ Resolution]]=\"\",\"\",NETWORKDAYS.INTL(Tableau6[[#This Row],[Date ]],Tableau6[[#This Row],[Date_ Resolution]],11,11)&\" Jr\")","v":""}]
[null,null,null,{"$f":"IFERROR(VLOOKUP(Tableau6[[#This Row],[Typologie ]],Tableau1[],2,0),\"\")","v":""},null,null,null,null,null,null,null,null,null,null,null,null,{"$f":"IF(Tableau6[[#This Row],[Date_ Resolution]]=\"\",\"\",NETWORKDAYS.INTL(Tableau6[[#This Row],[Date ]],Tableau6[[#This Row],[Date_ Resolution]],11,11)&\" Jr\")","v":""}]
[null,null,null,{"$f":"IFERROR(VLOOKUP(Tableau6[[#This Row],[Typologie ]],Tableau1[],2,0),\"\")","v":""},null,null,null,null,null,null,null,null,null,null,null,null,{"$f":"IF(Tableau6[[#This Row],[Date_ Resolution]]=\"\",\"\",NETWORKDAYS.INTL(Tableau6[[#This Row],[Date ]],Tableau6[[#This Row],[Date_ Resolution]],11,11)&\" Jr\")","v":""}]
[null,null,null,{"$f":"IFERROR(VLOOKUP(Tableau6[[#This Row],[Typologie ]],Tableau1[],2,0),\"\")","v":""},null,null,null,null,null,null,null,null,null,null,null,null,{"$f":"IF(Tableau6[[#This Row],[Date_ Resolution]]=\"\",\"\",NETWORKDAYS.INTL(Tableau6[[#This Row],[Date ]],Tableau6[[#This Row],[Date_ Resolution]],11,11)&\" Jr\")","v":""}]
[null,null,null,{"$f":"IFERROR(VLOOKUP(Tableau6[[#This Row],[Typologie ]],Tableau1[],2,0),\"\")","v":""},null,null,null,null,null,null,null,null,null,null,null,null,{"$f":"IF(Tableau6[[#This Row],[Date_ Resolution]]=\"\",\"\",NETWORKDAYS.INTL(Tableau6[[#This Row],[Date ]],Tableau6[[#This Row],[Date_ Resolution]],11,11)&\" Jr\")","v":""}]
[null,null,null,{"$f":"IFERROR(VLOOKUP(Tableau6[[#This Row],[Typologie ]],Tableau1[],2,0),\"\")","v":""},null,null,null,null,null,null,null,null,null,null,null,null,{"$f":"IF(Tableau6[[#This Row],[Date_ Resolution]]=\"\",\"\",NETWORKDAYS.INTL(Tableau6[[#This Row],[Date ]],Tableau6[[#This Row],[Date_ Resolution]],11,11)&\" Jr\")","v":""}]
[null,null,null,{"$f":"IFERROR(VLOOKUP(Tableau6[[#This Row],[Typologie ]],Tableau1[],2,0),\"\")","v":""},null,null,null,null,null,null,null,null,null,null,null,null,{"$f":"IF(Tableau6[[#This Row],[Date_ Resolution]]=\"\",\"\",NETWORKDAYS.INTL(Tableau6[[#This Row],[Date ]],Tableau6[[#This Row],[Date_ Resolution]],11,11)&\" Jr\")","v":""}]

{"sheet":"Don't delete","index":2,"n_rows":129,"n_cols":15,"rows_kept":129,"cut":false,"hidden":false,"merged":[]}
[]
[null,"Typologie","Code",null,"Services ",null,"Equipements ",null,"Requetes ",null,"Catégories ",null,"Types",null,"Statuts "]
[null,"Back Office ","RCBAO",null,"Lte ",null,"Box Lte",null,"Informations ",null,"Couverture",null,"Autre",null,"En cours"]
[null,"Direction Générale","RCDG",null,"Cdma",null,"Mifi Lte",null,"Plaintes",null,"Details_Compte",null,"MSISDN",null,"Fermé"]
[null,"Front Office ","RCFRO",null,"Wimax",null,"Sim Lte ",null,"Support_Technique",null,"Détails_Prix",null,"Recharge",null,"Ouvert"]
[null,"Shop Bastos","SSBAS",null,null,null,"Phone Lte ",null,null,null,"Points_de_vente",null,"Solde "]
[null,"Shop Essos","SSESS",null,null,null,null,null,null,null,"Produits_Services",null,"Transfert"]
[null,"Shop Peyrissac","SSPEY",null,null,null,"Box Wimax ",null,null,null,"Promotion"]
[null,"Showroom Akwa","SRCSP",null,null,null,null,null,null,null,"Shorts_codes",null,"Details_Technologies"]
[null,"Showroom Bafoussam","SRBAF",null,null,null,"C2",null,null,null,null,null,"Détails_équipements"]
[null,"Showroom Bonamoussadi","SRBDI",null,null,null,"GC318",null,null,null,"Configuration",null,"Détails_Produits"]
[null,"Showroom Bonanjo","SRDHL",null,null,null,"Sim Cdma",null,null,null,"Outage",null,"Informations_Recharges"]
[null,"Showroom Garoua ","SRGAR",null,null,null,null,null,null,null,"Problème_appel",null,"Usage"]
[null,"Showroom Yaounde","SRAVK",null,null,null,null,null,null,null,"Problème_Connexion",null,"Wifi"]
[null,null,null,null,null,null,null,null,null,null,"Problème_SMS"]
[null,null,null,null,null,null,null,null,null,null,"Test",null,"Hors Réseau"]
[null,null,null,null,null,null,null,null,null,null,null,null,"Test de Couverture"]
[null,null,null,null,null,null,null,null,null,null,"Batterie",null,"Zone de couverture"]
[null,null,null,null,null,null,null,null,null,null,"Facture "]
[null,null,null,null,null,null,null,null,null,null,"Login_indisponible",null,"Activation"]
[null,null,null,null,null,null,null,null,null,null,"Problème_activation",null,"Details des paramètres de connexion"]
[null,null,null,null,null,null,null,null,null,null,"Problème_Compte",null,"Information de compte"]
[null,null,null,null,null,null,null,null,null,null,"Problème_volume_données"]
[null,null,null,null,null,null,null,null,null,null,"Problème_Recharge",null,"Promotions en cours"]
[null,null,null,null,null,null,null,null,null,null,"Service_Client"]
[null,null,null,null,null,null,null,null,null,null,"Sim_Bloqué"]
[null,null,null,null,null,null,null,null,null,null,"Sim_Inactive",null,"Facture"]
[null,null,null,null,null,null,null,null,null,null,"Téléphone_ou_SIM_égarée",null,"Frequence"]
[null,null,null,null,null,null,null,null,null,null,"Téléphone_bloqué",null,"Prix"]
[null,null,null,null,null,null,null,null,null,null,"Vitesse",null,"Reconduire SIM"]
[null,null,null,null,null,null,null,null,null,null,"Téléphone /Sim/ Modem défectueux "]
[null,null,null,null,null,null,null,null,null,null,null,null,"Showroom"]
[null,null,null,null,null,null,null,null,null,null,null,null,"adresse distributeur"]
[null,null,null,null,null,null,null,null,null,null,null,null,"call box"]
[null,null,null,null,null,null,null,null,null,null,null,null,"Partenaire"]
[]
[null,null,null,null,null,null,null,null,null,null,null,null,"émission"]
[null,null,null,null,null,null,null,null,null,null,null,null,"Réception "]
[null,null,null,null,null,null,null,null,null,null,null,null,"Réception & émission"]
[]
[null,null,null,null,null,null,null,null,null,null,null,null,"émission"]
[null,null,null,null,null,null,null,null,null,null,null,null,"Réception "]
[null,null,null,null,null,null,null,null,null,null,null,null,"Réception & émission"]
[]
[null,null,null,null,null,null,null,null,null,null,null,null,"Logiciel"]
[null,null,null,null,null,null,null,null,null,null,null,null,"Equipements"]
[null,null,null,null,null,null,null,null,null,null,null,null,"Réseau"]
[]
[null,null,null,null,null,null,null,null,null,null,null,null,"Echec de connexion"]
[null,null,null,null,null,null,null,null,null,null,null,null,"Led Rouge de la clé"]
[null,null,null,null,null,null,null,null,null,null,null,null,"Led Wimax éteint quand le modem allumé"]
[null,null,null,null,null,null,null,null,null,null,null,null,"Leds instable du Modem"]
[null,null,null,null,null,null,null,null,null,null,null,null,"Leds stables mais pas d'accès à internet"]
[null,null,null,null,null,null,null,null,null,null,null,null,"Pas_de_signal"]
[null,null,null,null,null,null,null,null,null,null,null,null,"Réseau_Hors_Service"]
[null,null,null,null,null,null,null,null,null,null,null,null,"Micro- coupures "]
[]
[null,null,null,null,null,null,null,null,null,null,null,null,"Test demande"]
[]
[null,null,null,null,null,null,null,null,null,null,null,null,"BTS HS"]
[null,null,null,null,null,null,null,null,null,null,null,null,"Problème liens Camtel"]
[null,null,null,null,null,null,null,null,null,null,null,null,"Problème liens MTN"]
[null,null,null,null,null,null,null,null,null,null,null,null,"Problème_électrique"]
[null,null,null,null,null,null,null,null,null,null,null,null,"Site Webs non disponibles"]
[]
[null,null,null,null,null,null,null,null,null,null,null,null,"Débit lent"]
[null,null,null,null,null,null,null,null,null,null,null,null,"Bande passante saturée"]
[]
[null,null,null,null,null,null,null,null,null,null,null,null,"Carte de recharge non valide"]
[null,null,null,null,null,null,null,null,null,null,null,null,"Client Hotline pas redirigé vers le CSC "]
[null,null,null,null,null,null,null,null,null,null,null,null,"Crédit disparu"]
[null,null,null,null,null,null,null,null,null,null,null,null,"Erreur de transfert"]
[null,null,null,null,null,null,null,null,null,null,null,null,"facturation incorrecte"]
[null,null,null,null,null,null,null,null,null,null,null,null,"Forfait non disponible"]
[null,null,null,null,null,null,null,null,null,null,null,null,"Page de crédit expiré continue à apparaitre"]
[null,null,null,null,null,null,null,null,null,null,null,null,"Credit expire vite "]
[null,null,null,null,null,null,null,null,null,null,null,null,"Perte de crédit"]
[null,null,null,null,null,null,null,null,null,null,null,null,"Recharge non souscrit"]
[null,null,null,null,null,null,null,null,null,null,null,null,"Bonus indisponible "]
[null,null,null,null,null,null,null,null,null,null,null,null,"Recharges indisponibles "]
[null,null,null,null,null,null,null,null,null,null,null,null,"MAJ du quotat journalier"]
[null,null,null,null,null,null,null,null,null,null,null,null,"Quota Bowi # Quota CSC"]
[null,null,null,null,null,null,null,null,null,null,null,null,"Quota expiré rapidement"]
[null,null,null,null,null,null,null,null,null,null,null,null,"Subscription Queueing issue"]
[null,null,null,null,null,null,null,null,null,null,null,null,"Usage Incorrect des données"]
[]
[null,null,null,null,null,null,null,null,null,null,null,null,"CsC indisponible"]
[null,null,null,null,null,null,null,null,null,null,null,null,"CSC indisponible hotline"]
[null,null,null,null,null,null,null,null,null,null,null,null,"login et mot de passe incorrect"]
[null,null,null,null,null,null,null,null,null,null,null,null,"Mot de passe impossible à changer"]
[]
[null,null,null,null,null,null,null,null,null,null,null,null,"Facture non reçu"]
[null,null,null,null,null,null,null,null,null,null,null,null,"Compte bloqué avec facture payée"]
[null,null,null,null,null,null,null,null,null,null,null,null,"Facture incorrecte"]
[]
[null,null,null,null,null,null,null,null,null,null,null,null,"CSC non disponible"]
[null,null,null,null,null,null,null,null,null,null,null,null,"Mauvais service Téléconseiller"]
[null,null,null,null,null,null,null,null,null,null,null,null,"Pas de rappel"]
[null,null,null,null,null,null,null,null,null,null,null,null,"RDV non respecté"]
[]
[null,null,null,null,null,null,null,null,null,null,null,null,"Notification envoyée vers un compte incorrect"]
[null,null,null,null,null,null,null,null,null,null,null,null,"Notification non reçue"]
[null,null,null,null,null,null,null,null,null,null,null,null,"Paramètre de connexion incorrecte"]
[null,null,null,null,null,null,null,null,null,null,null,null,"Paramètre de connexion non reçu"]
[]
[null,null,null,null,null,null,null,null,null,null,null,null,"Activation incomplète"]
[null,null,null,null,null,null,null,null,null,null,null,null,"Activation sans Identification"]
[null,null,null,null,null,null,null,null,null,null,null,null,"Equipement non activé"]
[null,null,null,null,null,null,null,null,null,null,null,null,"MAC adresse incorrecte"]
[]
[null,null,null,null,null,null,null,null,null,null,null,null,"Activation incomplète"]
[null,null,null,null,null,null,null,null,null,null,null,null,"Activation sans Identification"]
[null,null,null,null,null,null,null,null,null,null,null,null,"ICC incorrecte"]
[null,null,null,null,null,null,null,null,null,null,null,null,"SIM non activé"]
[]
[null,null,null,null,null,null,null,null,null,null,null,null,"PIN"]
[null,null,null,null,null,null,null,null,null,null,null,null,"PUK"]
[null,null,null,null,null,null,null,null,null,null,null,null,"Sim delete"]
[null,null,null,null,null,null,null,null,null,null,null,null,"SWAP"]
[]
[null,null,null,null,null,null,null,null,null,null,null,null,"perte de téléphone"]
[null,null,null,null,null,null,null,null,null,null,null,null,"PIN"]
[null,null,null,null,null,null,null,null,null,null,null,null,"PUK"]
[null,null,null,null,null,null,null,null,null,null,null,null,"Téléphone bloqué"]
[null,null,null,null,null,null,null,null,null,null,null,null,"Perte de Résau "]
[]
[null,null,null,null,null,null,null,null,null,null,null,null,"batterie défectueuse"]
[]
[null,null,null,null,null,null,null,null,null,null,null,null,"Reconduire SIM"]